Posting date,Supplier number,Supplier name,Expense type,Department,Amount
29/06/2022,1249077,The Advocacy Project,Hired and Contracted Services,ASC Procurement and Business Intelligenc,51294
27/06/2022,1248618,Riverside Echg,Payments to Voluntary bodies,ASC Procurement and Business Intelligenc,31500
13/06/2022,1268421,Pen Test Partners LLP,Payments to main contractor,Adult Social Care Business,6250
01/04/2022,1257745,Russell Scott Entertainment Ltd,B*Contract Claims/Provisions,Adult Social Care Finance and Resources,3750
13/04/2022,1245228,Pohwer,Hired and Contracted Services,Adult Social Care Finance and Resources,2458.86
24/05/2022,1245228,Pohwer,Hired and Contracted Services,Adult Social Care Finance and Resources,1242.83
23/06/2022,1245228,Pohwer,Hired and Contracted Services,Adult Social Care Finance and Resources,2387.37
04/04/2022,1243775,Royal Borough of Kensington &,B*Payments to OLAs - Southampton City Co,Adult Social Care Finance and Resources,327903
11/05/2022,1290312,MSH Health & Wellbeing CIC,Grant Aid and Donations,Adult Social Care Operations,2000
22/04/2022,1248913,Smithfield Health & Social Care,Hired and Contracted Services,Adult Social Care Operations,50000
13/05/2022,1290804,Doro Care UK Ltd,###,Bi-Borough Director of Integrated Care,1600
13/05/2022,1290804,Doro Care UK Ltd,###,Bi-Borough Director of Integrated Care,1640
13/05/2022,1290804,Doro Care UK Ltd,###,Bi-Borough Director of Integrated Care,1656
13/05/2022,1290804,Doro Care UK Ltd,###,Bi-Borough Director of Integrated Care,1708
26/05/2022,1290804,Doro Care UK Ltd,###,Bi-Borough Director of Integrated Care,1764
15/06/2022,1290804,Doro Care UK Ltd,###,Bi-Borough Director of Integrated Care,1750
15/06/2022,1290804,Doro Care UK Ltd,###,Bi-Borough Director of Integrated Care,15120
23/06/2022,1290804,Doro Care UK Ltd,###,Bi-Borough Director of Integrated Care,1860
20/06/2022,1244670,Just Checking Ltd,###,Bi-Borough Director of Integrated Care,1327.5
27/06/2022,1292281,The Community Housing Group Limited,Hired and Contracted Services,Bi-Borough Director of Integrated Care,47157.12
23/05/2022,1246138,Tunstall Healthcare (UK) Ltd (Use,###,Bi-Borough Director of Integrated Care,3747
21/04/2022,1273817,GCH Alan Morkill House Ltd,Hired and Contracted Services,Bi-Borough Director of Integrated Care,455010
09/05/2022,1273817,GCH Alan Morkill House Ltd,Hired and Contracted Services,Bi-Borough Director of Integrated Care,364008
13/06/2022,1273817,GCH Alan Morkill House Ltd,Hired and Contracted Services,Bi-Borough Director of Integrated Care,221005
01/04/2022,1248531,Posturite (Uk) Ltd,Furniture,Bi-Borough Director of Integrated Care,513.02
01/04/2022,1245693,London Borough Of Hammersmith &,B*Payments to OLAs - Southampton City Co,Bi-Borough Director of Integrated Care,42959.92
19/04/2022,1245693,London Borough Of Hammersmith &,B*Payments to OLAs - Southampton City Co,Bi-Borough Director of Integrated Care,50128.97
01/04/2022,1245693,London Borough Of Hammersmith &,B*Payments to OLAs - Southampton City Co,Bi-Borough Director of Integrated Care,17143.7
19/04/2022,1245693,London Borough Of Hammersmith &,B*Payments to OLAs - Southampton City Co,Bi-Borough Director of Integrated Care,20782.05
01/04/2022,1243775,Royal Borough of Kensington &,B*Payments to OLAs - Southampton City Co,Bi-Borough Director of Integrated Care,49057.19
01/04/2022,1243775,Royal Borough of Kensington &,B*Payments to OLAs - Southampton City Co,Bi-Borough Director of Integrated Care,12790.9
19/04/2022,1251196,Royal Borough of Kensington and,B*Payments to OLAs - Southampton City Co,Bi-Borough Director of Integrated Care,39620.77
19/04/2022,1251196,Royal Borough of Kensington and,B*Payments to OLAs - Southampton City Co,Bi-Borough Director of Integrated Care,15848.33
01/04/2022,1243775,Royal Borough of Kensington &,B*Payments to OLAs - Southampton City Co,Bi-Borough Director of Integrated Care,12120.12
19/04/2022,1251196,Royal Borough of Kensington and,B*Payments to OLAs - Southampton City Co,Bi-Borough Director of Integrated Care,12949.8
29/06/2022,1291893,Imosphere Ltd,IT Software,Bi-Borough Director of Integrated Care,21630
19/04/2022,1260861,Old Square Chambers,Legal Costs,Bi-Borough Director of Integrated Care,1100
22/06/2022,1292095,365 Care Solutions Ltd,,Bi-Borough Director of Integrated Care,9710.86
07/04/2022,1255843,A.I. Care Services Ltd,,Bi-Borough Director of Integrated Care,536.96
16/05/2022,1255843,A.I. Care Services Ltd,,Bi-Borough Director of Integrated Care,1308
16/05/2022,1255843,A.I. Care Services Ltd,,Bi-Borough Director of Integrated Care,536.96
13/06/2022,1255843,A.I. Care Services Ltd,,Bi-Borough Director of Integrated Care,536.96
13/06/2022,1255843,A.I. Care Services Ltd,,Bi-Borough Director of Integrated Care,6274.04
29/06/2022,1255843,A.I. Care Services Ltd,,Bi-Borough Director of Integrated Care,6510.64
29/06/2022,1255843,A.I. Care Services Ltd,,Bi-Borough Director of Integrated Care,536.96
27/04/2022,1245929,The Regard Partnership Ltd,,Bi-Borough Director of Integrated Care,8124.38
27/04/2022,1245929,The Regard Partnership Ltd,,Bi-Borough Director of Integrated Care,5439.98
27/04/2022,1245929,The Regard Partnership Ltd,,Bi-Borough Director of Integrated Care,3438.34
25/05/2022,1245929,The Regard Partnership Ltd,,Bi-Borough Director of Integrated Care,9478.44
25/05/2022,1245929,The Regard Partnership Ltd,,Bi-Borough Director of Integrated Care,6346.64
25/05/2022,1245929,The Regard Partnership Ltd,,Bi-Borough Director of Integrated Care,4011.4
22/06/2022,1245929,The Regard Partnership Ltd,,Bi-Borough Director of Integrated Care,9478.44
22/06/2022,1245929,The Regard Partnership Ltd,,Bi-Borough Director of Integrated Care,6346.64
22/06/2022,1245929,The Regard Partnership Ltd,,Bi-Borough Director of Integrated Care,4011.4
27/04/2022,1271174,ASPECTS 2 LIMITED,,Bi-Borough Director of Integrated Care,7058.06
25/05/2022,1271174,ASPECTS 2 LIMITED,,Bi-Borough Director of Integrated Care,8693.26
22/06/2022,1271174,ASPECTS 2 LIMITED,,Bi-Borough Director of Integrated Care,8481.48
27/04/2022,1243851,Accomplish Group Ltd,,Bi-Borough Director of Integrated Care,7609.2
27/04/2022,1243851,Accomplish Group Ltd,,Bi-Borough Director of Integrated Care,7609.2
25/05/2022,1243851,Accomplish Group Ltd,,Bi-Borough Director of Integrated Care,8877.4
25/05/2022,1243851,Accomplish Group Ltd,,Bi-Borough Director of Integrated Care,8877.4
22/06/2022,1243851,Accomplish Group Ltd,,Bi-Borough Director of Integrated Care,8877.4
22/06/2022,1243851,Accomplish Group Ltd,,Bi-Borough Director of Integrated Care,8877.4
27/04/2022,1243435,Acorn Village,,Bi-Borough Director of Integrated Care,4475.21
25/05/2022,1243435,Acorn Village,,Bi-Borough Director of Integrated Care,5221.08
22/06/2022,1243435,Acorn Village,,Bi-Borough Director of Integrated Care,5221.08
19/04/2022,1243931,Ashbourne Healthcare Services,,Bi-Borough Director of Integrated Care,735.24
18/05/2022,1243931,Ashbourne Healthcare Services,,Bi-Borough Director of Integrated Care,8073
18/05/2022,1243931,Ashbourne Healthcare Services,,Bi-Borough Director of Integrated Care,1713.99
19/05/2022,1243931,Ashbourne Healthcare Services,,Bi-Borough Director of Integrated Care,825.35
19/05/2022,1243931,Ashbourne Healthcare Services,,Bi-Borough Director of Integrated Care,1263.41
06/06/2022,1243931,Ashbourne Healthcare Services,,Bi-Borough Director of Integrated Care,1590.04
06/06/2022,1243931,Ashbourne Healthcare Services,,Bi-Borough Director of Integrated Care,1731.66
14/06/2022,1243931,Ashbourne Healthcare Services,,Bi-Borough Director of Integrated Care,7839
14/06/2022,1243931,Ashbourne Healthcare Services,,Bi-Borough Director of Integrated Care,1731.66
17/06/2022,1243931,Ashbourne Healthcare Services,,Bi-Borough Director of Integrated Care,1090.7
27/04/2022,1243942,Aspens Charities,,Bi-Borough Director of Integrated Care,6000
25/05/2022,1243942,Aspens Charities,,Bi-Borough Director of Integrated Care,7000
22/06/2022,1243942,Aspens Charities,,Bi-Borough Director of Integrated Care,7000
27/04/2022,1243961,Autism Anglia,,Bi-Borough Director of Integrated Care,9123.43
25/05/2022,1243961,Autism Anglia,,Bi-Borough Director of Integrated Care,10644
22/06/2022,1243961,Autism Anglia,,Bi-Borough Director of Integrated Care,10644
30/06/2022,1246066,Barrie Bookkeeping & Payroll,B*Junior group rec activities,Bi-Borough Director of Integrated Care,1251.32
09/06/2022,1246247,Blitz Home Environmental Cleaning,,Bi-Borough Director of Integrated Care,600
27/04/2022,1243445,Broadstreet House Limited,,Bi-Borough Director of Integrated Care,3688.49
25/05/2022,1243445,Broadstreet House Limited,,Bi-Borough Director of Integrated Care,4303.24
22/06/2022,1243445,Broadstreet House Limited,,Bi-Borough Director of Integrated Care,4303.24
27/04/2022,1246286,Brunswick Supported Living,,Bi-Borough Director of Integrated Care,2253.67
25/05/2022,1246286,Brunswick Supported Living,,Bi-Borough Director of Integrated Care,2629.28
22/06/2022,1246286,Brunswick Supported Living,,Bi-Borough Director of Integrated Care,2629.28
27/04/2022,1273390,CHILTERN SUPPORT & HOUSING LTD,,Bi-Borough Director of Integrated Care,14174.33
25/05/2022,1273390,CHILTERN SUPPORT & HOUSING LTD,,Bi-Borough Director of Integrated Care,16536.72
22/06/2022,1273390,CHILTERN SUPPORT & HOUSING LTD,,Bi-Borough Director of Integrated Care,16536.72
27/04/2022,1244092,Cambrian Learning Disabilities Ltd,,Bi-Borough Director of Integrated Care,4974.69
25/05/2022,1244092,Cambrian Learning Disabilities Ltd,,Bi-Borough Director of Integrated Care,5803.8
22/06/2022,1244092,Cambrian Learning Disabilities Ltd,,Bi-Borough Director of Integrated Care,6632.94
27/04/2022,1246321,Camphill Village Trust,,Bi-Borough Director of Integrated Care,3412.35
25/05/2022,1246321,Camphill Village Trust,,Bi-Borough Director of Integrated Care,3981.08
22/06/2022,1246321,Camphill Village Trust,,Bi-Borough Director of Integrated Care,3981.08
27/04/2022,1246324,Candour Care Services (Broadview),,Bi-Borough Director of Integrated Care,6372.79
25/05/2022,1246324,Candour Care Services (Broadview),,Bi-Borough Director of Integrated Care,7434.92
22/06/2022,1246324,Candour Care Services (Broadview),,Bi-Borough Director of Integrated Care,7434.92
27/04/2022,1246327,Canterbury Oast Trust Ltd,,Bi-Borough Director of Integrated Care,3364.25
25/05/2022,1246327,Canterbury Oast Trust Ltd,,Bi-Borough Director of Integrated Care,3924.96
22/06/2022,1246327,Canterbury Oast Trust Ltd,,Bi-Borough Director of Integrated Care,3924.96
27/04/2022,1259100,Care Assist Limited,,Bi-Borough Director of Integrated Care,6652.8
27/04/2022,1259100,Care Assist Limited,,Bi-Borough Director of Integrated Care,6652.8
25/05/2022,1259100,Care Assist Limited,,Bi-Borough Director of Integrated Care,7761.6
25/05/2022,1259100,Care Assist Limited,,Bi-Borough Director of Integrated Care,7761.6
22/06/2022,1259100,Care Assist Limited,,Bi-Borough Director of Integrated Care,7761.6
22/06/2022,1259100,Care Assist Limited,,Bi-Borough Director of Integrated Care,7761.6
27/04/2022,1246339,Caretech Community Services Ltd,,Bi-Borough Director of Integrated Care,846.34
27/04/2022,1246339,Caretech Community Services Ltd,,Bi-Borough Director of Integrated Care,8120.37
27/04/2022,1246339,Caretech Community Services Ltd,,Bi-Borough Director of Integrated Care,4611.39
25/05/2022,1246339,Caretech Community Services Ltd,,Bi-Borough Director of Integrated Care,5379.96
25/05/2022,1246339,Caretech Community Services Ltd,,Bi-Borough Director of Integrated Care,987.4
25/05/2022,1246339,Caretech Community Services Ltd,,Bi-Borough Director of Integrated Care,5765.52
22/06/2022,1246339,Caretech Community Services Ltd,,Bi-Borough Director of Integrated Care,5379.96
22/06/2022,1246339,Caretech Community Services Ltd,,Bi-Borough Director of Integrated Care,5765.52
22/06/2022,1246339,Caretech Community Services Ltd,,Bi-Borough Director of Integrated Care,987.4
27/04/2022,1246349,Caxton Youth Organisation,B*Distric Council non fee related servi,Bi-Borough Director of Integrated Care,625
27/04/2022,1246349,Caxton Youth Organisation,B*Distric Council non fee related servi,Bi-Borough Director of Integrated Care,625
27/04/2022,1246349,Caxton Youth Organisation,B*Distric Council non fee related servi,Bi-Borough Director of Integrated Care,625
27/04/2022,1276470,Certitude (Support for Living),,Bi-Borough Director of Integrated Care,7360.53
27/04/2022,1276470,Certitude (Support for Living),,Bi-Borough Director of Integrated Care,10524.65
27/04/2022,1276470,Certitude (Support for Living),,Bi-Borough Director of Integrated Care,1973.42
27/04/2022,1276470,Certitude (Support for Living),,Bi-Borough Director of Integrated Care,4604.64
27/04/2022,1276470,Certitude (Support for Living),,Bi-Borough Director of Integrated Care,3847.99
27/04/2022,1276470,Certitude (Support for Living),,Bi-Borough Director of Integrated Care,4988.13
27/04/2022,1276470,Certitude (Support for Living),,Bi-Borough Director of Integrated Care,4965.46
27/04/2022,1276470,Certitude (Support for Living),,Bi-Borough Director of Integrated Care,4988.13
27/04/2022,1276470,Certitude (Support for Living),,Bi-Borough Director of Integrated Care,43108.8
27/04/2022,1276470,Certitude (Support for Living),,Bi-Borough Director of Integrated Care,24077.3
27/04/2022,1276470,Certitude (Support for Living),,Bi-Borough Director of Integrated Care,11132.61
25/05/2022,1276470,Certitude (Support for Living),,Bi-Borough Director of Integrated Care,8587.28
25/05/2022,1276470,Certitude (Support for Living),,Bi-Borough Director of Integrated Care,12278.76
25/05/2022,1276470,Certitude (Support for Living),,Bi-Borough Director of Integrated Care,9630.92
25/05/2022,1276470,Certitude (Support for Living),,Bi-Borough Director of Integrated Care,5372.08
25/05/2022,1276470,Certitude (Support for Living),,Bi-Borough Director of Integrated Care,2302.32
25/05/2022,1276470,Certitude (Support for Living),,Bi-Borough Director of Integrated Care,4489.32
25/05/2022,1276470,Certitude (Support for Living),,Bi-Borough Director of Integrated Care,5819.48
25/05/2022,1276470,Certitude (Support for Living),,Bi-Borough Director of Integrated Care,5793.04
25/05/2022,1276470,Certitude (Support for Living),,Bi-Borough Director of Integrated Care,5819.48
25/05/2022,1276470,Certitude (Support for Living),,Bi-Borough Director of Integrated Care,17243.52
25/05/2022,1276470,Certitude (Support for Living),,Bi-Borough Director of Integrated Care,12988.04
22/06/2022,1276470,Certitude (Support for Living),,Bi-Borough Director of Integrated Care,9630.92
22/06/2022,1276470,Certitude (Support for Living),,Bi-Borough Director of Integrated Care,2302.32
22/06/2022,1276470,Certitude (Support for Living),,Bi-Borough Director of Integrated Care,5372.08
22/06/2022,1276470,Certitude (Support for Living),,Bi-Borough Director of Integrated Care,4489.32
22/06/2022,1276470,Certitude (Support for Living),,Bi-Borough Director of Integrated Care,5819.48
22/06/2022,1276470,Certitude (Support for Living),,Bi-Borough Director of Integrated Care,5793.04
22/06/2022,1276470,Certitude (Support for Living),,Bi-Borough Director of Integrated Care,5819.48
22/06/2022,1276470,Certitude (Support for Living),,Bi-Borough Director of Integrated Care,12988.04
22/06/2022,1276470,Certitude (Support for Living),,Bi-Borough Director of Integrated Care,17243.52
22/06/2022,1276470,Certitude (Support for Living),,Bi-Borough Director of Integrated Care,12278.76
22/06/2022,1276470,Certitude (Support for Living),,Bi-Borough Director of Integrated Care,8587.28
27/04/2022,1244167,Choice Support,,Bi-Borough Director of Integrated Care,7659.43
25/05/2022,1244167,Choice Support,,Bi-Borough Director of Integrated Care,8936
22/06/2022,1244167,Choice Support,,Bi-Borough Director of Integrated Care,8936
27/04/2022,1243458,Cocklebury Farmhouse Homes Ltd,,Bi-Borough Director of Integrated Care,4745.14
27/04/2022,1243458,Cocklebury Farmhouse Homes Ltd,,Bi-Borough Director of Integrated Care,5492.57
27/04/2022,1243458,Cocklebury Farmhouse Homes Ltd,,Bi-Borough Director of Integrated Care,4244.57
27/04/2022,1243458,Cocklebury Farmhouse Homes Ltd,,Bi-Borough Director of Integrated Care,4772.57
27/04/2022,1243458,Cocklebury Farmhouse Homes Ltd,,Bi-Borough Director of Integrated Care,6024
25/05/2022,1243458,Cocklebury Farmhouse Homes Ltd,,Bi-Borough Director of Integrated Care,5536
25/05/2022,1243458,Cocklebury Farmhouse Homes Ltd,,Bi-Borough Director of Integrated Care,6408
25/05/2022,1243458,Cocklebury Farmhouse Homes Ltd,,Bi-Borough Director of Integrated Care,4952
25/05/2022,1243458,Cocklebury Farmhouse Homes Ltd,,Bi-Borough Director of Integrated Care,5568
25/05/2022,1243458,Cocklebury Farmhouse Homes Ltd,,Bi-Borough Director of Integrated Care,7028
22/06/2022,1243458,Cocklebury Farmhouse Homes Ltd,,Bi-Borough Director of Integrated Care,5536
22/06/2022,1243458,Cocklebury Farmhouse Homes Ltd,,Bi-Borough Director of Integrated Care,6408
22/06/2022,1243458,Cocklebury Farmhouse Homes Ltd,,Bi-Borough Director of Integrated Care,4952
22/06/2022,1243458,Cocklebury Farmhouse Homes Ltd,,Bi-Borough Director of Integrated Care,5568
22/06/2022,1243458,Cocklebury Farmhouse Homes Ltd,,Bi-Borough Director of Integrated Care,7028
27/04/2022,1280687,Community Integrated Care,,Bi-Borough Director of Integrated Care,4577.69
27/04/2022,1280687,Community Integrated Care,,Bi-Borough Director of Integrated Care,5055.26
27/04/2022,1280687,Community Integrated Care,,Bi-Borough Director of Integrated Care,8994.72
27/04/2022,1280687,Community Integrated Care,,Bi-Borough Director of Integrated Care,6834.24
27/04/2022,1280687,Community Integrated Care,,Bi-Borough Director of Integrated Care,11155.2
27/04/2022,1280687,Community Integrated Care,,Bi-Borough Director of Integrated Care,4581.46
27/04/2022,1280687,Community Integrated Care,,Bi-Borough Director of Integrated Care,4577.69
27/04/2022,1280687,Community Integrated Care,,Bi-Borough Director of Integrated Care,5055.26
25/05/2022,1280687,Community Integrated Care,,Bi-Borough Director of Integrated Care,5340.64
25/05/2022,1280687,Community Integrated Care,,Bi-Borough Director of Integrated Care,8202.54
25/05/2022,1280687,Community Integrated Care,,Bi-Borough Director of Integrated Care,10493.84
25/05/2022,1280687,Community Integrated Care,,Bi-Borough Director of Integrated Care,7973.28
25/05/2022,1280687,Community Integrated Care,,Bi-Borough Director of Integrated Care,13014.4
25/05/2022,1280687,Community Integrated Care,,Bi-Borough Director of Integrated Care,5345.04
25/05/2022,1280687,Community Integrated Care,,Bi-Borough Director of Integrated Care,5340.64
25/05/2022,1280687,Community Integrated Care,,Bi-Borough Director of Integrated Care,8202.54
22/06/2022,1280687,Community Integrated Care,,Bi-Borough Director of Integrated Care,5340.64
22/06/2022,1280687,Community Integrated Care,,Bi-Borough Director of Integrated Care,10493.84
22/06/2022,1280687,Community Integrated Care,,Bi-Borough Director of Integrated Care,7973.28
22/06/2022,1280687,Community Integrated Care,,Bi-Borough Director of Integrated Care,13014.4
22/06/2022,1280687,Community Integrated Care,,Bi-Borough Director of Integrated Care,10507.28
22/06/2022,1280687,Community Integrated Care,,Bi-Borough Director of Integrated Care,5345.04
22/06/2022,1280687,Community Integrated Care,,Bi-Borough Director of Integrated Care,10507.28
22/06/2022,1280687,Community Integrated Care,,Bi-Borough Director of Integrated Care,5340.64
27/04/2022,1244212,PERSONAL PAYMENTS,,Bi-Borough Director of Integrated Care,2845.71
27/04/2022,1244212,PERSONAL PAYMENTS,,Bi-Borough Director of Integrated Care,2165.14
27/04/2022,1244212,PERSONAL PAYMENTS,,Bi-Borough Director of Integrated Care,2165.14
27/04/2022,1244212,PERSONAL PAYMENTS,,Bi-Borough Director of Integrated Care,3699.43
25/05/2022,1244212,PERSONAL PAYMENTS,,Bi-Borough Director of Integrated Care,2526
25/05/2022,1244212,PERSONAL PAYMENTS,,Bi-Borough Director of Integrated Care,2526
25/05/2022,1244212,PERSONAL PAYMENTS,,Bi-Borough Director of Integrated Care,3320
25/05/2022,1244212,PERSONAL PAYMENTS,,Bi-Borough Director of Integrated Care,4316
22/06/2022,1244212,PERSONAL PAYMENTS,,Bi-Borough Director of Integrated Care,3320
22/06/2022,1244212,PERSONAL PAYMENTS,,Bi-Borough Director of Integrated Care,4316
22/06/2022,1244212,PERSONAL PAYMENTS,,Bi-Borough Director of Integrated Care,2526
22/06/2022,1244212,PERSONAL PAYMENTS,,Bi-Borough Director of Integrated Care,2526
27/04/2022,1243470,Downing (Chertsey Road) Ltd,,Bi-Borough Director of Integrated Care,5118.17
25/05/2022,1243470,Downing (Chertsey Road) Ltd,,Bi-Borough Director of Integrated Care,5971.2
22/06/2022,1243470,Downing (Chertsey Road) Ltd,,Bi-Borough Director of Integrated Care,5971.2
27/04/2022,1243474,Duckyls Farm Centre,,Bi-Borough Director of Integrated Care,2536.39
25/05/2022,1243474,Duckyls Farm Centre,,Bi-Borough Director of Integrated Care,2959.12
22/06/2022,1243474,Duckyls Farm Centre,,Bi-Borough Director of Integrated Care,2959.12
27/04/2022,1245108,Elysium Healthcare No 2 Ltd,,Bi-Borough Director of Integrated Care,7625.69
25/05/2022,1245108,Elysium Healthcare No 2 Ltd,,Bi-Borough Director of Integrated Care,8896.64
22/06/2022,1245108,Elysium Healthcare No 2 Ltd,,Bi-Borough Director of Integrated Care,8896.64
12/04/2022,1246934,Equal People Mencap (Kensington &,B*Voluntary-Spot-V Dep-Enhanced - do not u,Bi-Borough Director of Integrated Care,1278
06/05/2022,1246934,Equal People Mencap (Kensington &,B*Voluntary-Spot-V Dep-Enhanced - do not u,Bi-Borough Director of Integrated Care,1926
10/06/2022,1246934,Equal People Mencap (Kensington &,B*Voluntary-Spot-V Dep-Enhanced - do not u,Bi-Borough Director of Integrated Care,2385
27/04/2022,1245110,Eric Patrick Care Ltd,,Bi-Borough Director of Integrated Care,6744
25/05/2022,1245110,Eric Patrick Care Ltd,,Bi-Borough Director of Integrated Care,7868
22/06/2022,1245110,Eric Patrick Care Ltd,,Bi-Borough Director of Integrated Care,8430
05/05/2022,1259597,Ethica Services LTD,,Bi-Borough Director of Integrated Care,2277
19/05/2022,1259597,Ethica Services LTD,,Bi-Borough Director of Integrated Care,1242
17/06/2022,1259597,Ethica Services LTD,,Bi-Borough Director of Integrated Care,1656
29/06/2022,1259597,Ethica Services LTD,,Bi-Borough Director of Integrated Care,1656
13/04/2022,1252498,PERSONAL PAYMENTS,Legal Costs,Bi-Borough Director of Integrated Care,810
13/04/2022,1252498,PERSONAL PAYMENTS,Legal Costs,Bi-Borough Director of Integrated Care,850
19/04/2022,1252498,PERSONAL PAYMENTS,Legal Costs,Bi-Borough Director of Integrated Care,850
19/04/2022,1252498,PERSONAL PAYMENTS,Legal Costs,Bi-Borough Director of Integrated Care,850
27/04/2022,1243483,Greenview Healthcare Ltd,,Bi-Borough Director of Integrated Care,3832.29
25/05/2022,1243483,Greenview Healthcare Ltd,,Bi-Borough Director of Integrated Care,4471
22/06/2022,1243483,Greenview Healthcare Ltd,,Bi-Borough Director of Integrated Care,4471
27/04/2022,1243485,Grove Care Partnership Ltd,,Bi-Borough Director of Integrated Care,7039.61
25/05/2022,1243485,Grove Care Partnership Ltd,,Bi-Borough Director of Integrated Care,8670.48
22/06/2022,1243485,Grove Care Partnership Ltd,,Bi-Borough Director of Integrated Care,8928.54
27/04/2022,1258503,Guyatt House Care Limited,,Bi-Borough Director of Integrated Care,6069.57
25/05/2022,1258503,Guyatt House Care Limited,,Bi-Borough Director of Integrated Care,7081.16
22/06/2022,1258503,Guyatt House Care Limited,,Bi-Borough Director of Integrated Care,7081.16
04/04/2022,1244531,HCP Staffing Services Ltd,,Bi-Borough Director of Integrated Care,989.32
04/04/2022,1244531,HCP Staffing Services Ltd,,Bi-Borough Director of Integrated Care,989.32
04/04/2022,1244531,HCP Staffing Services Ltd,,Bi-Borough Director of Integrated Care,989.32
07/04/2022,1244531,HCP Staffing Services Ltd,,Bi-Borough Director of Integrated Care,717.88
25/04/2022,1244531,HCP Staffing Services Ltd,,Bi-Borough Director of Integrated Care,745.96
25/04/2022,1244531,HCP Staffing Services Ltd,,Bi-Borough Director of Integrated Care,717.88
11/05/2022,1244531,HCP Staffing Services Ltd,,Bi-Borough Director of Integrated Care,717.88
11/05/2022,1244531,HCP Staffing Services Ltd,,Bi-Borough Director of Integrated Care,717.88
26/05/2022,1244531,HCP Staffing Services Ltd,,Bi-Borough Director of Integrated Care,717.88
07/06/2022,1244531,HCP Staffing Services Ltd,,Bi-Borough Director of Integrated Care,717.88
07/06/2022,1244531,HCP Staffing Services Ltd,,Bi-Borough Director of Integrated Care,717.88
10/06/2022,1244531,HCP Staffing Services Ltd,,Bi-Borough Director of Integrated Care,745.96
21/06/2022,1244531,HCP Staffing Services Ltd,,Bi-Borough Director of Integrated Care,717.88
30/06/2022,1244531,HCP Staffing Services Ltd,,Bi-Borough Director of Integrated Care,717.88
27/04/2022,1244549,HF Trust Ltd,,Bi-Borough Director of Integrated Care,12958.15
27/04/2022,1244549,HF Trust Ltd,,Bi-Borough Director of Integrated Care,3033.67
25/05/2022,1244549,HF Trust Ltd,,Bi-Borough Director of Integrated Care,15117.84
25/05/2022,1244549,HF Trust Ltd,,Bi-Borough Director of Integrated Care,3539.28
22/06/2022,1244549,HF Trust Ltd,,Bi-Borough Director of Integrated Care,3539.28
22/06/2022,1244549,HF Trust Ltd,,Bi-Borough Director of Integrated Care,15117.84
27/04/2022,1244515,Hampshire Autistic Society,,Bi-Borough Director of Integrated Care,4548.93
25/05/2022,1244515,Hampshire Autistic Society,,Bi-Borough Director of Integrated Care,5307.08
22/06/2022,1244515,Hampshire Autistic Society,,Bi-Borough Director of Integrated Care,5307.08
27/04/2022,1243490,Haydon Park Lodge Ltd,,Bi-Borough Director of Integrated Care,3428.57
25/05/2022,1243490,Haydon Park Lodge Ltd,,Bi-Borough Director of Integrated Care,4000
22/06/2022,1243490,Haydon Park Lodge Ltd,,Bi-Borough Director of Integrated Care,4000
27/04/2022,1260257,Hazel Homes for Autism Ltd,,Bi-Borough Director of Integrated Care,12758.78
27/04/2022,1260257,Hazel Homes for Autism Ltd,,Bi-Borough Director of Integrated Care,738
25/05/2022,1260257,Hazel Homes for Autism Ltd,,Bi-Borough Director of Integrated Care,861
25/05/2022,1260257,Hazel Homes for Autism Ltd,,Bi-Borough Director of Integrated Care,14885.24
22/06/2022,1260257,Hazel Homes for Autism Ltd,,Bi-Borough Director of Integrated Care,14885.24
22/06/2022,1260257,Hazel Homes for Autism Ltd,,Bi-Borough Director of Integrated Care,861
27/04/2022,1245125,Heathcotes (Southern) Ltd,,Bi-Borough Director of Integrated Care,14077.39
25/05/2022,1245125,Heathcotes (Southern) Ltd,,Bi-Borough Director of Integrated Care,12686.64
22/06/2022,1245125,Heathcotes (Southern) Ltd,,Bi-Borough Director of Integrated Care,12189.16
27/04/2022,1267460,Hunters Lodge Care Home,,Bi-Borough Director of Integrated Care,3369.12
25/05/2022,1267460,Hunters Lodge Care Home,,Bi-Borough Director of Integrated Care,3930.64
22/06/2022,1267460,Hunters Lodge Care Home,,Bi-Borough Director of Integrated Care,3930.64
12/05/2022,1247526,Integrity Care and Support Ltd,B*Voluntary-Spot-V Dep-Enhanced - do not u,Bi-Borough Director of Integrated Care,660.99
12/05/2022,1247526,Integrity Care and Support Ltd,B*Voluntary-Spot-V Dep-Enhanced - do not u,Bi-Borough Director of Integrated Care,961.44
12/05/2022,1247526,Integrity Care and Support Ltd,B*Voluntary-Spot-V Dep-Enhanced - do not u,Bi-Borough Director of Integrated Care,640.96
12/05/2022,1247526,Integrity Care and Support Ltd,B*Voluntary-Spot-V Dep-Enhanced - do not u,Bi-Borough Director of Integrated Care,981.47
12/05/2022,1247526,Integrity Care and Support Ltd,B*Voluntary-Spot-V Dep-Enhanced - do not u,Bi-Borough Director of Integrated Care,961.44
12/05/2022,1247526,Integrity Care and Support Ltd,B*Voluntary-Spot-V Dep-Enhanced - do not u,Bi-Borough Director of Integrated Care,640.96
12/05/2022,1247526,Integrity Care and Support Ltd,B*Voluntary-Spot-V Dep-Enhanced - do not u,Bi-Borough Director of Integrated Care,1161.74
12/05/2022,1247526,Integrity Care and Support Ltd,B*Voluntary-Spot-V Dep-Enhanced - do not u,Bi-Borough Director of Integrated Care,711.06
12/05/2022,1247526,Integrity Care and Support Ltd,B*Voluntary-Spot-V Dep-Enhanced - do not u,Bi-Borough Director of Integrated Care,540.81
12/05/2022,1247526,Integrity Care and Support Ltd,B*Voluntary-Spot-V Dep-Enhanced - do not u,Bi-Borough Director of Integrated Care,1482.22
12/05/2022,1247526,Integrity Care and Support Ltd,B*Voluntary-Spot-V Dep-Enhanced - do not u,Bi-Borough Director of Integrated Care,721.08
12/05/2022,1247526,Integrity Care and Support Ltd,B*Voluntary-Spot-V Dep-Enhanced - do not u,Bi-Borough Director of Integrated Care,1582.37
12/05/2022,1247526,Integrity Care and Support Ltd,B*Voluntary-Spot-V Dep-Enhanced - do not u,Bi-Borough Director of Integrated Care,1311.97
12/05/2022,1247526,Integrity Care and Support Ltd,B*Voluntary-Spot-V Dep-Enhanced - do not u,Bi-Borough Director of Integrated Care,1121.68
12/05/2022,1247526,Integrity Care and Support Ltd,B*Voluntary-Spot-V Dep-Enhanced - do not u,Bi-Borough Director of Integrated Care,1522.28
12/05/2022,1247526,Integrity Care and Support Ltd,B*Voluntary-Spot-V Dep-Enhanced - do not u,Bi-Borough Director of Integrated Care,1281.92
12/05/2022,1247526,Integrity Care and Support Ltd,B*Voluntary-Spot-V Dep-Enhanced - do not u,Bi-Borough Director of Integrated Care,1562.34
12/05/2022,1247526,Integrity Care and Support Ltd,B*Voluntary-Spot-V Dep-Enhanced - do not u,Bi-Borough Director of Integrated Care,841.26
12/05/2022,1247526,Integrity Care and Support Ltd,B*Voluntary-Spot-V Dep-Enhanced - do not u,Bi-Borough Director of Integrated Care,600.9
10/06/2022,1247526,Integrity Care and Support Ltd,B*Voluntary-Spot-V Dep-Enhanced - do not u,Bi-Borough Director of Integrated Care,600.9
10/06/2022,1247526,Integrity Care and Support Ltd,B*Voluntary-Spot-V Dep-Enhanced - do not u,Bi-Borough Director of Integrated Care,540.81
10/06/2022,1247526,Integrity Care and Support Ltd,B*Voluntary-Spot-V Dep-Enhanced - do not u,Bi-Borough Director of Integrated Care,861.29
10/06/2022,1247526,Integrity Care and Support Ltd,B*Voluntary-Spot-V Dep-Enhanced - do not u,Bi-Borough Director of Integrated Care,1061.59
10/06/2022,1247526,Integrity Care and Support Ltd,B*Voluntary-Spot-V Dep-Enhanced - do not u,Bi-Borough Director of Integrated Care,640.96
10/06/2022,1247526,Integrity Care and Support Ltd,B*Voluntary-Spot-V Dep-Enhanced - do not u,Bi-Borough Director of Integrated Care,781.17
10/06/2022,1247526,Integrity Care and Support Ltd,B*Voluntary-Spot-V Dep-Enhanced - do not u,Bi-Borough Director of Integrated Care,701.05
10/06/2022,1247526,Integrity Care and Support Ltd,B*Voluntary-Spot-V Dep-Enhanced - do not u,Bi-Borough Director of Integrated Care,1542.31
10/06/2022,1247526,Integrity Care and Support Ltd,B*Voluntary-Spot-V Dep-Enhanced - do not u,Bi-Borough Director of Integrated Care,1442.16
10/06/2022,1247526,Integrity Care and Support Ltd,B*Voluntary-Spot-V Dep-Enhanced - do not u,Bi-Borough Director of Integrated Care,1382.07
10/06/2022,1247526,Integrity Care and Support Ltd,B*Voluntary-Spot-V Dep-Enhanced - do not u,Bi-Borough Director of Integrated Care,1362.04
10/06/2022,1247526,Integrity Care and Support Ltd,B*Voluntary-Spot-V Dep-Enhanced - do not u,Bi-Borough Director of Integrated Care,961.44
10/06/2022,1247526,Integrity Care and Support Ltd,B*Voluntary-Spot-V Dep-Enhanced - do not u,Bi-Borough Director of Integrated Care,640.96
10/06/2022,1247526,Integrity Care and Support Ltd,B*Voluntary-Spot-V Dep-Enhanced - do not u,Bi-Borough Director of Integrated Care,1121.68
10/06/2022,1247526,Integrity Care and Support Ltd,B*Voluntary-Spot-V Dep-Enhanced - do not u,Bi-Borough Director of Integrated Care,1101.65
10/06/2022,1247526,Integrity Care and Support Ltd,B*Voluntary-Spot-V Dep-Enhanced - do not u,Bi-Borough Director of Integrated Care,1993
10/06/2022,1247526,Integrity Care and Support Ltd,B*Voluntary-Spot-V Dep-Enhanced - do not u,Bi-Borough Director of Integrated Care,961.44
10/06/2022,1247526,Integrity Care and Support Ltd,B*Voluntary-Spot-V Dep-Enhanced - do not u,Bi-Borough Director of Integrated Care,721.08
10/06/2022,1247526,Integrity Care and Support Ltd,B*Voluntary-Spot-V Dep-Enhanced - do not u,Bi-Borough Director of Integrated Care,681.02
13/06/2022,1247526,Integrity Care and Support Ltd,B*Voluntary-Spot-V Dep-Enhanced - do not u,Bi-Borough Director of Integrated Care,841.26
13/06/2022,1247526,Integrity Care and Support Ltd,B*Voluntary-Spot-V Dep-Enhanced - do not u,Bi-Borough Director of Integrated Care,600.9
13/06/2022,1247526,Integrity Care and Support Ltd,B*Voluntary-Spot-V Dep-Enhanced - do not u,Bi-Borough Director of Integrated Care,701.05
13/06/2022,1247526,Integrity Care and Support Ltd,B*Voluntary-Spot-V Dep-Enhanced - do not u,Bi-Borough Director of Integrated Care,640.96
13/06/2022,1247526,Integrity Care and Support Ltd,B*Voluntary-Spot-V Dep-Enhanced - do not u,Bi-Borough Director of Integrated Care,1682.52
13/06/2022,1247526,Integrity Care and Support Ltd,B*Voluntary-Spot-V Dep-Enhanced - do not u,Bi-Borough Director of Integrated Care,861.29
13/06/2022,1247526,Integrity Care and Support Ltd,B*Voluntary-Spot-V Dep-Enhanced - do not u,Bi-Borough Director of Integrated Care,741.11
13/06/2022,1247526,Integrity Care and Support Ltd,B*Voluntary-Spot-V Dep-Enhanced - do not u,Bi-Borough Director of Integrated Care,500.75
13/06/2022,1247526,Integrity Care and Support Ltd,B*Voluntary-Spot-V Dep-Enhanced - do not u,Bi-Borough Director of Integrated Care,721.08
13/06/2022,1247526,Integrity Care and Support Ltd,B*Voluntary-Spot-V Dep-Enhanced - do not u,Bi-Borough Director of Integrated Care,801.2
13/06/2022,1247526,Integrity Care and Support Ltd,B*Voluntary-Spot-V Dep-Enhanced - do not u,Bi-Borough Director of Integrated Care,1682.52
13/06/2022,1247526,Integrity Care and Support Ltd,B*Voluntary-Spot-V Dep-Enhanced - do not u,Bi-Borough Director of Integrated Care,1041.56
13/06/2022,1247526,Integrity Care and Support Ltd,B*Voluntary-Spot-V Dep-Enhanced - do not u,Bi-Borough Director of Integrated Care,1422.13
13/06/2022,1247526,Integrity Care and Support Ltd,B*Voluntary-Spot-V Dep-Enhanced - do not u,Bi-Borough Director of Integrated Care,1261.89
13/06/2022,1247526,Integrity Care and Support Ltd,B*Voluntary-Spot-V Dep-Enhanced - do not u,Bi-Borough Director of Integrated Care,691.04
13/06/2022,1247526,Integrity Care and Support Ltd,B*Voluntary-Spot-V Dep-Enhanced - do not u,Bi-Borough Director of Integrated Care,1382.07
13/06/2022,1247526,Integrity Care and Support Ltd,B*Voluntary-Spot-V Dep-Enhanced - do not u,Bi-Borough Director of Integrated Care,1201.8
13/06/2022,1247526,Integrity Care and Support Ltd,B*Voluntary-Spot-V Dep-Enhanced - do not u,Bi-Borough Director of Integrated Care,1121.68
13/06/2022,1247526,Integrity Care and Support Ltd,B*Voluntary-Spot-V Dep-Enhanced - do not u,Bi-Borough Director of Integrated Care,921.38
13/06/2022,1247526,Integrity Care and Support Ltd,B*Voluntary-Spot-V Dep-Enhanced - do not u,Bi-Borough Director of Integrated Care,1281.92
27/04/2022,1247598,Kisimul Group Ltd,,Bi-Borough Director of Integrated Care,12200.95
25/05/2022,1247598,Kisimul Group Ltd,,Bi-Borough Director of Integrated Care,15027.51
22/06/2022,1247598,Kisimul Group Ltd,,Bi-Borough Director of Integrated Care,14661.48
27/04/2022,1243506,Lifeways Community Care Ltd,,Bi-Borough Director of Integrated Care,5910.93
27/04/2022,1243506,Lifeways Community Care Ltd,,Bi-Borough Director of Integrated Care,10170.58
25/05/2022,1243506,Lifeways Community Care Ltd,,Bi-Borough Director of Integrated Care,6896.08
25/05/2022,1243506,Lifeways Community Care Ltd,,Bi-Borough Director of Integrated Care,11865.68
22/06/2022,1243506,Lifeways Community Care Ltd,,Bi-Borough Director of Integrated Care,7487.16
22/06/2022,1243506,Lifeways Community Care Ltd,,Bi-Borough Director of Integrated Care,12882.71
27/04/2022,1249729,Linden Lodge School,,Bi-Borough Director of Integrated Care,3970.29
25/05/2022,1249729,Linden Lodge School,,Bi-Borough Director of Integrated Care,4632
22/06/2022,1249729,Linden Lodge School,,Bi-Borough Director of Integrated Care,4632
27/04/2022,1244762,Livability,,Bi-Borough Director of Integrated Care,5297.14
25/05/2022,1244762,Livability,,Bi-Borough Director of Integrated Care,6180
22/06/2022,1244762,Livability,,Bi-Borough Director of Integrated Care,6180
07/04/2022,1247650,London Care Ltd,,Bi-Borough Director of Integrated Care,1916.13
07/04/2022,1247650,London Care Ltd,,Bi-Borough Director of Integrated Care,1253.18
07/04/2022,1247650,London Care Ltd,,Bi-Borough Director of Integrated Care,741.2
07/04/2022,1247650,London Care Ltd,,Bi-Borough Director of Integrated Care,1544.43
07/04/2022,1247650,London Care Ltd,,Bi-Borough Director of Integrated Care,1499
20/05/2022,1247650,London Care Ltd,,Bi-Borough Director of Integrated Care,1301.08
20/05/2022,1247650,London Care Ltd,,Bi-Borough Director of Integrated Care,741.2
20/05/2022,1247650,London Care Ltd,,Bi-Borough Director of Integrated Care,1542.58
20/05/2022,1247650,London Care Ltd,,Bi-Borough Director of Integrated Care,1507.67
20/05/2022,1247650,London Care Ltd,,Bi-Borough Director of Integrated Care,1990.99
14/06/2022,1247650,London Care Ltd,,Bi-Borough Director of Integrated Care,1297.93
14/06/2022,1247650,London Care Ltd,,Bi-Borough Director of Integrated Care,741.2
14/06/2022,1247650,London Care Ltd,,Bi-Borough Director of Integrated Care,1545.68
14/06/2022,1247650,London Care Ltd,,Bi-Borough Director of Integrated Care,1485.71
14/06/2022,1247650,London Care Ltd,,Bi-Borough Director of Integrated Care,1615.23
27/04/2022,1247656,London Cyrenians Housing Ltd,,Bi-Borough Director of Integrated Care,12240
25/05/2022,1247656,London Cyrenians Housing Ltd,,Bi-Borough Director of Integrated Care,14280
22/06/2022,1247656,London Cyrenians Housing Ltd,,Bi-Borough Director of Integrated Care,14280
25/04/2022,1247846,London Vip Cars,Payments to Transport Operators,Bi-Borough Director of Integrated Care,5396
31/05/2022,1247846,London Vip Cars,Payments to Transport Operators,Bi-Borough Director of Integrated Care,4425
28/06/2022,1247846,London Vip Cars,Payments to Transport Operators,Bi-Borough Director of Integrated Care,4724
27/04/2022,1247854,Look Ahead Housing & Care Ltd,,Bi-Borough Director of Integrated Care,1297.2
25/05/2022,1247854,Look Ahead Housing & Care Ltd,,Bi-Borough Director of Integrated Care,1513.4
22/06/2022,1247854,Look Ahead Housing & Care Ltd,,Bi-Borough Director of Integrated Care,1513.4
07/06/2022,1259132,MMR Home Care LTD,,Bi-Borough Director of Integrated Care,2349.2
07/06/2022,1259132,MMR Home Care LTD,,Bi-Borough Director of Integrated Care,2349.2
27/06/2022,1259132,MMR Home Care LTD,,Bi-Borough Director of Integrated Care,2349.2
27/06/2022,1259132,MMR Home Care LTD,,Bi-Borough Director of Integrated Care,2349.2
27/04/2022,1282320,Marcus and Marcus,,Bi-Borough Director of Integrated Care,20091.43
25/05/2022,1282320,Marcus and Marcus,,Bi-Borough Director of Integrated Care,23440
22/06/2022,1282320,Marcus and Marcus,,Bi-Borough Director of Integrated Care,23440
27/04/2022,1245144,Methodist Homes For The Aged,,Bi-Borough Director of Integrated Care,2661.57
25/05/2022,1245144,Methodist Homes For The Aged,,Bi-Borough Director of Integrated Care,3265.54
22/06/2022,1245144,Methodist Homes For The Aged,,Bi-Borough Director of Integrated Care,3191.52
27/04/2022,1247933,Minster Pathways Ltd,,Bi-Borough Director of Integrated Care,1069.71
27/04/2022,1247933,Minster Pathways Ltd,,Bi-Borough Director of Integrated Care,3125.62
25/05/2022,1247933,Minster Pathways Ltd,,Bi-Borough Director of Integrated Care,1248
25/05/2022,1247933,Minster Pathways Ltd,,Bi-Borough Director of Integrated Care,3646.56
22/06/2022,1247933,Minster Pathways Ltd,,Bi-Borough Director of Integrated Care,1248
22/06/2022,1247933,Minster Pathways Ltd,,Bi-Borough Director of Integrated Care,3646.56
22/06/2022,1291059,PERSONAL PAYMENTS,,Bi-Borough Director of Integrated Care,9842.86
27/04/2022,1244905,Nas Services Ltd (Residential),,Bi-Borough Director of Integrated Care,6806.69
27/04/2022,1244905,Nas Services Ltd (Residential),,Bi-Borough Director of Integrated Care,3479.04
27/04/2022,1244905,Nas Services Ltd (Residential),,Bi-Borough Director of Integrated Care,2896.56
27/04/2022,1244905,Nas Services Ltd (Residential),,Bi-Borough Director of Integrated Care,6342.93
25/05/2022,1244905,Nas Services Ltd (Residential),,Bi-Borough Director of Integrated Care,4058.88
25/05/2022,1244905,Nas Services Ltd (Residential),,Bi-Borough Director of Integrated Care,7400.08
25/05/2022,1244905,Nas Services Ltd (Residential),,Bi-Borough Director of Integrated Care,3379.32
25/05/2022,1244905,Nas Services Ltd (Residential),,Bi-Borough Director of Integrated Care,7970.16
15/06/2022,1244905,Nas Services Ltd (Residential),B*Voluntary-Spot-V Dep-Enhanced - do not u,Bi-Borough Director of Integrated Care,1247.28
15/06/2022,1244905,Nas Services Ltd (Residential),B*Voluntary-Spot-V Dep-Enhanced - do not u,Bi-Borough Director of Integrated Care,1403.19
15/06/2022,1244905,Nas Services Ltd (Residential),B*Voluntary-Spot-V Dep-Enhanced - do not u,Bi-Borough Director of Integrated Care,1418.44
22/06/2022,1244905,Nas Services Ltd (Residential),,Bi-Borough Director of Integrated Care,3379.32
22/06/2022,1244905,Nas Services Ltd (Residential),,Bi-Borough Director of Integrated Care,7400.08
22/06/2022,1244905,Nas Services Ltd (Residential),,Bi-Borough Director of Integrated Care,7970.16
22/06/2022,1244905,Nas Services Ltd (Residential),,Bi-Borough Director of Integrated Care,4058.88
12/04/2022,1244906,Nas Services Ltd (Use 3009018),B*Voluntary-Spot-V Dep-Enhanced - do not u,Bi-Borough Director of Integrated Care,5243.8
12/04/2022,1244906,Nas Services Ltd (Use 3009018),B*Voluntary-Spot-V Dep-Enhanced - do not u,Bi-Borough Director of Integrated Care,2027.52
11/05/2022,1244906,Nas Services Ltd (Use 3009018),B*Voluntary-Spot-V Dep-Enhanced - do not u,Bi-Borough Director of Integrated Care,5243.8
11/05/2022,1244906,Nas Services Ltd (Use 3009018),B*Voluntary-Spot-V Dep-Enhanced - do not u,Bi-Borough Director of Integrated Care,2027.52
15/06/2022,1244906,Nas Services Ltd (Use 3009018),B*Voluntary-Spot-V Dep-Enhanced - do not u,Bi-Borough Director of Integrated Care,4879.2
15/06/2022,1244906,Nas Services Ltd (Use 3009018),B*Voluntary-Spot-V Dep-Enhanced - do not u,Bi-Borough Director of Integrated Care,2027.52
15/06/2022,1244906,Nas Services Ltd (Use 3009018),B*Voluntary-Spot-V Dep-Enhanced - do not u,Bi-Borough Director of Integrated Care,2970.72
15/06/2022,1244906,Nas Services Ltd (Use 3009018),B*Voluntary-Spot-V Dep-Enhanced - do not u,Bi-Borough Director of Integrated Care,1124.96
15/06/2022,1244906,Nas Services Ltd (Use 3009018),B*Voluntary-Spot-V Dep-Enhanced - do not u,Bi-Borough Director of Integrated Care,5243.8
15/06/2022,1244906,Nas Services Ltd (Use 3009018),B*Voluntary-Spot-V Dep-Enhanced - do not u,Bi-Borough Director of Integrated Care,1744.52
15/06/2022,1244906,Nas Services Ltd (Use 3009018),B*Voluntary-Spot-V Dep-Enhanced - do not u,Bi-Borough Director of Integrated Care,2915.36
15/06/2022,1244906,Nas Services Ltd (Use 3009018),B*Voluntary-Spot-V Dep-Enhanced - do not u,Bi-Borough Director of Integrated Care,1772.04
15/06/2022,1244906,Nas Services Ltd (Use 3009018),B*Voluntary-Spot-V Dep-Enhanced - do not u,Bi-Borough Director of Integrated Care,1308.36
15/06/2022,1244906,Nas Services Ltd (Use 3009018),B*Voluntary-Spot-V Dep-Enhanced - do not u,Bi-Borough Director of Integrated Care,3461.99
27/04/2022,1282551,Nisacraftcare Limited,,Bi-Borough Director of Integrated Care,12078.93
27/04/2022,1282551,Nisacraftcare Limited,,Bi-Borough Director of Integrated Care,6913.03
25/05/2022,1282551,Nisacraftcare Limited,,Bi-Borough Director of Integrated Care,14092.08
25/05/2022,1282551,Nisacraftcare Limited,,Bi-Borough Director of Integrated Care,8065.2
22/06/2022,1282551,Nisacraftcare Limited,,Bi-Borough Director of Integrated Care,14092.08
22/06/2022,1282551,Nisacraftcare Limited,,Bi-Borough Director of Integrated Care,8065.2
22/06/2022,1282551,Nisacraftcare Limited,,Bi-Borough Director of Integrated Care,4543.85
27/04/2022,1247147,Norwood Schools Ltd,,Bi-Borough Director of Integrated Care,7882.83
27/04/2022,1247147,Norwood Schools Ltd,,Bi-Borough Director of Integrated Care,6261.98
27/04/2022,1247147,Norwood Schools Ltd,,Bi-Borough Director of Integrated Care,4871.62
27/04/2022,1247147,Norwood Schools Ltd,,Bi-Borough Director of Integrated Care,5560.66
25/05/2022,1247147,Norwood Schools Ltd,,Bi-Borough Director of Integrated Care,7305.64
25/05/2022,1247147,Norwood Schools Ltd,,Bi-Borough Director of Integrated Care,5683.56
25/05/2022,1247147,Norwood Schools Ltd,,Bi-Borough Director of Integrated Care,6487.44
25/05/2022,1247147,Norwood Schools Ltd,,Bi-Borough Director of Integrated Care,9708.99
22/06/2022,1247147,Norwood Schools Ltd,,Bi-Borough Director of Integrated Care,9472.52
22/06/2022,1247147,Norwood Schools Ltd,,Bi-Borough Director of Integrated Care,7305.64
22/06/2022,1247147,Norwood Schools Ltd,,Bi-Borough Director of Integrated Care,5683.56
22/06/2022,1247147,Norwood Schools Ltd,,Bi-Borough Director of Integrated Care,6487.44
27/04/2022,1243520,Oakview Care (Berkshire) Ltd,,Bi-Borough Director of Integrated Care,6033.39
25/05/2022,1243520,Oakview Care (Berkshire) Ltd,,Bi-Borough Director of Integrated Care,7038.96
22/06/2022,1243520,Oakview Care (Berkshire) Ltd,,Bi-Borough Director of Integrated Care,7713.75
28/04/2022,1244971,Octavia Housing (Main Account),Rent,Bi-Borough Director of Integrated Care,1787.26
27/04/2022,1243524,PERSONAL PAYMENTS,,Bi-Borough Director of Integrated Care,802.29
27/04/2022,1243524,PERSONAL PAYMENTS,,Bi-Borough Director of Integrated Care,2896.94
25/05/2022,1243524,PERSONAL PAYMENTS,,Bi-Borough Director of Integrated Care,936
25/05/2022,1243524,PERSONAL PAYMENTS,,Bi-Borough Director of Integrated Care,3379.76
22/06/2022,1243524,PERSONAL PAYMENTS,,Bi-Borough Director of Integrated Care,3379.76
22/06/2022,1243524,PERSONAL PAYMENTS,,Bi-Borough Director of Integrated Care,936
27/04/2022,1245005,PERSONAL PAYMENTS,,Bi-Borough Director of Integrated Care,1840.18
27/04/2022,1245005,PERSONAL PAYMENTS,,Bi-Borough Director of Integrated Care,1495.54
27/04/2022,1245005,PERSONAL PAYMENTS,,Bi-Borough Director of Integrated Care,1840.18
27/04/2022,1245005,PERSONAL PAYMENTS,,Bi-Borough Director of Integrated Care,1146.58
27/04/2022,1245005,PERSONAL PAYMENTS,,Bi-Borough Director of Integrated Care,2663.04
27/04/2022,1245005,PERSONAL PAYMENTS,,Bi-Borough Director of Integrated Care,2488.25
25/05/2022,1245005,PERSONAL PAYMENTS,,Bi-Borough Director of Integrated Care,2146.88
25/05/2022,1245005,PERSONAL PAYMENTS,,Bi-Borough Director of Integrated Care,1337.68
25/05/2022,1245005,PERSONAL PAYMENTS,,Bi-Borough Director of Integrated Care,3106.88
25/05/2022,1245005,PERSONAL PAYMENTS,,Bi-Borough Director of Integrated Care,2146.88
25/05/2022,1245005,PERSONAL PAYMENTS,,Bi-Borough Director of Integrated Care,1744.8
25/05/2022,1245005,PERSONAL PAYMENTS,,Bi-Borough Director of Integrated Care,2902.96
22/06/2022,1245005,PERSONAL PAYMENTS,,Bi-Borough Director of Integrated Care,1744.8
22/06/2022,1245005,PERSONAL PAYMENTS,,Bi-Borough Director of Integrated Care,2146.88
22/06/2022,1245005,PERSONAL PAYMENTS,,Bi-Borough Director of Integrated Care,2146.88
22/06/2022,1245005,PERSONAL PAYMENTS,,Bi-Borough Director of Integrated Care,1337.68
22/06/2022,1245005,PERSONAL PAYMENTS,,Bi-Borough Director of Integrated Care,3106.88
22/06/2022,1245005,PERSONAL PAYMENTS,,Bi-Borough Director of Integrated Care,2902.96
04/04/2022,1245825,Sweet Tree Home Care Services,Adult Social Care - Other Transfer Pay,Bi-Borough Director of Integrated Care,3896.81
07/04/2022,1246066,Barrie Bookkeeping & Payroll,Adult Social Care - Other Transfer Pay,Bi-Borough Director of Integrated Care,2699.6
07/04/2022,1250627,PERSONAL PAYMENTS,Adult Social Care - Other Transfer Pay,Bi-Borough Director of Integrated Care,2508
07/04/2022,1250536,PERSONAL PAYMENTS,Adult Social Care - Other Transfer Pay,Bi-Borough Director of Integrated Care,2326.77
07/04/2022,1246066,Barrie Bookkeeping & Payroll,Adult Social Care - Other Transfer Pay,Bi-Borough Director of Integrated Care,2611.32
07/04/2022,1268346,PERSONAL PAYMENTS,Adult Social Care - Other Transfer Pay,Bi-Borough Director of Integrated Care,1623.4
07/04/2022,1249942,PERSONAL PAYMENTS,Adult Social Care - Other Transfer Pay,Bi-Borough Director of Integrated Care,6343.36
07/04/2022,1246066,Barrie Bookkeeping & Payroll,Adult Social Care - Other Transfer Pay,Bi-Borough Director of Integrated Care,4603.4
07/04/2022,1250138,PERSONAL PAYMENTS,Adult Social Care - Other Transfer Pay,Bi-Borough Director of Integrated Care,916
07/04/2022,1248148,PERSONAL PAYMENTS,Adult Social Care - Other Transfer Pay,Bi-Borough Director of Integrated Care,1638.96
07/04/2022,1246066,Barrie Bookkeeping & Payroll,Adult Social Care - Other Transfer Pay,Bi-Borough Director of Integrated Care,5754.04
07/04/2022,1246066,Barrie Bookkeeping & Payroll,Adult Social Care - Other Transfer Pay,Bi-Borough Director of Integrated Care,5914.56
07/04/2022,1246066,Barrie Bookkeeping & Payroll,Adult Social Care - Other Transfer Pay,Bi-Borough Director of Integrated Care,2483.4
07/04/2022,1246066,Barrie Bookkeeping & Payroll,Adult Social Care - Other Transfer Pay,Bi-Borough Director of Integrated Care,1791.6
07/04/2022,1247820,PERSONAL PAYMENTS,Adult Social Care - Other Transfer Pay,Bi-Borough Director of Integrated Care,8751.04
07/04/2022,1280973,PERSONAL PAYMENTS,Adult Social Care - Other Transfer Pay,Bi-Borough Director of Integrated Care,6236.88
07/04/2022,1246066,Barrie Bookkeeping & Payroll,Adult Social Care - Other Transfer Pay,Bi-Borough Director of Integrated Care,818
07/04/2022,1250186,PERSONAL PAYMENTS,Adult Social Care - Other Transfer Pay,Bi-Borough Director of Integrated Care,3121.48
07/04/2022,1248154,PERSONAL PAYMENTS,Adult Social Care - Other Transfer Pay,Bi-Borough Director of Integrated Care,829.52
07/04/2022,1246066,Barrie Bookkeeping & Payroll,Adult Social Care - Other Transfer Pay,Bi-Borough Director of Integrated Care,2056.84
07/04/2022,1246066,Barrie Bookkeeping & Payroll,Adult Social Care - Other Transfer Pay,Bi-Borough Director of Integrated Care,773.2
07/04/2022,1246066,Barrie Bookkeeping & Payroll,Adult Social Care - Other Transfer Pay,Bi-Borough Director of Integrated Care,1898.91
07/04/2022,1246066,Barrie Bookkeeping & Payroll,Adult Social Care - Other Transfer Pay,Bi-Borough Director of Integrated Care,876.08
07/04/2022,1247804,PERSONAL PAYMENTS,Adult Social Care - Other Transfer Pay,Bi-Borough Director of Integrated Care,752.2
07/04/2022,1250656,PERSONAL PAYMENTS,Social Care - Direct Payments,Bi-Borough Director of Integrated Care,1118.36
07/04/2022,1246066,Barrie Bookkeeping & Payroll,Adult Social Care - Other Transfer Pay,Bi-Borough Director of Integrated Care,2854.04
07/04/2022,1246066,Barrie Bookkeeping & Payroll,Adult Social Care - Other Transfer Pay,Bi-Borough Director of Integrated Care,2585.32
07/04/2022,1246066,Barrie Bookkeeping & Payroll,Adult Social Care - Other Transfer Pay,Bi-Borough Director of Integrated Care,1688.6
07/04/2022,1246066,Barrie Bookkeeping & Payroll,Adult Social Care - Other Transfer Pay,Bi-Borough Director of Integrated Care,733.8
07/04/2022,1246066,Barrie Bookkeeping & Payroll,Adult Social Care - Other Transfer Pay,Bi-Borough Director of Integrated Care,2452.2
07/04/2022,1248010,PERSONAL PAYMENTS,Adult Social Care - Other Transfer Pay,Bi-Borough Director of Integrated Care,634.88
07/04/2022,1246066,Barrie Bookkeeping & Payroll,Adult Social Care - Other Transfer Pay,Bi-Borough Director of Integrated Care,1991
07/04/2022,1250215,PERSONAL PAYMENTS,Adult Social Care - Other Transfer Pay,Bi-Borough Director of Integrated Care,1361.56
07/04/2022,1254540,PERSONAL PAYMENTS,Adult Social Care - Other Transfer Pay,Bi-Borough Director of Integrated Care,939.92
07/04/2022,1250674,PERSONAL PAYMENTS,Adult Social Care - Other Transfer Pay,Bi-Borough Director of Integrated Care,2652.16
07/04/2022,1272570,PERSONAL PAYMENTS,Adult Social Care - Other Transfer Pay,Bi-Borough Director of Integrated Care,1051.24
07/04/2022,1250074,PERSONAL PAYMENTS,Adult Social Care - Other Transfer Pay,Bi-Borough Director of Integrated Care,6904.8
07/04/2022,1246066,Barrie Bookkeeping & Payroll,Adult Social Care - Other Transfer Pay,Bi-Borough Director of Integrated Care,1821.6
07/04/2022,1269674,PERSONAL PAYMENTS,Adult Social Care - Other Transfer Pay,Bi-Borough Director of Integrated Care,2667.84
07/04/2022,1250044,PERSONAL PAYMENTS,Adult Social Care - Other Transfer Pay,Bi-Borough Director of Integrated Care,876.12
07/04/2022,1248292,PERSONAL PAYMENTS,Adult Social Care - Other Transfer Pay,Bi-Borough Director of Integrated Care,8929.4
07/04/2022,1250670,PERSONAL PAYMENTS,Adult Social Care - Other Transfer Pay,Bi-Borough Director of Integrated Care,2255.92
07/04/2022,1278955,PERSONAL PAYMENTS,Social Care - Direct Payments,Bi-Borough Director of Integrated Care,1289.24
07/04/2022,1246066,Barrie Bookkeeping & Payroll,Adult Social Care - Other Transfer Pay,Bi-Borough Director of Integrated Care,953.88
07/04/2022,1246066,Barrie Bookkeeping & Payroll,Adult Social Care - Other Transfer Pay,Bi-Borough Director of Integrated Care,1164.6
07/04/2022,1250012,PERSONAL PAYMENTS,Adult Social Care - Other Transfer Pay,Bi-Borough Director of Integrated Care,2015
07/04/2022,1250037,PERSONAL PAYMENTS,Adult Social Care - Other Transfer Pay,Bi-Borough Director of Integrated Care,2383.72
07/04/2022,1247727,PERSONAL PAYMENTS,Social Care - Direct Payments,Bi-Borough Director of Integrated Care,2740.72
07/04/2022,1246066,Barrie Bookkeeping & Payroll,Adult Social Care - Other Transfer Pay,Bi-Borough Director of Integrated Care,11674.68
08/04/2022,1248354,PERSONAL PAYMENTS,Adult Social Care - Other Transfer Pay,Bi-Borough Director of Integrated Care,5373.76
20/04/2022,1246066,Barrie Bookkeeping & Payroll,Adult Social Care - Other Transfer Pay,Bi-Borough Director of Integrated Care,914.55
05/05/2022,1250186,PERSONAL PAYMENTS,Adult Social Care - Other Transfer Pay,Bi-Borough Director of Integrated Care,3121.48
05/05/2022,1272570,PERSONAL PAYMENTS,Adult Social Care - Other Transfer Pay,Bi-Borough Director of Integrated Care,1051.24
05/05/2022,1278955,PERSONAL PAYMENTS,Social Care - Direct Payments,Bi-Borough Director of Integrated Care,1289.24
05/05/2022,1250674,PERSONAL PAYMENTS,Adult Social Care - Other Transfer Pay,Bi-Borough Director of Integrated Care,2652.16
05/05/2022,1246066,Barrie Bookkeeping & Payroll,Adult Social Care - Other Transfer Pay,Bi-Borough Director of Integrated Care,843.96
05/05/2022,1246066,Barrie Bookkeeping & Payroll,Adult Social Care - Other Transfer Pay,Bi-Borough Director of Integrated Care,1164.6
05/05/2022,1248010,PERSONAL PAYMENTS,Adult Social Care - Other Transfer Pay,Bi-Borough Director of Integrated Care,634.88
05/05/2022,1248154,PERSONAL PAYMENTS,Adult Social Care - Other Transfer Pay,Bi-Borough Director of Integrated Care,829.52
05/05/2022,1246066,Barrie Bookkeeping & Payroll,Adult Social Care - Other Transfer Pay,Bi-Borough Director of Integrated Care,2854.04
05/05/2022,1268346,PERSONAL PAYMENTS,Adult Social Care - Other Transfer Pay,Bi-Borough Director of Integrated Care,1623.4
05/05/2022,1280973,PERSONAL PAYMENTS,Adult Social Care - Other Transfer Pay,Bi-Borough Director of Integrated Care,6236.88
05/05/2022,1246066,Barrie Bookkeeping & Payroll,Adult Social Care - Other Transfer Pay,Bi-Borough Director of Integrated Care,11674.68
05/05/2022,1246066,Barrie Bookkeeping & Payroll,Adult Social Care - Other Transfer Pay,Bi-Borough Director of Integrated Care,1991
05/05/2022,1246066,Barrie Bookkeeping & Payroll,Adult Social Care - Other Transfer Pay,Bi-Borough Director of Integrated Care,2056.84
05/05/2022,1246066,Barrie Bookkeeping & Payroll,Adult Social Care - Other Transfer Pay,Bi-Borough Director of Integrated Care,2452.2
05/05/2022,1246066,Barrie Bookkeeping & Payroll,Adult Social Care - Other Transfer Pay,Bi-Borough Director of Integrated Care,876.08
05/05/2022,1246066,Barrie Bookkeeping & Payroll,Adult Social Care - Other Transfer Pay,Bi-Borough Director of Integrated Care,953.88
05/05/2022,1248292,PERSONAL PAYMENTS,Adult Social Care - Other Transfer Pay,Bi-Borough Director of Integrated Care,8929.4
05/05/2022,1248148,PERSONAL PAYMENTS,Adult Social Care - Other Transfer Pay,Bi-Borough Director of Integrated Care,1638.96
05/05/2022,1246066,Barrie Bookkeeping & Payroll,Adult Social Care - Other Transfer Pay,Bi-Borough Director of Integrated Care,818
05/05/2022,1246066,Barrie Bookkeeping & Payroll,Adult Social Care - Other Transfer Pay,Bi-Borough Director of Integrated Care,2611.32
05/05/2022,1247820,PERSONAL PAYMENTS,Adult Social Care - Other Transfer Pay,Bi-Borough Director of Integrated Care,8751.04
05/05/2022,1249942,PERSONAL PAYMENTS,Adult Social Care - Other Transfer Pay,Bi-Borough Director of Integrated Care,6343.36
05/05/2022,1246066,Barrie Bookkeeping & Payroll,Adult Social Care - Other Transfer Pay,Bi-Borough Director of Integrated Care,2585.32
05/05/2022,1250074,PERSONAL PAYMENTS,Adult Social Care - Other Transfer Pay,Bi-Borough Director of Integrated Care,6904.8
05/05/2022,1254540,PERSONAL PAYMENTS,Adult Social Care - Other Transfer Pay,Bi-Borough Director of Integrated Care,939.92
05/05/2022,1250656,PERSONAL PAYMENTS,Social Care - Direct Payments,Bi-Borough Director of Integrated Care,1118.36
05/05/2022,1246066,Barrie Bookkeeping & Payroll,Adult Social Care - Other Transfer Pay,Bi-Borough Director of Integrated Care,2483.4
05/05/2022,1246066,Barrie Bookkeeping & Payroll,Adult Social Care - Other Transfer Pay,Bi-Borough Director of Integrated Care,1688.6
05/05/2022,1246066,Barrie Bookkeeping & Payroll,Adult Social Care - Other Transfer Pay,Bi-Borough Director of Integrated Care,733.8
05/05/2022,1246066,Barrie Bookkeeping & Payroll,Adult Social Care - Other Transfer Pay,Bi-Borough Director of Integrated Care,2699.6
05/05/2022,1250670,PERSONAL PAYMENTS,Adult Social Care - Other Transfer Pay,Bi-Borough Director of Integrated Care,1571.52
05/05/2022,1246066,Barrie Bookkeeping & Payroll,Adult Social Care - Other Transfer Pay,Bi-Borough Director of Integrated Care,4603.4
05/05/2022,1269674,PERSONAL PAYMENTS,Adult Social Care - Other Transfer Pay,Bi-Borough Director of Integrated Care,889.28
05/05/2022,1250215,PERSONAL PAYMENTS,Adult Social Care - Other Transfer Pay,Bi-Borough Director of Integrated Care,1361.56
05/05/2022,1250536,PERSONAL PAYMENTS,Adult Social Care - Other Transfer Pay,Bi-Borough Director of Integrated Care,678.64
05/05/2022,1248354,PERSONAL PAYMENTS,Adult Social Care - Other Transfer Pay,Bi-Borough Director of Integrated Care,2425.36
05/05/2022,1250627,PERSONAL PAYMENTS,Adult Social Care - Other Transfer Pay,Bi-Borough Director of Integrated Care,2508
05/05/2022,1250044,PERSONAL PAYMENTS,Adult Social Care - Other Transfer Pay,Bi-Borough Director of Integrated Care,724.04
05/05/2022,1250138,PERSONAL PAYMENTS,Adult Social Care - Other Transfer Pay,Bi-Borough Director of Integrated Care,916
05/05/2022,1247804,PERSONAL PAYMENTS,Adult Social Care - Other Transfer Pay,Bi-Borough Director of Integrated Care,752.2
05/05/2022,1250012,PERSONAL PAYMENTS,Adult Social Care - Other Transfer Pay,Bi-Borough Director of Integrated Care,2015
05/05/2022,1246066,Barrie Bookkeeping & Payroll,Adult Social Care - Other Transfer Pay,Bi-Borough Director of Integrated Care,5754.04
05/05/2022,1246066,Barrie Bookkeeping & Payroll,Adult Social Care - Other Transfer Pay,Bi-Borough Director of Integrated Care,5914.56
05/05/2022,1250037,PERSONAL PAYMENTS,Adult Social Care - Other Transfer Pay,Bi-Borough Director of Integrated Care,2383.72
05/05/2022,1246066,Barrie Bookkeeping & Payroll,Adult Social Care - Other Transfer Pay,Bi-Borough Director of Integrated Care,1791.6
05/05/2022,1247727,PERSONAL PAYMENTS,Social Care - Direct Payments,Bi-Borough Director of Integrated Care,2740.72
06/05/2022,1245825,Sweet Tree Home Care Services,Adult Social Care - Other Transfer Pay,Bi-Borough Director of Integrated Care,3512.97
31/05/2022,1246066,Barrie Bookkeeping & Payroll,Adult Social Care - Other Transfer Pay,Bi-Borough Director of Integrated Care,1688.6
31/05/2022,1246066,Barrie Bookkeeping & Payroll,Adult Social Care - Other Transfer Pay,Bi-Borough Director of Integrated Care,733.8
31/05/2022,1269674,PERSONAL PAYMENTS,Adult Social Care - Other Transfer Pay,Bi-Borough Director of Integrated Care,889.28
31/05/2022,1246066,Barrie Bookkeeping & Payroll,Adult Social Care - Other Transfer Pay,Bi-Borough Director of Integrated Care,2854.04
31/05/2022,1268346,PERSONAL PAYMENTS,Adult Social Care - Other Transfer Pay,Bi-Borough Director of Integrated Care,1623.4
31/05/2022,1280973,PERSONAL PAYMENTS,Adult Social Care - Other Transfer Pay,Bi-Borough Director of Integrated Care,6236.88
31/05/2022,1246066,Barrie Bookkeeping & Payroll,Adult Social Care - Other Transfer Pay,Bi-Borough Director of Integrated Care,11674.68
31/05/2022,1246066,Barrie Bookkeeping & Payroll,Adult Social Care - Other Transfer Pay,Bi-Borough Director of Integrated Care,1991
31/05/2022,1246066,Barrie Bookkeeping & Payroll,Adult Social Care - Other Transfer Pay,Bi-Borough Director of Integrated Care,2056.84
31/05/2022,1250215,PERSONAL PAYMENTS,Adult Social Care - Other Transfer Pay,Bi-Borough Director of Integrated Care,1361.56
31/05/2022,1250536,PERSONAL PAYMENTS,Adult Social Care - Other Transfer Pay,Bi-Borough Director of Integrated Care,678.64
31/05/2022,1248354,PERSONAL PAYMENTS,Adult Social Care - Other Transfer Pay,Bi-Borough Director of Integrated Care,2425.36
31/05/2022,1246066,Barrie Bookkeeping & Payroll,Adult Social Care - Other Transfer Pay,Bi-Borough Director of Integrated Care,2452.2
31/05/2022,1246066,Barrie Bookkeeping & Payroll,Adult Social Care - Other Transfer Pay,Bi-Borough Director of Integrated Care,876.08
31/05/2022,1246066,Barrie Bookkeeping & Payroll,Adult Social Care - Other Transfer Pay,Bi-Borough Director of Integrated Care,953.88
31/05/2022,1250012,PERSONAL PAYMENTS,Adult Social Care - Other Transfer Pay,Bi-Borough Director of Integrated Care,2015
31/05/2022,1246066,Barrie Bookkeeping & Payroll,Adult Social Care - Other Transfer Pay,Bi-Borough Director of Integrated Care,5754.04
31/05/2022,1246066,Barrie Bookkeeping & Payroll,Adult Social Care - Other Transfer Pay,Bi-Borough Director of Integrated Care,5914.56
31/05/2022,1250037,PERSONAL PAYMENTS,Adult Social Care - Other Transfer Pay,Bi-Borough Director of Integrated Care,2383.72
31/05/2022,1246066,Barrie Bookkeeping & Payroll,Adult Social Care - Other Transfer Pay,Bi-Borough Director of Integrated Care,1791.6
31/05/2022,1247727,PERSONAL PAYMENTS,Social Care - Direct Payments,Bi-Borough Director of Integrated Care,2740.72
31/05/2022,1248292,PERSONAL PAYMENTS,Adult Social Care - Other Transfer Pay,Bi-Borough Director of Integrated Care,8929.4
31/05/2022,1246066,Barrie Bookkeeping & Payroll,Adult Social Care - Other Transfer Pay,Bi-Borough Director of Integrated Care,818
31/05/2022,1246066,Barrie Bookkeeping & Payroll,Adult Social Care - Other Transfer Pay,Bi-Borough Director of Integrated Care,2611.32
31/05/2022,1247820,PERSONAL PAYMENTS,Adult Social Care - Other Transfer Pay,Bi-Borough Director of Integrated Care,8751.04
31/05/2022,1249942,PERSONAL PAYMENTS,Adult Social Care - Other Transfer Pay,Bi-Borough Director of Integrated Care,6343.36
31/05/2022,1254540,PERSONAL PAYMENTS,Adult Social Care - Other Transfer Pay,Bi-Borough Director of Integrated Care,939.92
31/05/2022,1278955,PERSONAL PAYMENTS,Social Care - Direct Payments,Bi-Borough Director of Integrated Care,1289.24
31/05/2022,1248010,PERSONAL PAYMENTS,Adult Social Care - Other Transfer Pay,Bi-Borough Director of Integrated Care,634.88
31/05/2022,1248154,PERSONAL PAYMENTS,Adult Social Care - Other Transfer Pay,Bi-Borough Director of Integrated Care,829.52
31/05/2022,1250656,PERSONAL PAYMENTS,Social Care - Direct Payments,Bi-Borough Director of Integrated Care,1118.36
31/05/2022,1248148,PERSONAL PAYMENTS,Adult Social Care - Other Transfer Pay,Bi-Borough Director of Integrated Care,1638.96
31/05/2022,1246066,Barrie Bookkeeping & Payroll,Adult Social Care - Other Transfer Pay,Bi-Borough Director of Integrated Care,2585.32
31/05/2022,1250074,PERSONAL PAYMENTS,Adult Social Care - Other Transfer Pay,Bi-Borough Director of Integrated Care,6904.8
31/05/2022,1250670,PERSONAL PAYMENTS,Adult Social Care - Other Transfer Pay,Bi-Borough Director of Integrated Care,1571.52
31/05/2022,1246066,Barrie Bookkeeping & Payroll,Adult Social Care - Other Transfer Pay,Bi-Borough Director of Integrated Care,4603.4
31/05/2022,1250627,PERSONAL PAYMENTS,Adult Social Care - Other Transfer Pay,Bi-Borough Director of Integrated Care,2508
31/05/2022,1250044,PERSONAL PAYMENTS,Adult Social Care - Other Transfer Pay,Bi-Borough Director of Integrated Care,724.04
31/05/2022,1247804,PERSONAL PAYMENTS,Adult Social Care - Other Transfer Pay,Bi-Borough Director of Integrated Care,752.2
31/05/2022,1250138,PERSONAL PAYMENTS,Adult Social Care - Other Transfer Pay,Bi-Borough Director of Integrated Care,916
31/05/2022,1250186,PERSONAL PAYMENTS,Adult Social Care - Other Transfer Pay,Bi-Borough Director of Integrated Care,3121.48
31/05/2022,1272570,PERSONAL PAYMENTS,Adult Social Care - Other Transfer Pay,Bi-Borough Director of Integrated Care,1051.24
31/05/2022,1250674,PERSONAL PAYMENTS,Adult Social Care - Other Transfer Pay,Bi-Borough Director of Integrated Care,2652.16
31/05/2022,1246066,Barrie Bookkeeping & Payroll,Adult Social Care - Other Transfer Pay,Bi-Borough Director of Integrated Care,843.96
31/05/2022,1246066,Barrie Bookkeeping & Payroll,Adult Social Care - Other Transfer Pay,Bi-Borough Director of Integrated Care,1164.6
31/05/2022,1246066,Barrie Bookkeeping & Payroll,Adult Social Care - Other Transfer Pay,Bi-Borough Director of Integrated Care,2483.4
10/06/2022,1292106,PERSONAL PAYMENTS,Adult Social Care - Other Transfer Pay,Bi-Borough Director of Integrated Care,1155.4
10/06/2022,1245825,Sweet Tree Home Care Services,Adult Social Care - Other Transfer Pay,Bi-Borough Director of Integrated Care,3958.08
23/06/2022,1292106,PERSONAL PAYMENTS,Adult Social Care - Other Transfer Pay,Bi-Borough Director of Integrated Care,14731.35
23/06/2022,1292106,PERSONAL PAYMENTS,Adult Social Care - Other Transfer Pay,Bi-Borough Director of Integrated Care,1155.4
30/06/2022,1246066,Barrie Bookkeeping & Payroll,Adult Social Care - Other Transfer Pay,Bi-Borough Director of Integrated Care,2483.4
30/06/2022,1269674,PERSONAL PAYMENTS,Adult Social Care - Other Transfer Pay,Bi-Borough Director of Integrated Care,889.28
30/06/2022,1250215,PERSONAL PAYMENTS,Adult Social Care - Other Transfer Pay,Bi-Borough Director of Integrated Care,1361.56
30/06/2022,1250536,PERSONAL PAYMENTS,Adult Social Care - Other Transfer Pay,Bi-Borough Director of Integrated Care,678.64
30/06/2022,1248354,PERSONAL PAYMENTS,Adult Social Care - Other Transfer Pay,Bi-Borough Director of Integrated Care,2425.36
30/06/2022,1268346,PERSONAL PAYMENTS,Adult Social Care - Other Transfer Pay,Bi-Borough Director of Integrated Care,1623.4
30/06/2022,1280973,PERSONAL PAYMENTS,Adult Social Care - Other Transfer Pay,Bi-Borough Director of Integrated Care,6236.88
30/06/2022,1246066,Barrie Bookkeeping & Payroll,Adult Social Care - Other Transfer Pay,Bi-Borough Director of Integrated Care,11674.68
30/06/2022,1246066,Barrie Bookkeeping & Payroll,Adult Social Care - Other Transfer Pay,Bi-Borough Director of Integrated Care,2056.84
30/06/2022,1246066,Barrie Bookkeeping & Payroll,Adult Social Care - Other Transfer Pay,Bi-Borough Director of Integrated Care,2854.04
30/06/2022,1246066,Barrie Bookkeeping & Payroll,Adult Social Care - Other Transfer Pay,Bi-Borough Director of Integrated Care,2452.2
30/06/2022,1246066,Barrie Bookkeeping & Payroll,Adult Social Care - Other Transfer Pay,Bi-Borough Director of Integrated Care,876.08
30/06/2022,1246066,Barrie Bookkeeping & Payroll,Adult Social Care - Other Transfer Pay,Bi-Borough Director of Integrated Care,953.88
30/06/2022,1246066,Barrie Bookkeeping & Payroll,Adult Social Care - Other Transfer Pay,Bi-Borough Director of Integrated Care,1991
30/06/2022,1248292,PERSONAL PAYMENTS,Adult Social Care - Other Transfer Pay,Bi-Borough Director of Integrated Care,8929.4
30/06/2022,1292106,PERSONAL PAYMENTS,Adult Social Care - Other Transfer Pay,Bi-Borough Director of Integrated Care,1155.4
30/06/2022,1250012,PERSONAL PAYMENTS,Adult Social Care - Other Transfer Pay,Bi-Borough Director of Integrated Care,2015
30/06/2022,1246066,Barrie Bookkeeping & Payroll,Adult Social Care - Other Transfer Pay,Bi-Borough Director of Integrated Care,5754.04
30/06/2022,1246066,Barrie Bookkeeping & Payroll,Adult Social Care - Other Transfer Pay,Bi-Borough Director of Integrated Care,5914.56
30/06/2022,1250037,PERSONAL PAYMENTS,Adult Social Care - Other Transfer Pay,Bi-Borough Director of Integrated Care,2383.72
30/06/2022,1246066,Barrie Bookkeeping & Payroll,Adult Social Care - Other Transfer Pay,Bi-Borough Director of Integrated Care,1791.6
30/06/2022,1247727,PERSONAL PAYMENTS,Social Care - Direct Payments,Bi-Borough Director of Integrated Care,2740.72
30/06/2022,1248010,PERSONAL PAYMENTS,Adult Social Care - Other Transfer Pay,Bi-Borough Director of Integrated Care,634.88
30/06/2022,1248154,PERSONAL PAYMENTS,Adult Social Care - Other Transfer Pay,Bi-Borough Director of Integrated Care,829.52
30/06/2022,1278955,PERSONAL PAYMENTS,Social Care - Direct Payments,Bi-Borough Director of Integrated Care,1289.24
30/06/2022,1246066,Barrie Bookkeeping & Payroll,Adult Social Care - Other Transfer Pay,Bi-Borough Director of Integrated Care,2611.32
30/06/2022,1247820,PERSONAL PAYMENTS,Adult Social Care - Other Transfer Pay,Bi-Borough Director of Integrated Care,8751.04
30/06/2022,1254540,PERSONAL PAYMENTS,Adult Social Care - Other Transfer Pay,Bi-Borough Director of Integrated Care,939.92
30/06/2022,1249942,PERSONAL PAYMENTS,Adult Social Care - Other Transfer Pay,Bi-Borough Director of Integrated Care,6343.36
30/06/2022,1248148,PERSONAL PAYMENTS,Adult Social Care - Other Transfer Pay,Bi-Borough Director of Integrated Care,1638.96
30/06/2022,1246066,Barrie Bookkeeping & Payroll,Adult Social Care - Other Transfer Pay,Bi-Borough Director of Integrated Care,2585.32
30/06/2022,1246066,Barrie Bookkeeping & Payroll,Adult Social Care - Other Transfer Pay,Bi-Borough Director of Integrated Care,818
30/06/2022,1250074,PERSONAL PAYMENTS,Adult Social Care - Other Transfer Pay,Bi-Borough Director of Integrated Care,6904.8
30/06/2022,1250656,PERSONAL PAYMENTS,Social Care - Direct Payments,Bi-Borough Director of Integrated Care,1118.36
30/06/2022,1246066,Barrie Bookkeeping & Payroll,Adult Social Care - Other Transfer Pay,Bi-Borough Director of Integrated Care,4603.4
30/06/2022,1250627,PERSONAL PAYMENTS,Adult Social Care - Other Transfer Pay,Bi-Borough Director of Integrated Care,2508
30/06/2022,1250670,PERSONAL PAYMENTS,Adult Social Care - Other Transfer Pay,Bi-Borough Director of Integrated Care,1571.52
30/06/2022,1250044,PERSONAL PAYMENTS,Adult Social Care - Other Transfer Pay,Bi-Borough Director of Integrated Care,724.04
30/06/2022,1247804,PERSONAL PAYMENTS,Adult Social Care - Other Transfer Pay,Bi-Borough Director of Integrated Care,752.2
30/06/2022,1250138,PERSONAL PAYMENTS,Adult Social Care - Other Transfer Pay,Bi-Borough Director of Integrated Care,916
30/06/2022,1250186,PERSONAL PAYMENTS,Adult Social Care - Other Transfer Pay,Bi-Borough Director of Integrated Care,3121.48
30/06/2022,1272570,PERSONAL PAYMENTS,Adult Social Care - Other Transfer Pay,Bi-Borough Director of Integrated Care,1051.24
30/06/2022,1246066,Barrie Bookkeeping & Payroll,Adult Social Care - Other Transfer Pay,Bi-Borough Director of Integrated Care,1688.6
30/06/2022,1246066,Barrie Bookkeeping & Payroll,Adult Social Care - Other Transfer Pay,Bi-Borough Director of Integrated Care,733.8
30/06/2022,1250674,PERSONAL PAYMENTS,Adult Social Care - Other Transfer Pay,Bi-Borough Director of Integrated Care,2652.16
30/06/2022,1246066,Barrie Bookkeeping & Payroll,Adult Social Care - Other Transfer Pay,Bi-Borough Director of Integrated Care,843.96
30/06/2022,1246066,Barrie Bookkeeping & Payroll,Adult Social Care - Other Transfer Pay,Bi-Borough Director of Integrated Care,1164.6
27/04/2022,1258049,PSS (UK),,Bi-Borough Director of Integrated Care,2280.82
25/05/2022,1258049,PSS (UK),,Bi-Borough Director of Integrated Care,2660.96
22/06/2022,1258049,PSS (UK),,Bi-Borough Director of Integrated Care,2660.96
27/04/2022,1245021,Paradise Community,,Bi-Borough Director of Integrated Care,8926.87
25/05/2022,1245021,Paradise Community,,Bi-Borough Director of Integrated Care,10414.68
22/06/2022,1245021,Paradise Community,,Bi-Borough Director of Integrated Care,10414.68
27/04/2022,1250448,PERSONAL PAYMENTS,,Bi-Borough Director of Integrated Care,1216.49
25/05/2022,1250448,PERSONAL PAYMENTS,,Bi-Borough Director of Integrated Care,1419.24
22/06/2022,1250448,PERSONAL PAYMENTS,,Bi-Borough Director of Integrated Care,1419.24
27/04/2022,1245163,Poor Servants of the mother of,,Bi-Borough Director of Integrated Care,2467.61
25/05/2022,1245163,Poor Servants of the mother of,,Bi-Borough Director of Integrated Care,2878.88
22/06/2022,1245163,Poor Servants of the mother of,,Bi-Borough Director of Integrated Care,2878.88
27/04/2022,1245165,Precious Homes Ltd,,Bi-Borough Director of Integrated Care,2280
27/04/2022,1245165,Precious Homes Ltd,,Bi-Borough Director of Integrated Care,2280
25/05/2022,1245165,Precious Homes Ltd,,Bi-Borough Director of Integrated Care,2660
25/05/2022,1245165,Precious Homes Ltd,,Bi-Borough Director of Integrated Care,2660
22/06/2022,1245165,Precious Homes Ltd,,Bi-Borough Director of Integrated Care,2660
22/06/2022,1245165,Precious Homes Ltd,,Bi-Borough Director of Integrated Care,2660
25/04/2022,1248563,Pursuing Independent Paths,B*Voluntary-Spot-V Dep-Enhanced - do not u,Bi-Borough Director of Integrated Care,1531.32
25/04/2022,1248563,Pursuing Independent Paths,B*Voluntary-Spot-V Dep-Enhanced - do not u,Bi-Borough Director of Integrated Care,1276.1
25/04/2022,1248563,Pursuing Independent Paths,B*Voluntary-Spot-V Dep-Enhanced - do not u,Bi-Borough Director of Integrated Care,1531.32
25/04/2022,1248563,Pursuing Independent Paths,B*Voluntary-Spot-V Dep-Enhanced - do not u,Bi-Borough Director of Integrated Care,1786.54
25/04/2022,1248563,Pursuing Independent Paths,B*Voluntary-Spot-V Dep-Enhanced - do not u,Bi-Borough Director of Integrated Care,1289.32
25/04/2022,1248563,Pursuing Independent Paths,B*Voluntary-Spot-V Dep-Enhanced - do not u,Bi-Borough Director of Integrated Care,510.44
25/04/2022,1248563,Pursuing Independent Paths,B*Voluntary-Spot-V Dep-Enhanced - do not u,Bi-Borough Director of Integrated Care,1020.88
25/04/2022,1248563,Pursuing Independent Paths,B*Voluntary-Spot-V Dep-Enhanced - do not u,Bi-Borough Director of Integrated Care,1020.88
25/04/2022,1248563,Pursuing Independent Paths,B*Voluntary-Spot-V Dep-Enhanced - do not u,Bi-Borough Director of Integrated Care,2552.2
25/04/2022,1248563,Pursuing Independent Paths,B*Voluntary-Spot-V Dep-Enhanced - do not u,Bi-Borough Director of Integrated Care,1531.32
25/04/2022,1248563,Pursuing Independent Paths,B*Voluntary-Spot-V Dep-Enhanced - do not u,Bi-Borough Director of Integrated Care,1531.32
25/04/2022,1248563,Pursuing Independent Paths,B*Voluntary-Spot-V Dep-Enhanced - do not u,Bi-Borough Director of Integrated Care,1531.32
25/04/2022,1248563,Pursuing Independent Paths,B*Voluntary-Spot-V Dep-Enhanced - do not u,Bi-Borough Director of Integrated Care,510.44
25/04/2022,1248563,Pursuing Independent Paths,B*Voluntary-Spot-V Dep-Enhanced - do not u,Bi-Borough Director of Integrated Care,1020.88
25/04/2022,1248563,Pursuing Independent Paths,B*Voluntary-Spot-V Dep-Enhanced - do not u,Bi-Borough Director of Integrated Care,1531.32
25/04/2022,1248563,Pursuing Independent Paths,B*Voluntary-Spot-V Dep-Enhanced - do not u,Bi-Borough Director of Integrated Care,1276.1
25/04/2022,1248563,Pursuing Independent Paths,B*Voluntary-Spot-V Dep-Enhanced - do not u,Bi-Borough Director of Integrated Care,2552.2
25/04/2022,1248563,Pursuing Independent Paths,B*Voluntary-Spot-V Dep-Enhanced - do not u,Bi-Borough Director of Integrated Care,1531.32
25/04/2022,1248563,Pursuing Independent Paths,B*Voluntary-Spot-V Dep-Enhanced - do not u,Bi-Borough Director of Integrated Care,1531.32
25/04/2022,1248563,Pursuing Independent Paths,B*Voluntary-Spot-V Dep-Enhanced - do not u,Bi-Borough Director of Integrated Care,1531.32
25/04/2022,1248563,Pursuing Independent Paths,B*Voluntary-Spot-V Dep-Enhanced - do not u,Bi-Borough Director of Integrated Care,1531.32
25/04/2022,1248563,Pursuing Independent Paths,B*Voluntary-Spot-V Dep-Enhanced - do not u,Bi-Borough Director of Integrated Care,510.44
25/04/2022,1248563,Pursuing Independent Paths,B*Voluntary-Spot-V Dep-Enhanced - do not u,Bi-Borough Director of Integrated Care,1020.88
25/04/2022,1248563,Pursuing Independent Paths,B*Voluntary-Spot-V Dep-Enhanced - do not u,Bi-Borough Director of Integrated Care,1276.1
25/04/2022,1248563,Pursuing Independent Paths,B*Voluntary-Spot-V Dep-Enhanced - do not u,Bi-Borough Director of Integrated Care,510.44
25/04/2022,1248563,Pursuing Independent Paths,B*Voluntary-Spot-V Dep-Enhanced - do not u,Bi-Borough Director of Integrated Care,1252.72
25/04/2022,1248563,Pursuing Independent Paths,B*Voluntary-Spot-V Dep-Enhanced - do not u,Bi-Borough Director of Integrated Care,510.44
25/04/2022,1248563,Pursuing Independent Paths,B*Voluntary-Spot-V Dep-Enhanced - do not u,Bi-Borough Director of Integrated Care,510.44
25/04/2022,1248563,Pursuing Independent Paths,B*Voluntary-Spot-V Dep-Enhanced - do not u,Bi-Borough Director of Integrated Care,1879.08
25/04/2022,1248563,Pursuing Independent Paths,B*Voluntary-Spot-V Dep-Enhanced - do not u,Bi-Borough Director of Integrated Care,510.44
25/04/2022,1248563,Pursuing Independent Paths,B*Voluntary-Spot-V Dep-Enhanced - do not u,Bi-Borough Director of Integrated Care,510.44
25/04/2022,1248563,Pursuing Independent Paths,B*Voluntary-Spot-V Dep-Enhanced - do not u,Bi-Borough Director of Integrated Care,1020.88
25/04/2022,1248563,Pursuing Independent Paths,B*Voluntary-Spot-V Dep-Enhanced - do not u,Bi-Borough Director of Integrated Care,546.9
25/04/2022,1248563,Pursuing Independent Paths,B*Voluntary-Spot-V Dep-Enhanced - do not u,Bi-Borough Director of Integrated Care,583.36
25/04/2022,1248563,Pursuing Independent Paths,B*Voluntary-Spot-V Dep-Enhanced - do not u,Bi-Borough Director of Integrated Care,510.44
25/04/2022,1248563,Pursuing Independent Paths,B*Voluntary-Spot-V Dep-Enhanced - do not u,Bi-Borough Director of Integrated Care,1531.32
25/04/2022,1248563,Pursuing Independent Paths,B*Voluntary-Spot-V Dep-Enhanced - do not u,Bi-Borough Director of Integrated Care,2041.76
25/04/2022,1248563,Pursuing Independent Paths,B*Voluntary-Spot-V Dep-Enhanced - do not u,Bi-Borough Director of Integrated Care,1531.32
25/04/2022,1248563,Pursuing Independent Paths,B*Voluntary-Spot-V Dep-Enhanced - do not u,Bi-Borough Director of Integrated Care,1531.32
25/04/2022,1248563,Pursuing Independent Paths,B*Voluntary-Spot-V Dep-Enhanced - do not u,Bi-Borough Director of Integrated Care,1531.32
23/05/2022,1248563,Pursuing Independent Paths,B*Voluntary-Spot-V Dep-Enhanced - do not u,Bi-Borough Director of Integrated Care,1531.32
23/05/2022,1248563,Pursuing Independent Paths,B*Voluntary-Spot-V Dep-Enhanced - do not u,Bi-Borough Director of Integrated Care,1276.1
23/05/2022,1248563,Pursuing Independent Paths,B*Voluntary-Spot-V Dep-Enhanced - do not u,Bi-Borough Director of Integrated Care,1531.32
23/05/2022,1248563,Pursuing Independent Paths,B*Voluntary-Spot-V Dep-Enhanced - do not u,Bi-Borough Director of Integrated Care,1786.54
23/05/2022,1248563,Pursuing Independent Paths,B*Voluntary-Spot-V Dep-Enhanced - do not u,Bi-Borough Director of Integrated Care,1289.32
23/05/2022,1248563,Pursuing Independent Paths,B*Voluntary-Spot-V Dep-Enhanced - do not u,Bi-Borough Director of Integrated Care,510.44
23/05/2022,1248563,Pursuing Independent Paths,B*Voluntary-Spot-V Dep-Enhanced - do not u,Bi-Borough Director of Integrated Care,1020.88
23/05/2022,1248563,Pursuing Independent Paths,B*Voluntary-Spot-V Dep-Enhanced - do not u,Bi-Borough Director of Integrated Care,1020.88
23/05/2022,1248563,Pursuing Independent Paths,B*Voluntary-Spot-V Dep-Enhanced - do not u,Bi-Borough Director of Integrated Care,2552.2
23/05/2022,1248563,Pursuing Independent Paths,B*Voluntary-Spot-V Dep-Enhanced - do not u,Bi-Borough Director of Integrated Care,1531.32
23/05/2022,1248563,Pursuing Independent Paths,B*Voluntary-Spot-V Dep-Enhanced - do not u,Bi-Borough Director of Integrated Care,1531.32
23/05/2022,1248563,Pursuing Independent Paths,B*Voluntary-Spot-V Dep-Enhanced - do not u,Bi-Borough Director of Integrated Care,1531.32
23/05/2022,1248563,Pursuing Independent Paths,B*Voluntary-Spot-V Dep-Enhanced - do not u,Bi-Borough Director of Integrated Care,510.44
23/05/2022,1248563,Pursuing Independent Paths,B*Voluntary-Spot-V Dep-Enhanced - do not u,Bi-Borough Director of Integrated Care,1020.88
23/05/2022,1248563,Pursuing Independent Paths,B*Voluntary-Spot-V Dep-Enhanced - do not u,Bi-Borough Director of Integrated Care,1531.32
23/05/2022,1248563,Pursuing Independent Paths,B*Voluntary-Spot-V Dep-Enhanced - do not u,Bi-Borough Director of Integrated Care,1276.1
23/05/2022,1248563,Pursuing Independent Paths,B*Voluntary-Spot-V Dep-Enhanced - do not u,Bi-Borough Director of Integrated Care,2552.2
23/05/2022,1248563,Pursuing Independent Paths,B*Voluntary-Spot-V Dep-Enhanced - do not u,Bi-Borough Director of Integrated Care,1531.32
23/05/2022,1248563,Pursuing Independent Paths,B*Voluntary-Spot-V Dep-Enhanced - do not u,Bi-Borough Director of Integrated Care,1531.32
23/05/2022,1248563,Pursuing Independent Paths,B*Voluntary-Spot-V Dep-Enhanced - do not u,Bi-Borough Director of Integrated Care,1531.32
23/05/2022,1248563,Pursuing Independent Paths,B*Voluntary-Spot-V Dep-Enhanced - do not u,Bi-Borough Director of Integrated Care,1531.32
23/05/2022,1248563,Pursuing Independent Paths,B*Voluntary-Spot-V Dep-Enhanced - do not u,Bi-Borough Director of Integrated Care,510.44
23/05/2022,1248563,Pursuing Independent Paths,B*Voluntary-Spot-V Dep-Enhanced - do not u,Bi-Borough Director of Integrated Care,1020.88
23/05/2022,1248563,Pursuing Independent Paths,B*Voluntary-Spot-V Dep-Enhanced - do not u,Bi-Borough Director of Integrated Care,1276.1
23/05/2022,1248563,Pursuing Independent Paths,B*Voluntary-Spot-V Dep-Enhanced - do not u,Bi-Borough Director of Integrated Care,510.44
23/05/2022,1248563,Pursuing Independent Paths,B*Voluntary-Spot-V Dep-Enhanced - do not u,Bi-Borough Director of Integrated Care,1252.72
23/05/2022,1248563,Pursuing Independent Paths,B*Voluntary-Spot-V Dep-Enhanced - do not u,Bi-Borough Director of Integrated Care,510.44
23/05/2022,1248563,Pursuing Independent Paths,B*Voluntary-Spot-V Dep-Enhanced - do not u,Bi-Borough Director of Integrated Care,510.44
23/05/2022,1248563,Pursuing Independent Paths,B*Voluntary-Spot-V Dep-Enhanced - do not u,Bi-Borough Director of Integrated Care,1879.08
23/05/2022,1248563,Pursuing Independent Paths,B*Voluntary-Spot-V Dep-Enhanced - do not u,Bi-Borough Director of Integrated Care,510.44
23/05/2022,1248563,Pursuing Independent Paths,B*Voluntary-Spot-V Dep-Enhanced - do not u,Bi-Borough Director of Integrated Care,510.44
23/05/2022,1248563,Pursuing Independent Paths,B*Voluntary-Spot-V Dep-Enhanced - do not u,Bi-Borough Director of Integrated Care,1020.88
23/05/2022,1248563,Pursuing Independent Paths,B*Voluntary-Spot-V Dep-Enhanced - do not u,Bi-Borough Director of Integrated Care,546.9
23/05/2022,1248563,Pursuing Independent Paths,B*Voluntary-Spot-V Dep-Enhanced - do not u,Bi-Borough Director of Integrated Care,583.36
23/05/2022,1248563,Pursuing Independent Paths,B*Voluntary-Spot-V Dep-Enhanced - do not u,Bi-Borough Director of Integrated Care,510.44
23/05/2022,1248563,Pursuing Independent Paths,B*Voluntary-Spot-V Dep-Enhanced - do not u,Bi-Borough Director of Integrated Care,1531.32
23/05/2022,1248563,Pursuing Independent Paths,B*Voluntary-Spot-V Dep-Enhanced - do not u,Bi-Borough Director of Integrated Care,2041.76
23/05/2022,1248563,Pursuing Independent Paths,B*Voluntary-Spot-V Dep-Enhanced - do not u,Bi-Borough Director of Integrated Care,1531.32
23/05/2022,1248563,Pursuing Independent Paths,B*Voluntary-Spot-V Dep-Enhanced - do not u,Bi-Borough Director of Integrated Care,1531.32
23/05/2022,1248563,Pursuing Independent Paths,B*Voluntary-Spot-V Dep-Enhanced - do not u,Bi-Borough Director of Integrated Care,1531.32
28/06/2022,1248563,Pursuing Independent Paths,B*Voluntary-Spot-V Dep-Enhanced - do not u,Bi-Borough Director of Integrated Care,1020.88
28/06/2022,1248563,Pursuing Independent Paths,B*Voluntary-Spot-V Dep-Enhanced - do not u,Bi-Borough Director of Integrated Care,1276.1
28/06/2022,1248563,Pursuing Independent Paths,B*Voluntary-Spot-V Dep-Enhanced - do not u,Bi-Borough Director of Integrated Care,1531.32
28/06/2022,1248563,Pursuing Independent Paths,B*Voluntary-Spot-V Dep-Enhanced - do not u,Bi-Borough Director of Integrated Care,1786.54
28/06/2022,1248563,Pursuing Independent Paths,B*Voluntary-Spot-V Dep-Enhanced - do not u,Bi-Borough Director of Integrated Care,1289.32
28/06/2022,1248563,Pursuing Independent Paths,B*Voluntary-Spot-V Dep-Enhanced - do not u,Bi-Borough Director of Integrated Care,510.44
28/06/2022,1248563,Pursuing Independent Paths,B*Voluntary-Spot-V Dep-Enhanced - do not u,Bi-Borough Director of Integrated Care,1020.88
28/06/2022,1248563,Pursuing Independent Paths,B*Voluntary-Spot-V Dep-Enhanced - do not u,Bi-Borough Director of Integrated Care,1020.88
28/06/2022,1248563,Pursuing Independent Paths,B*Voluntary-Spot-V Dep-Enhanced - do not u,Bi-Borough Director of Integrated Care,2552.2
28/06/2022,1248563,Pursuing Independent Paths,B*Voluntary-Spot-V Dep-Enhanced - do not u,Bi-Borough Director of Integrated Care,1531.32
28/06/2022,1248563,Pursuing Independent Paths,B*Voluntary-Spot-V Dep-Enhanced - do not u,Bi-Borough Director of Integrated Care,1531.32
28/06/2022,1248563,Pursuing Independent Paths,B*Voluntary-Spot-V Dep-Enhanced - do not u,Bi-Borough Director of Integrated Care,1531.32
28/06/2022,1248563,Pursuing Independent Paths,B*Voluntary-Spot-V Dep-Enhanced - do not u,Bi-Borough Director of Integrated Care,510.44
28/06/2022,1248563,Pursuing Independent Paths,B*Voluntary-Spot-V Dep-Enhanced - do not u,Bi-Borough Director of Integrated Care,1020.88
28/06/2022,1248563,Pursuing Independent Paths,B*Voluntary-Spot-V Dep-Enhanced - do not u,Bi-Borough Director of Integrated Care,1531.32
28/06/2022,1248563,Pursuing Independent Paths,B*Voluntary-Spot-V Dep-Enhanced - do not u,Bi-Borough Director of Integrated Care,1276.1
28/06/2022,1248563,Pursuing Independent Paths,B*Voluntary-Spot-V Dep-Enhanced - do not u,Bi-Borough Director of Integrated Care,2552.2
28/06/2022,1248563,Pursuing Independent Paths,B*Voluntary-Spot-V Dep-Enhanced - do not u,Bi-Borough Director of Integrated Care,1531.32
28/06/2022,1248563,Pursuing Independent Paths,B*Voluntary-Spot-V Dep-Enhanced - do not u,Bi-Borough Director of Integrated Care,1531.32
28/06/2022,1248563,Pursuing Independent Paths,B*Voluntary-Spot-V Dep-Enhanced - do not u,Bi-Borough Director of Integrated Care,1531.32
28/06/2022,1248563,Pursuing Independent Paths,B*Voluntary-Spot-V Dep-Enhanced - do not u,Bi-Borough Director of Integrated Care,1531.32
28/06/2022,1248563,Pursuing Independent Paths,B*Voluntary-Spot-V Dep-Enhanced - do not u,Bi-Borough Director of Integrated Care,510.44
28/06/2022,1248563,Pursuing Independent Paths,B*Voluntary-Spot-V Dep-Enhanced - do not u,Bi-Borough Director of Integrated Care,1020.88
28/06/2022,1248563,Pursuing Independent Paths,B*Voluntary-Spot-V Dep-Enhanced - do not u,Bi-Borough Director of Integrated Care,1276.1
28/06/2022,1248563,Pursuing Independent Paths,B*Voluntary-Spot-V Dep-Enhanced - do not u,Bi-Borough Director of Integrated Care,510.44
28/06/2022,1248563,Pursuing Independent Paths,B*Voluntary-Spot-V Dep-Enhanced - do not u,Bi-Borough Director of Integrated Care,1252.72
28/06/2022,1248563,Pursuing Independent Paths,B*Voluntary-Spot-V Dep-Enhanced - do not u,Bi-Borough Director of Integrated Care,510.44
28/06/2022,1248563,Pursuing Independent Paths,B*Voluntary-Spot-V Dep-Enhanced - do not u,Bi-Borough Director of Integrated Care,510.44
28/06/2022,1248563,Pursuing Independent Paths,B*Voluntary-Spot-V Dep-Enhanced - do not u,Bi-Borough Director of Integrated Care,1879.08
28/06/2022,1248563,Pursuing Independent Paths,B*Voluntary-Spot-V Dep-Enhanced - do not u,Bi-Borough Director of Integrated Care,510.44
28/06/2022,1248563,Pursuing Independent Paths,B*Voluntary-Spot-V Dep-Enhanced - do not u,Bi-Borough Director of Integrated Care,510.44
28/06/2022,1248563,Pursuing Independent Paths,B*Voluntary-Spot-V Dep-Enhanced - do not u,Bi-Borough Director of Integrated Care,1020.88
28/06/2022,1248563,Pursuing Independent Paths,B*Voluntary-Spot-V Dep-Enhanced - do not u,Bi-Borough Director of Integrated Care,546.9
28/06/2022,1248563,Pursuing Independent Paths,B*Voluntary-Spot-V Dep-Enhanced - do not u,Bi-Borough Director of Integrated Care,583.36
28/06/2022,1248563,Pursuing Independent Paths,B*Voluntary-Spot-V Dep-Enhanced - do not u,Bi-Borough Director of Integrated Care,510.44
28/06/2022,1248563,Pursuing Independent Paths,B*Voluntary-Spot-V Dep-Enhanced - do not u,Bi-Borough Director of Integrated Care,1531.32
28/06/2022,1248563,Pursuing Independent Paths,B*Voluntary-Spot-V Dep-Enhanced - do not u,Bi-Borough Director of Integrated Care,2041.76
28/06/2022,1248563,Pursuing Independent Paths,B*Voluntary-Spot-V Dep-Enhanced - do not u,Bi-Borough Director of Integrated Care,2041.76
28/06/2022,1248563,Pursuing Independent Paths,B*Voluntary-Spot-V Dep-Enhanced - do not u,Bi-Borough Director of Integrated Care,1531.32
28/06/2022,1248563,Pursuing Independent Paths,B*Voluntary-Spot-V Dep-Enhanced - do not u,Bi-Borough Director of Integrated Care,1531.32
28/06/2022,1248563,Pursuing Independent Paths,B*Voluntary-Spot-V Dep-Enhanced - do not u,Bi-Borough Director of Integrated Care,1531.32
27/04/2022,1245169,Rcp Residential Care Providers Ltd,,Bi-Borough Director of Integrated Care,5500.9
27/04/2022,1245169,Rcp Residential Care Providers Ltd,,Bi-Borough Director of Integrated Care,797.97
25/05/2022,1245169,Rcp Residential Care Providers Ltd,,Bi-Borough Director of Integrated Care,930.96
25/05/2022,1245169,Rcp Residential Care Providers Ltd,,Bi-Borough Director of Integrated Care,6417.72
22/06/2022,1245169,Rcp Residential Care Providers Ltd,,Bi-Borough Director of Integrated Care,6967.78
22/06/2022,1245169,Rcp Residential Care Providers Ltd,,Bi-Borough Director of Integrated Care,930.96
27/04/2022,1269718,Reliant Care Limited,,Bi-Borough Director of Integrated Care,3181.71
27/04/2022,1269718,Reliant Care Limited,,Bi-Borough Director of Integrated Care,3181.71
27/04/2022,1269718,Reliant Care Limited,,Bi-Borough Director of Integrated Care,4392
27/04/2022,1269718,Reliant Care Limited,,Bi-Borough Director of Integrated Care,10228.8
25/05/2022,1269718,Reliant Care Limited,,Bi-Borough Director of Integrated Care,3712
25/05/2022,1269718,Reliant Care Limited,,Bi-Borough Director of Integrated Care,3712
25/05/2022,1269718,Reliant Care Limited,,Bi-Borough Director of Integrated Care,5124
25/05/2022,1269718,Reliant Care Limited,,Bi-Borough Director of Integrated Care,11933.6
22/06/2022,1269718,Reliant Care Limited,,Bi-Borough Director of Integrated Care,11933.6
22/06/2022,1269718,Reliant Care Limited,,Bi-Borough Director of Integrated Care,6757.71
22/06/2022,1269718,Reliant Care Limited,,Bi-Borough Director of Integrated Care,5124
22/06/2022,1269718,Reliant Care Limited,,Bi-Borough Director of Integrated Care,3712
22/06/2022,1269718,Reliant Care Limited,,Bi-Borough Director of Integrated Care,3712
08/04/2022,1245316,Respect Care Services Ltd,,Bi-Borough Director of Integrated Care,1543.76
05/05/2022,1245316,Respect Care Services Ltd,,Bi-Borough Director of Integrated Care,1543.76
17/05/2022,1245316,Respect Care Services Ltd,,Bi-Borough Director of Integrated Care,1543.76
23/05/2022,1245316,Respect Care Services Ltd,,Bi-Borough Director of Integrated Care,1493.42
06/06/2022,1245316,Respect Care Services Ltd,,Bi-Borough Director of Integrated Care,1543.76
01/04/2022,1251196,Royal Borough of Kensington and,Rent,Bi-Borough Director of Integrated Care,13768.54
21/06/2022,1248843,Sage Care Ltd,,Bi-Borough Director of Integrated Care,664.08
21/06/2022,1248843,Sage Care Ltd,,Bi-Borough Director of Integrated Care,1618.92
21/06/2022,1248843,Sage Care Ltd,,Bi-Borough Director of Integrated Care,1500.31
21/06/2022,1248843,Sage Care Ltd,,Bi-Borough Director of Integrated Care,507.72
21/06/2022,1248843,Sage Care Ltd,,Bi-Borough Director of Integrated Care,1447.41
21/06/2022,1248843,Sage Care Ltd,,Bi-Borough Director of Integrated Care,528.78
21/06/2022,1248843,Sage Care Ltd,,Bi-Borough Director of Integrated Care,1667.72
21/06/2022,1248843,Sage Care Ltd,,Bi-Borough Director of Integrated Care,1541.39
21/06/2022,1248843,Sage Care Ltd,,Bi-Borough Director of Integrated Care,505.3
21/06/2022,1248843,Sage Care Ltd,,Bi-Borough Director of Integrated Care,1657.84
21/06/2022,1248843,Sage Care Ltd,,Bi-Borough Director of Integrated Care,1465.99
21/06/2022,1248843,Sage Care Ltd,,Bi-Borough Director of Integrated Care,1497.76
21/06/2022,1248843,Sage Care Ltd,,Bi-Borough Director of Integrated Care,518.84
21/06/2022,1248843,Sage Care Ltd,,Bi-Borough Director of Integrated Care,1421.49
07/04/2022,1262057,Sense - The National Deafbllind,,Bi-Borough Director of Integrated Care,1166.72
27/04/2022,1262057,Sense - The National Deafbllind,,Bi-Borough Director of Integrated Care,3900
27/04/2022,1262057,Sense - The National Deafbllind,,Bi-Borough Director of Integrated Care,3900
25/05/2022,1262057,Sense - The National Deafbllind,,Bi-Borough Director of Integrated Care,4550
25/05/2022,1262057,Sense - The National Deafbllind,,Bi-Borough Director of Integrated Care,4550
22/06/2022,1262057,Sense - The National Deafbllind,,Bi-Borough Director of Integrated Care,4550
22/06/2022,1262057,Sense - The National Deafbllind,,Bi-Borough Director of Integrated Care,4550
27/04/2022,1243535,Sequence Care Ltd,,Bi-Borough Director of Integrated Care,8718.45
27/04/2022,1243535,Sequence Care Ltd,,Bi-Borough Director of Integrated Care,8718.45
27/04/2022,1243535,Sequence Care Ltd,,Bi-Borough Director of Integrated Care,14577.84
25/05/2022,1243535,Sequence Care Ltd,,Bi-Borough Director of Integrated Care,10171.52
25/05/2022,1243535,Sequence Care Ltd,,Bi-Borough Director of Integrated Care,10171.52
25/05/2022,1243535,Sequence Care Ltd,,Bi-Borough Director of Integrated Care,17007.48
22/06/2022,1243535,Sequence Care Ltd,,Bi-Borough Director of Integrated Care,10171.52
22/06/2022,1243535,Sequence Care Ltd,,Bi-Borough Director of Integrated Care,10171.52
22/06/2022,1243535,Sequence Care Ltd,,Bi-Borough Director of Integrated Care,17007.48
27/04/2022,1243536,Sharda Care Ltd,,Bi-Borough Director of Integrated Care,5571.43
25/05/2022,1243536,Sharda Care Ltd,,Bi-Borough Director of Integrated Care,6500
22/06/2022,1243536,Sharda Care Ltd,,Bi-Borough Director of Integrated Care,6500
27/04/2022,1245566,Shaw Care Uk Ltd,,Bi-Borough Director of Integrated Care,2797.71
27/04/2022,1245566,Shaw Care Uk Ltd,,Bi-Borough Director of Integrated Care,2797.71
25/05/2022,1245566,Shaw Care Uk Ltd,,Bi-Borough Director of Integrated Care,3264
25/05/2022,1245566,Shaw Care Uk Ltd,,Bi-Borough Director of Integrated Care,3264
22/06/2022,1245566,Shaw Care Uk Ltd,,Bi-Borough Director of Integrated Care,3264
22/06/2022,1245566,Shaw Care Uk Ltd,,Bi-Borough Director of Integrated Care,3264
27/04/2022,1248935,Southside Partnership,,Bi-Borough Director of Integrated Care,685.71
27/04/2022,1248935,Southside Partnership,,Bi-Borough Director of Integrated Care,2182.87
27/04/2022,1248935,Southside Partnership,,Bi-Borough Director of Integrated Care,3079.54
27/04/2022,1248935,Southside Partnership,,Bi-Borough Director of Integrated Care,685.71
25/05/2022,1248935,Southside Partnership,,Bi-Borough Director of Integrated Care,2546.68
25/05/2022,1248935,Southside Partnership,,Bi-Borough Director of Integrated Care,800
25/05/2022,1248935,Southside Partnership,,Bi-Borough Director of Integrated Care,3592.8
25/05/2022,1248935,Southside Partnership,,Bi-Borough Director of Integrated Care,800
22/06/2022,1248935,Southside Partnership,,Bi-Borough Director of Integrated Care,800
22/06/2022,1248935,Southside Partnership,,Bi-Borough Director of Integrated Care,2546.68
22/06/2022,1248935,Southside Partnership,,Bi-Borough Director of Integrated Care,3592.8
22/06/2022,1248935,Southside Partnership,,Bi-Borough Director of Integrated Care,800
07/04/2022,1248940,Special People,B*Voluntary-Spot-V Dep-Enhanced - do not u,Bi-Borough Director of Integrated Care,3822.54
07/04/2022,1248940,Special People,B*Voluntary-Spot-V Dep-Enhanced - do not u,Bi-Borough Director of Integrated Care,677.52
07/04/2022,1248940,Special People,B*Voluntary-Spot-V Dep-Enhanced - do not u,Bi-Borough Director of Integrated Care,1855.38
07/04/2022,1248940,Special People,B*Voluntary-Spot-V Dep-Enhanced - do not u,Bi-Borough Director of Integrated Care,710.28
12/05/2022,1248940,Special People,B*Voluntary-Spot-V Dep-Enhanced - do not u,Bi-Borough Director of Integrated Care,1456.74
12/05/2022,1248940,Special People,B*Voluntary-Spot-V Dep-Enhanced - do not u,Bi-Borough Director of Integrated Care,1743.6
12/05/2022,1248940,Special People,B*Voluntary-Spot-V Dep-Enhanced - do not u,Bi-Borough Director of Integrated Care,1005.12
12/05/2022,1248940,Special People,B*Voluntary-Spot-V Dep-Enhanced - do not u,Bi-Borough Director of Integrated Care,4078.11
07/06/2022,1248940,Special People,,Bi-Borough Director of Integrated Care,3602.18
07/06/2022,1248940,Special People,B*Voluntary-Spot-V Dep-Enhanced - do not u,Bi-Borough Director of Integrated Care,1059.84
07/06/2022,1248940,Special People,B*Voluntary-Spot-V Dep-Enhanced - do not u,Bi-Borough Director of Integrated Care,3755.43
27/04/2022,1245620,Spencer & Arlington,,Bi-Borough Director of Integrated Care,2208
27/04/2022,1245620,Spencer & Arlington,,Bi-Borough Director of Integrated Care,6627.6
27/04/2022,1245620,Spencer & Arlington,,Bi-Borough Director of Integrated Care,12835.2
27/04/2022,1245620,Spencer & Arlington,,Bi-Borough Director of Integrated Care,3192.48
25/05/2022,1245620,Spencer & Arlington,,Bi-Borough Director of Integrated Care,2576
25/05/2022,1245620,Spencer & Arlington,,Bi-Borough Director of Integrated Care,6627.6
25/05/2022,1245620,Spencer & Arlington,,Bi-Borough Director of Integrated Care,12835.2
25/05/2022,1245620,Spencer & Arlington,,Bi-Borough Director of Integrated Care,3724.56
22/06/2022,1245620,Spencer & Arlington,,Bi-Borough Director of Integrated Care,3724.56
22/06/2022,1245620,Spencer & Arlington,,Bi-Borough Director of Integrated Care,12835.2
22/06/2022,1245620,Spencer & Arlington,,Bi-Borough Director of Integrated Care,6627.6
22/06/2022,1245620,Spencer & Arlington,,Bi-Borough Director of Integrated Care,2576
27/04/2022,1243543,Springlake Care Home Ltd,,Bi-Borough Director of Integrated Care,5142.86
27/04/2022,1243543,Springlake Care Home Ltd,,Bi-Borough Director of Integrated Care,5828.57
27/04/2022,1243543,Springlake Care Home Ltd,,Bi-Borough Director of Integrated Care,4628.57
25/05/2022,1243543,Springlake Care Home Ltd,,Bi-Borough Director of Integrated Care,6000
25/05/2022,1243543,Springlake Care Home Ltd,,Bi-Borough Director of Integrated Care,6800
25/05/2022,1243543,Springlake Care Home Ltd,,Bi-Borough Director of Integrated Care,5400
22/06/2022,1243543,Springlake Care Home Ltd,,Bi-Borough Director of Integrated Care,6000
22/06/2022,1243543,Springlake Care Home Ltd,,Bi-Borough Director of Integrated Care,6800
22/06/2022,1243543,Springlake Care Home Ltd,,Bi-Borough Director of Integrated Care,5400
27/04/2022,1248948,St Davids Care In The Community,,Bi-Borough Director of Integrated Care,2948.57
27/04/2022,1248948,St Davids Care In The Community,,Bi-Borough Director of Integrated Care,2685.05
25/05/2022,1248948,St Davids Care In The Community,,Bi-Borough Director of Integrated Care,3132.56
25/05/2022,1248948,St Davids Care In The Community,,Bi-Borough Director of Integrated Care,3440
22/06/2022,1248948,St Davids Care In The Community,,Bi-Borough Director of Integrated Care,3440
22/06/2022,1248948,St Davids Care In The Community,,Bi-Borough Director of Integrated Care,3132.56
04/04/2022,1245825,Sweet Tree Home Care Services,,Bi-Borough Director of Integrated Care,4340
06/04/2022,1245825,Sweet Tree Home Care Services,,Bi-Borough Director of Integrated Care,4818.2
06/05/2022,1245825,Sweet Tree Home Care Services,,Bi-Borough Director of Integrated Care,5563.81
26/05/2022,1245825,Sweet Tree Home Care Services,,Bi-Borough Director of Integrated Care,559
21/06/2022,1245825,Sweet Tree Home Care Services,,Bi-Borough Director of Integrated Care,4692.5
30/06/2022,1245825,Sweet Tree Home Care Services,,Bi-Borough Director of Integrated Care,5518.07
27/04/2022,1245900,The Grace Eyre Foundation,,Bi-Borough Director of Integrated Care,3630.82
27/04/2022,1245900,The Grace Eyre Foundation,,Bi-Borough Director of Integrated Care,2820.14
25/05/2022,1245900,The Grace Eyre Foundation,,Bi-Borough Director of Integrated Care,4235.96
25/05/2022,1245900,The Grace Eyre Foundation,,Bi-Borough Director of Integrated Care,3290.16
22/06/2022,1245900,The Grace Eyre Foundation,,Bi-Borough Director of Integrated Care,3290.16
22/06/2022,1245900,The Grace Eyre Foundation,,Bi-Borough Director of Integrated Care,4235.96
27/04/2022,1249156,The Wirral Autistic Society,,Bi-Borough Director of Integrated Care,3734.26
25/05/2022,1249156,The Wirral Autistic Society,,Bi-Borough Director of Integrated Care,16534.25
25/05/2022,1249156,The Wirral Autistic Society,Client Contributions - Residential OLA,Bi-Borough Director of Integrated Care,5920.27
22/06/2022,1249156,The Wirral Autistic Society,,Bi-Borough Director of Integrated Care,5097.28
27/04/2022,1246095,Theana Ltd T/a Enlighten Homes,,Bi-Borough Director of Integrated Care,5050.29
25/05/2022,1246095,Theana Ltd T/a Enlighten Homes,,Bi-Borough Director of Integrated Care,5892
22/06/2022,1246095,Theana Ltd T/a Enlighten Homes,,Bi-Borough Director of Integrated Care,5892
27/04/2022,1287640,VIVID COMMUNITY CARE LTD,,Bi-Borough Director of Integrated Care,14820.48
25/05/2022,1287640,VIVID COMMUNITY CARE LTD,,Bi-Borough Director of Integrated Care,17290.56
22/06/2022,1287640,VIVID COMMUNITY CARE LTD,,Bi-Borough Director of Integrated Care,17290.56
27/04/2022,1243552,Vision Homes Association,,Bi-Borough Director of Integrated Care,6651.43
25/05/2022,1243552,Vision Homes Association,,Bi-Borough Director of Integrated Care,7760
22/06/2022,1243552,Vision Homes Association,,Bi-Borough Director of Integrated Care,7760
27/04/2022,1243553,Voyage Care (Bridge House),,Bi-Borough Director of Integrated Care,5337.6
27/04/2022,1243553,Voyage Care (Bridge House),,Bi-Borough Director of Integrated Care,5680.29
27/04/2022,1243553,Voyage Care (Bridge House),,Bi-Borough Director of Integrated Care,5706.03
25/05/2022,1243553,Voyage Care (Bridge House),,Bi-Borough Director of Integrated Care,5064.28
25/05/2022,1243553,Voyage Care (Bridge House),,Bi-Borough Director of Integrated Care,6627
25/05/2022,1243553,Voyage Care (Bridge House),,Bi-Borough Director of Integrated Care,7027.95
22/06/2022,1243553,Voyage Care (Bridge House),,Bi-Borough Director of Integrated Care,7807.73
22/06/2022,1243553,Voyage Care (Bridge House),,Bi-Borough Director of Integrated Care,5336.01
22/06/2022,1243553,Voyage Care (Bridge House),,Bi-Borough Director of Integrated Care,6627
27/04/2022,1243554,Voyage Care (Kenton House),,Bi-Borough Director of Integrated Care,4979.97
25/05/2022,1243554,Voyage Care (Kenton House),,Bi-Borough Director of Integrated Care,7870.71
22/06/2022,1243554,Voyage Care (Kenton House),,Bi-Borough Director of Integrated Care,6591.96
01/04/2022,1249291,Westminster Society,Rent,Bi-Borough Director of Integrated Care,9122.37
01/04/2022,1249291,Westminster Society,Rent,Bi-Borough Director of Integrated Care,6732.27
01/04/2022,1249291,Westminster Society,Rent,Bi-Borough Director of Integrated Care,7607.85
12/04/2022,1249291,Westminster Society,Hired and Contracted Services,Bi-Borough Director of Integrated Care,386583
25/04/2022,1249291,Westminster Society,B*Voluntary-Spot-V Dep-Enhanced - do not u,Bi-Borough Director of Integrated Care,952
25/04/2022,1249291,Westminster Society,B*Voluntary-Spot-V Dep-Enhanced - do not u,Bi-Borough Director of Integrated Care,544
25/04/2022,1249291,Westminster Society,B*Voluntary-Spot-V Dep-Enhanced - do not u,Bi-Borough Director of Integrated Care,544
25/04/2022,1249291,Westminster Society,B*Voluntary-Spot-V Dep-Enhanced - do not u,Bi-Borough Director of Integrated Care,680
25/04/2022,1249291,Westminster Society,B*Voluntary-Spot-V Dep-Enhanced - do not u,Bi-Borough Director of Integrated Care,544
25/04/2022,1249291,Westminster Society,B*Voluntary-Spot-V Dep-Enhanced - do not u,Bi-Borough Director of Integrated Care,544
25/04/2022,1249291,Westminster Society,B*Voluntary-Spot-V Dep-Enhanced - do not u,Bi-Borough Director of Integrated Care,884
25/04/2022,1249291,Westminster Society,B*Voluntary-Spot-V Dep-Enhanced - do not u,Bi-Borough Director of Integrated Care,748
25/04/2022,1249291,Westminster Society,B*Voluntary-Spot-V Dep-Enhanced - do not u,Bi-Borough Director of Integrated Care,1292
25/04/2022,1249291,Westminster Society,B*Voluntary-Spot-V Dep-Enhanced - do not u,Bi-Borough Director of Integrated Care,952
25/04/2022,1249291,Westminster Society,B*Voluntary-Spot-V Dep-Enhanced - do not u,Bi-Borough Director of Integrated Care,612
25/04/2022,1249291,Westminster Society,B*Voluntary-Spot-V Dep-Enhanced - do not u,Bi-Borough Director of Integrated Care,544
27/04/2022,1249291,Westminster Society,,Bi-Borough Director of Integrated Care,6150.12
27/04/2022,1249291,Westminster Society,,Bi-Borough Director of Integrated Care,3453.43
27/04/2022,1249291,Westminster Society,,Bi-Borough Director of Integrated Care,2708.57
27/04/2022,1249291,Westminster Society,,Bi-Borough Director of Integrated Care,1760.57
27/04/2022,1249291,Westminster Society,,Bi-Borough Director of Integrated Care,1392.48
27/04/2022,1249291,Westminster Society,,Bi-Borough Director of Integrated Care,7990.29
27/04/2022,1249291,Westminster Society,,Bi-Borough Director of Integrated Care,1896
27/04/2022,1249291,Westminster Society,,Bi-Borough Director of Integrated Care,1252.73
27/04/2022,1249291,Westminster Society,,Bi-Borough Director of Integrated Care,1235.79
27/04/2022,1249291,Westminster Society,,Bi-Borough Director of Integrated Care,2099.14
27/04/2022,1249291,Westminster Society,,Bi-Borough Director of Integrated Care,778.73
27/04/2022,1249291,Westminster Society,,Bi-Borough Director of Integrated Care,4286.33
27/04/2022,1249291,Westminster Society,,Bi-Borough Director of Integrated Care,3392.5
27/04/2022,1249291,Westminster Society,,Bi-Borough Director of Integrated Care,792.27
27/04/2022,1249291,Westminster Society,,Bi-Borough Director of Integrated Care,2573.14
27/04/2022,1249291,Westminster Society,,Bi-Borough Director of Integrated Care,3439.89
27/04/2022,1249291,Westminster Society,,Bi-Borough Director of Integrated Care,792.27
27/04/2022,1249291,Westminster Society,,Bi-Borough Director of Integrated Care,2573.14
27/04/2022,1249291,Westminster Society,,Bi-Borough Director of Integrated Care,709.75
27/04/2022,1249291,Westminster Society,,Bi-Borough Director of Integrated Care,4740
27/04/2022,1249291,Westminster Society,,Bi-Borough Director of Integrated Care,8058
27/04/2022,1249291,Westminster Society,,Bi-Borough Director of Integrated Care,792.27
27/04/2022,1249291,Westminster Society,,Bi-Borough Director of Integrated Care,4983.77
27/04/2022,1249291,Westminster Society,,Bi-Borough Director of Integrated Care,792.27
27/04/2022,1249291,Westminster Society,,Bi-Borough Director of Integrated Care,2573.14
27/04/2022,1249291,Westminster Society,,Bi-Borough Director of Integrated Care,792.27
27/04/2022,1249291,Westminster Society,,Bi-Borough Director of Integrated Care,5742.17
27/04/2022,1249291,Westminster Society,,Bi-Borough Director of Integrated Care,3385.71
27/04/2022,1249291,Westminster Society,,Bi-Borough Director of Integrated Care,7380.86
27/04/2022,1249291,Westminster Society,,Bi-Borough Director of Integrated Care,1392.48
27/04/2022,1249291,Westminster Society,,Bi-Borough Director of Integrated Care,2505.43
27/04/2022,1249291,Westminster Society,,Bi-Borough Director of Integrated Care,13469.5
27/04/2022,1249291,Westminster Society,,Bi-Borough Director of Integrated Care,2233.88
27/04/2022,1249291,Westminster Society,,Bi-Borough Director of Integrated Care,1828.29
27/04/2022,1249291,Westminster Society,,Bi-Borough Director of Integrated Care,948
27/04/2022,1249291,Westminster Society,,Bi-Borough Director of Integrated Care,3131.79
27/04/2022,1249291,Westminster Society,,Bi-Borough Director of Integrated Care,948
27/04/2022,1249291,Westminster Society,,Bi-Borough Director of Integrated Care,4960.08
27/04/2022,1249291,Westminster Society,,Bi-Borough Director of Integrated Care,541.71
27/04/2022,1249291,Westminster Society,,Bi-Borough Director of Integrated Care,948
27/04/2022,1249291,Westminster Society,,Bi-Borough Director of Integrated Care,541.71
27/04/2022,1249291,Westminster Society,,Bi-Borough Director of Integrated Care,792.27
27/04/2022,1249291,Westminster Society,,Bi-Borough Director of Integrated Care,1896
27/04/2022,1249291,Westminster Society,,Bi-Borough Director of Integrated Care,1117.3
27/04/2022,1249291,Westminster Society,,Bi-Borough Director of Integrated Care,792.27
27/04/2022,1249291,Westminster Society,,Bi-Borough Director of Integrated Care,2674.73
27/04/2022,1249291,Westminster Society,,Bi-Borough Director of Integrated Care,1828.29
27/04/2022,1249291,Westminster Society,,Bi-Borough Director of Integrated Care,948
27/04/2022,1249291,Westminster Society,,Bi-Borough Director of Integrated Care,2776.29
27/04/2022,1249291,Westminster Society,,Bi-Borough Director of Integrated Care,3081.02
27/04/2022,1249291,Westminster Society,,Bi-Borough Director of Integrated Care,2437.71
27/04/2022,1249291,Westminster Society,,Bi-Borough Director of Integrated Care,3250.29
27/04/2022,1249291,Westminster Society,,Bi-Borough Director of Integrated Care,3453.43
27/04/2022,1249291,Westminster Society,,Bi-Borough Director of Integrated Care,6080.74
27/04/2022,1249291,Westminster Society,,Bi-Borough Director of Integrated Care,948
27/04/2022,1249291,Westminster Society,,Bi-Borough Director of Integrated Care,609.43
27/04/2022,1249291,Westminster Society,,Bi-Borough Director of Integrated Care,3792
27/04/2022,1249291,Westminster Society,,Bi-Borough Director of Integrated Care,4333.71
27/04/2022,1249291,Westminster Society,,Bi-Borough Director of Integrated Care,981.87
27/04/2022,1249291,Westminster Society,,Bi-Borough Director of Integrated Care,2302.29
27/04/2022,1249291,Westminster Society,,Bi-Borough Director of Integrated Care,2370
27/04/2022,1249291,Westminster Society,,Bi-Borough Director of Integrated Care,5484.86
27/04/2022,1249291,Westminster Society,,Bi-Borough Director of Integrated Care,1896
27/04/2022,1249291,Westminster Society,,Bi-Borough Director of Integrated Care,618
27/04/2022,1249291,Westminster Society,,Bi-Borough Director of Integrated Care,8179.89
27/04/2022,1249291,Westminster Society,,Bi-Borough Director of Integrated Care,1896
27/04/2022,1249291,Westminster Society,,Bi-Borough Director of Integrated Care,618
27/04/2022,1249291,Westminster Society,,Bi-Borough Director of Integrated Care,7773.6
27/04/2022,1249291,Westminster Society,,Bi-Borough Director of Integrated Care,2370.04
27/04/2022,1249291,Westminster Society,,Bi-Borough Director of Integrated Care,618
27/04/2022,1249291,Westminster Society,,Bi-Borough Director of Integrated Care,7252.22
27/04/2022,1249291,Westminster Society,,Bi-Borough Director of Integrated Care,1185.02
27/04/2022,1249291,Westminster Society,,Bi-Borough Director of Integrated Care,5897.93
27/04/2022,1249291,Westminster Society,,Bi-Borough Director of Integrated Care,618
27/04/2022,1249291,Westminster Society,,Bi-Borough Director of Integrated Care,6150.12
27/04/2022,1249291,Westminster Society,,Bi-Borough Director of Integrated Care,3047.14
27/04/2022,1249291,Westminster Society,,Bi-Borough Director of Integrated Care,677.14
27/04/2022,1249291,Westminster Society,,Bi-Borough Director of Integrated Care,3318
27/04/2022,1249291,Westminster Society,,Bi-Borough Director of Integrated Care,3605.79
27/04/2022,1249291,Westminster Society,,Bi-Borough Director of Integrated Care,948
27/04/2022,1249291,Westminster Society,,Bi-Borough Director of Integrated Care,948
27/04/2022,1249291,Westminster Society,,Bi-Borough Director of Integrated Care,1382.5
27/04/2022,1249291,Westminster Society,,Bi-Borough Director of Integrated Care,3927.43
27/04/2022,1249291,Westminster Society,,Bi-Borough Director of Integrated Care,1489.71
27/04/2022,1249291,Westminster Society,,Bi-Borough Director of Integrated Care,2031.43
27/04/2022,1249291,Westminster Society,,Bi-Borough Director of Integrated Care,2640.86
27/04/2022,1249291,Westminster Society,,Bi-Borough Director of Integrated Care,7925.97
27/04/2022,1249291,Westminster Society,,Bi-Borough Director of Integrated Care,618
27/04/2022,1249291,Westminster Society,,Bi-Borough Director of Integrated Care,2370.04
27/04/2022,1249291,Westminster Society,,Bi-Borough Director of Integrated Care,792.27
27/04/2022,1249291,Westminster Society,,Bi-Borough Director of Integrated Care,3392.5
27/04/2022,1249291,Westminster Society,,Bi-Borough Director of Integrated Care,1896
27/04/2022,1249291,Westminster Society,,Bi-Borough Director of Integrated Care,1692.86
27/04/2022,1249291,Westminster Society,,Bi-Borough Director of Integrated Care,2607.02
27/04/2022,1249291,Westminster Society,,Bi-Borough Director of Integrated Care,5214
27/04/2022,1249291,Westminster Society,,Bi-Borough Director of Integrated Care,948
27/04/2022,1249291,Westminster Society,,Bi-Borough Director of Integrated Care,3656.57
27/04/2022,1249291,Westminster Society,,Bi-Borough Director of Integrated Care,948
27/04/2022,1249291,Westminster Society,,Bi-Borough Director of Integrated Care,6351.6
27/04/2022,1249291,Westminster Society,,Bi-Borough Director of Integrated Care,1896
27/04/2022,1249291,Westminster Society,,Bi-Borough Director of Integrated Care,618
27/04/2022,1249291,Westminster Society,,Bi-Borough Director of Integrated Care,9486.79
27/04/2022,1249291,Westminster Society,,Bi-Borough Director of Integrated Care,792.27
27/04/2022,1249291,Westminster Society,,Bi-Borough Director of Integrated Care,5518.73
27/04/2022,1249291,Westminster Society,,Bi-Borough Director of Integrated Care,2234.57
27/04/2022,1249291,Westminster Society,,Bi-Borough Director of Integrated Care,2234.57
27/04/2022,1249291,Westminster Society,,Bi-Borough Director of Integrated Care,1963.71
27/04/2022,1249291,Westminster Society,,Bi-Borough Director of Integrated Care,1185.02
27/04/2022,1249291,Westminster Society,,Bi-Borough Director of Integrated Care,3673.51
27/04/2022,1249291,Westminster Society,,Bi-Borough Director of Integrated Care,618
27/04/2022,1249291,Westminster Society,,Bi-Borough Director of Integrated Care,7154.02
27/04/2022,1249291,Westminster Society,,Bi-Borough Director of Integrated Care,2370
27/04/2022,1249291,Westminster Society,,Bi-Borough Director of Integrated Care,4740
27/04/2022,1249291,Westminster Society,,Bi-Borough Director of Integrated Care,948
27/04/2022,1249291,Westminster Society,,Bi-Borough Director of Integrated Care,618
27/04/2022,1249291,Westminster Society,,Bi-Borough Director of Integrated Care,3900.34
28/04/2022,1249291,Westminster Society,Rent,Bi-Borough Director of Integrated Care,4904.36
29/04/2022,1249291,Westminster Society,,Bi-Borough Director of Integrated Care,595
29/04/2022,1249291,Westminster Society,,Bi-Borough Director of Integrated Care,595
29/04/2022,1249291,Westminster Society,B*Voluntary-Spot-V Dep-Enhanced - do not u,Bi-Borough Director of Integrated Care,1190
29/04/2022,1249291,Westminster Society,B*Voluntary-Spot-V Dep-Enhanced - do not u,Bi-Borough Director of Integrated Care,1190
29/04/2022,1249291,Westminster Society,B*Voluntary-Spot-V Dep-Enhanced - do not u,Bi-Borough Director of Integrated Care,765
29/04/2022,1249291,Westminster Society,B*Voluntary-Spot-V Dep-Enhanced - do not u,Bi-Borough Director of Integrated Care,680
29/04/2022,1249291,Westminster Society,B*Voluntary-Spot-V Dep-Enhanced - do not u,Bi-Borough Director of Integrated Care,680
29/04/2022,1249291,Westminster Society,B*Voluntary-Spot-V Dep-Enhanced - do not u,Bi-Borough Director of Integrated Care,765
29/04/2022,1249291,Westminster Society,B*Voluntary-Spot-V Dep-Enhanced - do not u,Bi-Borough Director of Integrated Care,510
29/04/2022,1249291,Westminster Society,B*Voluntary-Spot-V Dep-Enhanced - do not u,Bi-Borough Director of Integrated Care,850
29/04/2022,1249291,Westminster Society,B*Voluntary-Spot-V Dep-Enhanced - do not u,Bi-Borough Director of Integrated Care,1360
29/04/2022,1249291,Westminster Society,B*Voluntary-Spot-V Dep-Enhanced - do not u,Bi-Borough Director of Integrated Care,595
29/04/2022,1249291,Westminster Society,B*Voluntary-Spot-V Dep-Enhanced - do not u,Bi-Borough Director of Integrated Care,879.75
29/04/2022,1249291,Westminster Society,B*Voluntary-Spot-V Dep-Enhanced - do not u,Bi-Borough Director of Integrated Care,595
29/04/2022,1249291,Westminster Society,B*Voluntary-Spot-V Dep-Enhanced - do not u,Bi-Borough Director of Integrated Care,586.5
29/04/2022,1249291,Westminster Society,B*Voluntary-Spot-V Dep-Enhanced - do not u,Bi-Borough Director of Integrated Care,586.5
29/04/2022,1249291,Westminster Society,B*Voluntary-Spot-V Dep-Enhanced - do not u,Bi-Borough Director of Integrated Care,1173
29/04/2022,1249291,Westminster Society,B*Voluntary-Spot-V Dep-Enhanced - do not u,Bi-Borough Director of Integrated Care,586.5
29/04/2022,1249291,Westminster Society,B*Voluntary-Spot-V Dep-Enhanced - do not u,Bi-Borough Director of Integrated Care,879.75
29/04/2022,1249291,Westminster Society,B*Voluntary-Spot-V Dep-Enhanced - do not u,Bi-Borough Director of Integrated Care,680
29/04/2022,1249291,Westminster Society,B*Voluntary-Spot-V Dep-Enhanced - do not u,Bi-Borough Director of Integrated Care,1105
29/04/2022,1249291,Westminster Society,B*Voluntary-Spot-V Dep-Enhanced - do not u,Bi-Borough Director of Integrated Care,1615
29/04/2022,1249291,Westminster Society,B*Voluntary-Spot-V Dep-Enhanced - do not u,Bi-Borough Director of Integrated Care,1020
29/04/2022,1249291,Westminster Society,B*Voluntary-Spot-V Dep-Enhanced - do not u,Bi-Borough Director of Integrated Care,977.5
29/04/2022,1249291,Westminster Society,B*Voluntary-Spot-V Dep-Enhanced - do not u,Bi-Borough Director of Integrated Care,2125
29/04/2022,1249291,Westminster Society,B*Voluntary-Spot-V Dep-Enhanced - do not u,Bi-Borough Director of Integrated Care,2550
29/04/2022,1249291,Westminster Society,B*Voluntary-Spot-V Dep-Enhanced - do not u,Bi-Borough Director of Integrated Care,586.5
29/04/2022,1249291,Westminster Society,B*Voluntary-Spot-V Dep-Enhanced - do not u,Bi-Borough Director of Integrated Care,586.5
29/04/2022,1249291,Westminster Society,B*Voluntary-Spot-V Dep-Enhanced - do not u,Bi-Borough Director of Integrated Care,1020
29/04/2022,1249291,Westminster Society,B*Voluntary-Spot-V Dep-Enhanced - do not u,Bi-Borough Director of Integrated Care,586.5
29/04/2022,1249291,Westminster Society,B*Voluntary-Spot-V Dep-Enhanced - do not u,Bi-Borough Director of Integrated Care,586.5
29/04/2022,1249291,Westminster Society,B*Voluntary-Spot-V Dep-Enhanced - do not u,Bi-Borough Director of Integrated Care,680
29/04/2022,1249291,Westminster Society,B*Voluntary-Spot-V Dep-Enhanced - do not u,Bi-Borough Director of Integrated Care,510
29/04/2022,1249291,Westminster Society,B*Voluntary-Spot-V Dep-Enhanced - do not u,Bi-Borough Director of Integrated Care,2295
29/04/2022,1249291,Westminster Society,B*Voluntary-Spot-V Dep-Enhanced - do not u,Bi-Borough Director of Integrated Care,510
29/04/2022,1249291,Westminster Society,B*Voluntary-Spot-V Dep-Enhanced - do not u,Bi-Borough Director of Integrated Care,586.5
29/04/2022,1249291,Westminster Society,B*Voluntary-Spot-V Dep-Enhanced - do not u,Bi-Borough Director of Integrated Care,586.5
29/04/2022,1249291,Westminster Society,B*Voluntary-Spot-V Dep-Enhanced - do not u,Bi-Borough Director of Integrated Care,935
25/05/2022,1249291,Westminster Society,,Bi-Borough Director of Integrated Care,2449
25/05/2022,1249291,Westminster Society,,Bi-Borough Director of Integrated Care,1106
25/05/2022,1249291,Westminster Society,,Bi-Borough Director of Integrated Care,4206.76
25/05/2022,1249291,Westminster Society,,Bi-Borough Director of Integrated Care,2765.04
25/05/2022,1249291,Westminster Society,,Bi-Borough Director of Integrated Care,721
25/05/2022,1249291,Westminster Society,,Bi-Borough Director of Integrated Care,9246.96
25/05/2022,1249291,Westminster Society,,Bi-Borough Director of Integrated Care,3871
25/05/2022,1249291,Westminster Society,,Bi-Borough Director of Integrated Care,790
25/05/2022,1249291,Westminster Society,,Bi-Borough Director of Integrated Care,540.76
25/05/2022,1249291,Westminster Society,,Bi-Borough Director of Integrated Care,2212
25/05/2022,1249291,Westminster Society,,Bi-Borough Director of Integrated Care,540.76
25/05/2022,1249291,Westminster Society,,Bi-Borough Director of Integrated Care,1975
25/05/2022,1249291,Westminster Society,,Bi-Borough Director of Integrated Care,2370
25/05/2022,1249291,Westminster Society,,Bi-Borough Director of Integrated Care,540.76
25/05/2022,1249291,Westminster Society,,Bi-Borough Director of Integrated Care,540.76
25/05/2022,1249291,Westminster Society,,Bi-Borough Director of Integrated Care,4582
25/05/2022,1249291,Westminster Society,,Bi-Borough Director of Integrated Care,1738
25/05/2022,1249291,Westminster Society,,Bi-Borough Director of Integrated Care,540.76
25/05/2022,1249291,Westminster Society,,Bi-Borough Director of Integrated Care,1106
25/05/2022,1249291,Westminster Society,,Bi-Borough Director of Integrated Care,3081
25/05/2022,1249291,Westminster Society,,Bi-Borough Director of Integrated Care,4384.5
25/05/2022,1249291,Westminster Society,,Bi-Borough Director of Integrated Care,924.32
25/05/2022,1249291,Westminster Society,,Bi-Borough Director of Integrated Care,4787.42
25/05/2022,1249291,Westminster Society,,Bi-Borough Director of Integrated Care,1106
25/05/2022,1249291,Westminster Society,,Bi-Borough Director of Integrated Care,4266
25/05/2022,1249291,Westminster Society,,Bi-Borough Director of Integrated Care,1106
25/05/2022,1249291,Westminster Society,,Bi-Borough Director of Integrated Care,7410.2
25/05/2022,1249291,Westminster Society,,Bi-Borough Director of Integrated Care,2212
25/05/2022,1249291,Westminster Society,,Bi-Borough Director of Integrated Care,721
25/05/2022,1249291,Westminster Society,,Bi-Borough Director of Integrated Care,11067.92
25/05/2022,1249291,Westminster Society,,Bi-Borough Director of Integrated Care,6083
25/05/2022,1249291,Westminster Society,,Bi-Borough Director of Integrated Care,540.76
25/05/2022,1249291,Westminster Society,,Bi-Borough Director of Integrated Care,3041.52
25/05/2022,1249291,Westminster Society,,Bi-Borough Director of Integrated Care,553
25/05/2022,1249291,Westminster Society,,Bi-Borough Director of Integrated Care,553
25/05/2022,1249291,Westminster Society,,Bi-Borough Director of Integrated Care,924.32
25/05/2022,1249291,Westminster Society,,Bi-Borough Director of Integrated Care,6438.52
25/05/2022,1249291,Westminster Society,,Bi-Borough Director of Integrated Care,924.32
25/05/2022,1249291,Westminster Society,,Bi-Borough Director of Integrated Care,4787.42
25/05/2022,1249291,Westminster Society,,Bi-Borough Director of Integrated Care,3160
25/05/2022,1249291,Westminster Society,,Bi-Borough Director of Integrated Care,1624.56
25/05/2022,1249291,Westminster Society,,Bi-Borough Director of Integrated Care,10151.5
25/05/2022,1249291,Westminster Society,,Bi-Borough Director of Integrated Care,540.76
25/05/2022,1249291,Westminster Society,,Bi-Borough Director of Integrated Care,1441.76
25/05/2022,1249291,Westminster Society,,Bi-Borough Director of Integrated Care,1461.52
25/05/2022,1249291,Westminster Society,,Bi-Borough Director of Integrated Care,908.52
25/05/2022,1249291,Westminster Society,,Bi-Borough Director of Integrated Care,5000.72
25/05/2022,1249291,Westminster Society,,Bi-Borough Director of Integrated Care,4029
25/05/2022,1249291,Westminster Society,,Bi-Borough Director of Integrated Care,2054
25/05/2022,1249291,Westminster Society,,Bi-Borough Director of Integrated Care,5672.2
25/05/2022,1249291,Westminster Society,,Bi-Borough Director of Integrated Care,924.32
25/05/2022,1249291,Westminster Society,,Bi-Borough Director of Integrated Care,3002
25/05/2022,1249291,Westminster Society,,Bi-Borough Director of Integrated Care,2212
25/05/2022,1249291,Westminster Society,,Bi-Borough Director of Integrated Care,721
25/05/2022,1249291,Westminster Society,,Bi-Borough Director of Integrated Care,8346.36
25/05/2022,1249291,Westminster Society,,Bi-Borough Director of Integrated Care,2765
25/05/2022,1249291,Westminster Society,,Bi-Borough Director of Integrated Care,2607
25/05/2022,1249291,Westminster Society,,Bi-Borough Director of Integrated Care,5530
25/05/2022,1249291,Westminster Society,,Bi-Borough Director of Integrated Care,540.76
25/05/2022,1249291,Westminster Society,,Bi-Borough Director of Integrated Care,4285.76
25/05/2022,1249291,Westminster Society,,Bi-Borough Director of Integrated Care,2607
25/05/2022,1249291,Westminster Society,,Bi-Borough Director of Integrated Care,1382.52
25/05/2022,1249291,Westminster Society,,Bi-Borough Director of Integrated Care,2291
25/05/2022,1249291,Westminster Society,,Bi-Borough Director of Integrated Care,924.32
25/05/2022,1249291,Westminster Society,,Bi-Borough Director of Integrated Care,2212
25/05/2022,1249291,Westminster Society,,Bi-Borough Director of Integrated Care,1106
25/05/2022,1249291,Westminster Society,,Bi-Borough Director of Integrated Care,6616.26
25/05/2022,1249291,Westminster Society,,Bi-Borough Director of Integrated Care,1106
25/05/2022,1249291,Westminster Society,,Bi-Borough Director of Integrated Care,4483.26
25/05/2022,1249291,Westminster Society,,Bi-Borough Director of Integrated Care,1624.56
25/05/2022,1249291,Westminster Society,,Bi-Borough Director of Integrated Care,8611
25/05/2022,1249291,Westminster Society,,Bi-Borough Director of Integrated Care,2923
25/05/2022,1249291,Westminster Society,,Bi-Borough Director of Integrated Care,2449
25/05/2022,1249291,Westminster Society,,Bi-Borough Director of Integrated Care,1106
25/05/2022,1249291,Westminster Society,,Bi-Borough Director of Integrated Care,632
25/05/2022,1249291,Westminster Society,,Bi-Borough Director of Integrated Care,632
25/05/2022,1249291,Westminster Society,,Bi-Borough Director of Integrated Care,1303.52
25/05/2022,1249291,Westminster Society,,Bi-Borough Director of Integrated Care,4779.5
25/05/2022,1249291,Westminster Society,,Bi-Borough Director of Integrated Care,2133
25/05/2022,1249291,Westminster Society,,Bi-Borough Director of Integrated Care,924.32
25/05/2022,1249291,Westminster Society,,Bi-Borough Director of Integrated Care,3950.02
25/05/2022,1249291,Westminster Society,,Bi-Borough Director of Integrated Care,553
25/05/2022,1249291,Westminster Society,,Bi-Borough Director of Integrated Care,924.32
25/05/2022,1249291,Westminster Society,,Bi-Borough Director of Integrated Care,7058.65
25/05/2022,1249291,Westminster Society,,Bi-Borough Director of Integrated Care,9401
25/05/2022,1249291,Westminster Society,,Bi-Borough Director of Integrated Care,924.32
25/05/2022,1249291,Westminster Society,,Bi-Borough Director of Integrated Care,1106
25/05/2022,1249291,Westminster Society,,Bi-Borough Director of Integrated Care,721
25/05/2022,1249291,Westminster Society,,Bi-Borough Director of Integrated Care,4550.4
25/05/2022,1249291,Westminster Society,,Bi-Borough Director of Integrated Care,3002
25/05/2022,1249291,Westminster Society,,Bi-Borough Director of Integrated Care,540.76
25/05/2022,1249291,Westminster Society,,Bi-Borough Director of Integrated Care,924.32
25/05/2022,1249291,Westminster Society,,Bi-Borough Director of Integrated Care,6699.2
25/05/2022,1249291,Westminster Society,,Bi-Borough Director of Integrated Care,3002
25/05/2022,1249291,Westminster Society,,Bi-Borough Director of Integrated Care,3950
25/05/2022,1249291,Westminster Society,,Bi-Borough Director of Integrated Care,5530
25/05/2022,1249291,Westminster Society,,Bi-Borough Director of Integrated Care,1106
25/05/2022,1249291,Westminster Society,,Bi-Borough Director of Integrated Care,7094.2
25/05/2022,1249291,Westminster Society,,Bi-Borough Director of Integrated Care,4720.25
25/05/2022,1249291,Westminster Society,,Bi-Borough Director of Integrated Care,3792
25/05/2022,1249291,Westminster Society,,Bi-Borough Director of Integrated Care,711
25/05/2022,1249291,Westminster Society,,Bi-Borough Director of Integrated Care,2133
25/05/2022,1249291,Westminster Society,,Bi-Borough Director of Integrated Care,3594.52
25/05/2022,1249291,Westminster Society,,Bi-Borough Director of Integrated Care,2844
25/05/2022,1249291,Westminster Society,,Bi-Borough Director of Integrated Care,3239
25/05/2022,1249291,Westminster Society,,Bi-Borough Director of Integrated Care,1106
25/05/2022,1249291,Westminster Society,,Bi-Borough Director of Integrated Care,721
25/05/2022,1249291,Westminster Society,,Bi-Borough Director of Integrated Care,2765.04
25/05/2022,1249291,Westminster Society,,Bi-Borough Director of Integrated Care,8460.92
25/05/2022,1249291,Westminster Society,,Bi-Borough Director of Integrated Care,2212
25/05/2022,1249291,Westminster Society,,Bi-Borough Director of Integrated Care,721
25/05/2022,1249291,Westminster Society,,Bi-Borough Director of Integrated Care,9543.2
25/05/2022,1249291,Westminster Society,,Bi-Borough Director of Integrated Care,2212
25/05/2022,1249291,Westminster Society,,Bi-Borough Director of Integrated Care,721
25/05/2022,1249291,Westminster Society,,Bi-Borough Director of Integrated Care,9069.2
25/05/2022,1249291,Westminster Society,,Bi-Borough Director of Integrated Care,1145.52
25/05/2022,1249291,Westminster Society,,Bi-Borough Director of Integrated Care,533.25
25/05/2022,1249291,Westminster Society,,Bi-Borough Director of Integrated Care,6813.75
25/05/2022,1249291,Westminster Society,,Bi-Borough Director of Integrated Care,4424
25/05/2022,1249291,Westminster Society,,Bi-Borough Director of Integrated Care,5056
25/05/2022,1249291,Westminster Society,,Bi-Borough Director of Integrated Care,2686
25/05/2022,1249291,Westminster Society,,Bi-Borough Director of Integrated Care,2765
22/06/2022,1249291,Westminster Society,,Bi-Borough Director of Integrated Care,924.32
22/06/2022,1249291,Westminster Society,,Bi-Borough Director of Integrated Care,6438.52
22/06/2022,1249291,Westminster Society,,Bi-Borough Director of Integrated Care,540.76
22/06/2022,1249291,Westminster Society,,Bi-Borough Director of Integrated Care,6083
22/06/2022,1249291,Westminster Society,,Bi-Borough Director of Integrated Care,553
22/06/2022,1249291,Westminster Society,,Bi-Borough Director of Integrated Care,553
22/06/2022,1249291,Westminster Society,,Bi-Borough Director of Integrated Care,4422.8
22/06/2022,1249291,Westminster Society,,Bi-Borough Director of Integrated Care,4266
22/06/2022,1249291,Westminster Society,,Bi-Borough Director of Integrated Care,11067.92
22/06/2022,1249291,Westminster Society,,Bi-Borough Director of Integrated Care,2212
22/06/2022,1249291,Westminster Society,,Bi-Borough Director of Integrated Care,3041.52
22/06/2022,1249291,Westminster Society,,Bi-Borough Director of Integrated Care,7410.2
22/06/2022,1249291,Westminster Society,,Bi-Borough Director of Integrated Care,4422.8
22/06/2022,1249291,Westminster Society,,Bi-Borough Director of Integrated Care,1461.52
22/06/2022,1249291,Westminster Society,,Bi-Borough Director of Integrated Care,3160
22/06/2022,1249291,Westminster Society,,Bi-Borough Director of Integrated Care,4961.2
22/06/2022,1249291,Westminster Society,,Bi-Borough Director of Integrated Care,924.32
22/06/2022,1249291,Westminster Society,,Bi-Borough Director of Integrated Care,5000.72
22/06/2022,1249291,Westminster Society,,Bi-Borough Director of Integrated Care,3002
22/06/2022,1249291,Westminster Society,,Bi-Borough Director of Integrated Care,4029
22/06/2022,1249291,Westminster Society,,Bi-Borough Director of Integrated Care,2449
22/06/2022,1249291,Westminster Society,,Bi-Borough Director of Integrated Care,9796
22/06/2022,1249291,Westminster Society,,Bi-Borough Director of Integrated Care,540.76
22/06/2022,1249291,Westminster Society,,Bi-Borough Director of Integrated Care,1624.56
22/06/2022,1249291,Westminster Society,,Bi-Borough Director of Integrated Care,2212
22/06/2022,1249291,Westminster Society,,Bi-Borough Director of Integrated Care,924.32
22/06/2022,1249291,Westminster Society,,Bi-Borough Director of Integrated Care,4431.92
22/06/2022,1249291,Westminster Society,,Bi-Borough Director of Integrated Care,908.52
22/06/2022,1249291,Westminster Society,,Bi-Borough Director of Integrated Care,1441.76
22/06/2022,1249291,Westminster Society,,Bi-Borough Director of Integrated Care,2054
22/06/2022,1249291,Westminster Society,,Bi-Borough Director of Integrated Care,2923
22/06/2022,1249291,Westminster Society,,Bi-Borough Director of Integrated Care,1106
22/06/2022,1249291,Westminster Society,,Bi-Borough Director of Integrated Care,4127.76
22/06/2022,1249291,Westminster Society,,Bi-Borough Director of Integrated Care,3594.52
22/06/2022,1249291,Westminster Society,,Bi-Borough Director of Integrated Care,924.32
22/06/2022,1249291,Westminster Society,,Bi-Borough Director of Integrated Care,2607
22/06/2022,1249291,Westminster Society,,Bi-Borough Director of Integrated Care,1303.52
22/06/2022,1249291,Westminster Society,,Bi-Borough Director of Integrated Care,6260.76
22/06/2022,1249291,Westminster Society,,Bi-Borough Director of Integrated Care,1106
22/06/2022,1249291,Westminster Society,,Bi-Borough Director of Integrated Care,632
22/06/2022,1249291,Westminster Society,,Bi-Borough Director of Integrated Care,4424
22/06/2022,1249291,Westminster Society,,Bi-Borough Director of Integrated Care,2133
22/06/2022,1249291,Westminster Society,,Bi-Borough Director of Integrated Care,1106
22/06/2022,1249291,Westminster Society,,Bi-Borough Director of Integrated Care,8611
22/06/2022,1249291,Westminster Society,,Bi-Borough Director of Integrated Care,1624.56
22/06/2022,1249291,Westminster Society,,Bi-Borough Director of Integrated Care,553
22/06/2022,1249291,Westminster Society,,Bi-Borough Director of Integrated Care,924.32
22/06/2022,1249291,Westminster Society,,Bi-Borough Director of Integrated Care,2212
22/06/2022,1249291,Westminster Society,,Bi-Borough Director of Integrated Care,632
22/06/2022,1249291,Westminster Society,,Bi-Borough Director of Integrated Care,4285.76
22/06/2022,1249291,Westminster Society,,Bi-Borough Director of Integrated Care,2607
22/06/2022,1249291,Westminster Society,,Bi-Borough Director of Integrated Care,1382.52
22/06/2022,1249291,Westminster Society,,Bi-Borough Director of Integrated Care,2291
22/06/2022,1249291,Westminster Society,,Bi-Borough Director of Integrated Care,8346.36
22/06/2022,1249291,Westminster Society,,Bi-Borough Director of Integrated Care,2765
22/06/2022,1249291,Westminster Society,,Bi-Borough Director of Integrated Care,721
22/06/2022,1249291,Westminster Society,,Bi-Borough Director of Integrated Care,540.76
22/06/2022,1249291,Westminster Society,,Bi-Borough Director of Integrated Care,5530
22/06/2022,1249291,Westminster Society,,Bi-Borough Director of Integrated Care,2449
22/06/2022,1249291,Westminster Society,,Bi-Borough Director of Integrated Care,2133
22/06/2022,1249291,Westminster Society,,Bi-Borough Director of Integrated Care,3239
22/06/2022,1249291,Westminster Society,,Bi-Borough Director of Integrated Care,3594.52
22/06/2022,1249291,Westminster Society,,Bi-Borough Director of Integrated Care,1106
22/06/2022,1249291,Westminster Society,,Bi-Borough Director of Integrated Care,4424
22/06/2022,1249291,Westminster Society,,Bi-Borough Director of Integrated Care,711
22/06/2022,1249291,Westminster Society,,Bi-Borough Director of Integrated Care,3792
22/06/2022,1249291,Westminster Society,,Bi-Borough Director of Integrated Care,2844
22/06/2022,1249291,Westminster Society,,Bi-Borough Director of Integrated Care,3002
22/06/2022,1249291,Westminster Society,,Bi-Borough Director of Integrated Care,540.76
22/06/2022,1249291,Westminster Society,,Bi-Borough Director of Integrated Care,924.32
22/06/2022,1249291,Westminster Society,,Bi-Borough Director of Integrated Care,6699.2
22/06/2022,1249291,Westminster Society,,Bi-Borough Director of Integrated Care,3002
22/06/2022,1249291,Westminster Society,,Bi-Borough Director of Integrated Care,924.32
22/06/2022,1249291,Westminster Society,,Bi-Borough Director of Integrated Care,9401
22/06/2022,1249291,Westminster Society,,Bi-Borough Director of Integrated Care,924.32
22/06/2022,1249291,Westminster Society,,Bi-Borough Director of Integrated Care,6525.4
22/06/2022,1249291,Westminster Society,,Bi-Borough Director of Integrated Care,5530
22/06/2022,1249291,Westminster Society,,Bi-Borough Director of Integrated Care,3950
22/06/2022,1249291,Westminster Society,,Bi-Borough Director of Integrated Care,4422.8
22/06/2022,1249291,Westminster Society,,Bi-Borough Director of Integrated Care,7094.2
22/06/2022,1249291,Westminster Society,,Bi-Borough Director of Integrated Care,2765.04
22/06/2022,1249291,Westminster Society,,Bi-Borough Director of Integrated Care,721
22/06/2022,1249291,Westminster Society,,Bi-Borough Director of Integrated Care,8460.92
22/06/2022,1249291,Westminster Society,,Bi-Borough Director of Integrated Care,5056
22/06/2022,1249291,Westminster Society,,Bi-Borough Director of Integrated Care,2765
22/06/2022,1249291,Westminster Society,,Bi-Borough Director of Integrated Care,6636
22/06/2022,1249291,Westminster Society,,Bi-Borough Director of Integrated Care,2686
22/06/2022,1249291,Westminster Society,,Bi-Borough Director of Integrated Care,9543.2
22/06/2022,1249291,Westminster Society,,Bi-Borough Director of Integrated Care,721
22/06/2022,1249291,Westminster Society,,Bi-Borough Director of Integrated Care,2212
22/06/2022,1249291,Westminster Society,,Bi-Borough Director of Integrated Care,4424
22/06/2022,1249291,Westminster Society,,Bi-Borough Director of Integrated Care,721
22/06/2022,1249291,Westminster Society,,Bi-Borough Director of Integrated Care,9069.2
22/06/2022,1249291,Westminster Society,,Bi-Borough Director of Integrated Care,2212
22/06/2022,1249291,Westminster Society,,Bi-Borough Director of Integrated Care,1145.52
22/06/2022,1249291,Westminster Society,,Bi-Borough Director of Integrated Care,4206.76
22/06/2022,1249291,Westminster Society,,Bi-Borough Director of Integrated Care,1106
22/06/2022,1249291,Westminster Society,,Bi-Borough Director of Integrated Care,4582
22/06/2022,1249291,Westminster Society,,Bi-Borough Director of Integrated Care,540.76
22/06/2022,1249291,Westminster Society,,Bi-Borough Director of Integrated Care,1738
22/06/2022,1249291,Westminster Society,,Bi-Borough Director of Integrated Care,540.76
22/06/2022,1249291,Westminster Society,,Bi-Borough Director of Integrated Care,2212
22/06/2022,1249291,Westminster Society,,Bi-Borough Director of Integrated Care,540.76
22/06/2022,1249291,Westminster Society,,Bi-Borough Director of Integrated Care,3081
22/06/2022,1249291,Westminster Society,,Bi-Borough Director of Integrated Care,790
22/06/2022,1249291,Westminster Society,,Bi-Borough Director of Integrated Care,1106
22/06/2022,1249291,Westminster Society,,Bi-Borough Director of Integrated Care,2370
22/06/2022,1249291,Westminster Society,,Bi-Borough Director of Integrated Care,540.76
22/06/2022,1249291,Westminster Society,,Bi-Borough Director of Integrated Care,3871
22/06/2022,1249291,Westminster Society,,Bi-Borough Director of Integrated Care,924.32
22/06/2022,1249291,Westminster Society,,Bi-Borough Director of Integrated Care,4431.92
22/06/2022,1249291,Westminster Society,,Bi-Borough Director of Integrated Care,540.76
22/06/2022,1249291,Westminster Society,,Bi-Borough Director of Integrated Care,1975
22/06/2022,1249291,Westminster Society,,Bi-Borough Director of Integrated Care,4029
22/06/2022,1249291,Westminster Society,,Bi-Borough Director of Integrated Care,2765.04
22/06/2022,1249291,Westminster Society,,Bi-Borough Director of Integrated Care,721
22/06/2022,1249291,Westminster Society,,Bi-Borough Director of Integrated Care,9246.96
22/06/2022,1249291,Westminster Society,B*Voluntary-Spot-V Dep-Enhanced - do not u,Bi-Borough Director of Integrated Care,647.68
22/06/2022,1249291,Westminster Society,B*Voluntary-Spot-V Dep-Enhanced - do not u,Bi-Borough Director of Integrated Care,1052.48
22/06/2022,1249291,Westminster Society,B*Voluntary-Spot-V Dep-Enhanced - do not u,Bi-Borough Director of Integrated Care,1538.24
22/06/2022,1249291,Westminster Society,B*Voluntary-Spot-V Dep-Enhanced - do not u,Bi-Borough Director of Integrated Care,1133.44
22/06/2022,1249291,Westminster Society,B*Voluntary-Spot-V Dep-Enhanced - do not u,Bi-Borough Director of Integrated Care,647.68
22/06/2022,1249291,Westminster Society,B*Voluntary-Spot-V Dep-Enhanced - do not u,Bi-Borough Director of Integrated Care,728.64
22/06/2022,1249291,Westminster Society,B*Voluntary-Spot-V Dep-Enhanced - do not u,Bi-Borough Director of Integrated Care,566.72
22/06/2022,1249291,Westminster Society,B*Voluntary-Spot-V Dep-Enhanced - do not u,Bi-Borough Director of Integrated Care,809.6
22/06/2022,1249291,Westminster Society,B*Voluntary-Spot-V Dep-Enhanced - do not u,Bi-Borough Director of Integrated Care,566.72
22/06/2022,1249291,Westminster Society,B*Voluntary-Spot-V Dep-Enhanced - do not u,Bi-Borough Director of Integrated Care,2024
22/06/2022,1249291,Westminster Society,B*Voluntary-Spot-V Dep-Enhanced - do not u,Bi-Borough Director of Integrated Care,2428.8
22/06/2022,1249291,Westminster Society,B*Voluntary-Spot-V Dep-Enhanced - do not u,Bi-Borough Director of Integrated Care,2024
22/06/2022,1249291,Westminster Society,B*Voluntary-Spot-V Dep-Enhanced - do not u,Bi-Borough Director of Integrated Care,647.68
22/06/2022,1249291,Westminster Society,B*Voluntary-Spot-V Dep-Enhanced - do not u,Bi-Borough Director of Integrated Care,2185.92
22/06/2022,1249291,Westminster Society,B*Voluntary-Spot-V Dep-Enhanced - do not u,Bi-Borough Director of Integrated Care,971.52
22/06/2022,1249291,Westminster Society,B*Voluntary-Spot-V Dep-Enhanced - do not u,Bi-Borough Director of Integrated Care,1295.36
22/06/2022,1249291,Westminster Society,B*Voluntary-Spot-V Dep-Enhanced - do not u,Bi-Borough Director of Integrated Care,931.04
22/06/2022,1249291,Westminster Society,B*Voluntary-Spot-V Dep-Enhanced - do not u,Bi-Borough Director of Integrated Care,566.72
22/06/2022,1249291,Westminster Society,B*Voluntary-Spot-V Dep-Enhanced - do not u,Bi-Borough Director of Integrated Care,647.68
22/06/2022,1249291,Westminster Society,B*Voluntary-Spot-V Dep-Enhanced - do not u,Bi-Borough Director of Integrated Care,890.56
22/06/2022,1249291,Westminster Society,B*Voluntary-Spot-V Dep-Enhanced - do not u,Bi-Borough Director of Integrated Care,890.56
22/06/2022,1249291,Westminster Society,B*Voluntary-Spot-V Dep-Enhanced - do not u,Bi-Borough Director of Integrated Care,1052.48
22/06/2022,1249291,Westminster Society,B*Voluntary-Spot-V Dep-Enhanced - do not u,Bi-Borough Director of Integrated Care,1538.24
22/06/2022,1249291,Westminster Society,B*Voluntary-Spot-V Dep-Enhanced - do not u,Bi-Borough Director of Integrated Care,647.68
22/06/2022,1249291,Westminster Society,B*Voluntary-Spot-V Dep-Enhanced - do not u,Bi-Borough Director of Integrated Care,971.52
22/06/2022,1249291,Westminster Society,B*Voluntary-Spot-V Dep-Enhanced - do not u,Bi-Borough Director of Integrated Care,971.52
22/06/2022,1249291,Westminster Society,B*Voluntary-Spot-V Dep-Enhanced - do not u,Bi-Borough Director of Integrated Care,1295.36
22/06/2022,1249291,Westminster Society,B*Voluntary-Spot-V Dep-Enhanced - do not u,Bi-Borough Director of Integrated Care,1295.36
22/06/2022,1249291,Westminster Society,B*Voluntary-Spot-V Dep-Enhanced - do not u,Bi-Borough Director of Integrated Care,971.52
22/06/2022,1249291,Westminster Society,B*Voluntary-Spot-V Dep-Enhanced - do not u,Bi-Borough Director of Integrated Care,728.64
22/06/2022,1249291,Westminster Society,B*Voluntary-Spot-V Dep-Enhanced - do not u,Bi-Borough Director of Integrated Care,647.68
22/06/2022,1249291,Westminster Society,B*Voluntary-Spot-V Dep-Enhanced - do not u,Bi-Borough Director of Integrated Care,1133.44
22/06/2022,1249291,Westminster Society,B*Voluntary-Spot-V Dep-Enhanced - do not u,Bi-Borough Director of Integrated Care,728.64
22/06/2022,1249291,Westminster Society,B*Voluntary-Spot-V Dep-Enhanced - do not u,Bi-Borough Director of Integrated Care,647.68
22/06/2022,1249291,Westminster Society,B*Voluntary-Spot-V Dep-Enhanced - do not u,Bi-Borough Director of Integrated Care,2185.92
22/06/2022,1249291,Westminster Society,B*Voluntary-Spot-V Dep-Enhanced - do not u,Bi-Borough Director of Integrated Care,566.72
22/06/2022,1249291,Westminster Society,B*Voluntary-Spot-V Dep-Enhanced - do not u,Bi-Borough Director of Integrated Care,809.6
22/06/2022,1249291,Westminster Society,B*Voluntary-Spot-V Dep-Enhanced - do not u,Bi-Borough Director of Integrated Care,2428.8
22/06/2022,1249291,Westminster Society,B*Voluntary-Spot-V Dep-Enhanced - do not u,Bi-Borough Director of Integrated Care,1133.44
22/06/2022,1249291,Westminster Society,B*Voluntary-Spot-V Dep-Enhanced - do not u,Bi-Borough Director of Integrated Care,1133.44
22/06/2022,1249291,Westminster Society,B*Voluntary-Spot-V Dep-Enhanced - do not u,Bi-Borough Director of Integrated Care,728.64
22/06/2022,1249291,Westminster Society,B*Voluntary-Spot-V Dep-Enhanced - do not u,Bi-Borough Director of Integrated Care,647.68
27/04/2022,1246224,Whitmore Vale Housing Association,,Bi-Borough Director of Integrated Care,3161.83
25/05/2022,1246224,Whitmore Vale Housing Association,,Bi-Borough Director of Integrated Care,3688.8
22/06/2022,1246224,Whitmore Vale Housing Association,,Bi-Borough Director of Integrated Care,3688.8
05/04/2022,1243566,Yarrow Housing Ltd,,Bi-Borough Director of Integrated Care,7921.4
27/04/2022,1243566,Yarrow Housing Ltd,,Bi-Borough Director of Integrated Care,3333.57
27/04/2022,1243566,Yarrow Housing Ltd,,Bi-Borough Director of Integrated Care,6255.05
27/04/2022,1243566,Yarrow Housing Ltd,,Bi-Borough Director of Integrated Care,3113.9
27/04/2022,1243566,Yarrow Housing Ltd,,Bi-Borough Director of Integrated Care,4757.83
27/04/2022,1243566,Yarrow Housing Ltd,,Bi-Borough Director of Integrated Care,6729.6
27/04/2022,1243566,Yarrow Housing Ltd,,Bi-Borough Director of Integrated Care,2891.52
27/04/2022,1243566,Yarrow Housing Ltd,,Bi-Borough Director of Integrated Care,4188.27
27/04/2022,1243566,Yarrow Housing Ltd,,Bi-Borough Director of Integrated Care,7115.93
17/05/2022,1243566,Yarrow Housing Ltd,,Bi-Borough Director of Integrated Care,7924.83
25/05/2022,1243566,Yarrow Housing Ltd,,Bi-Borough Director of Integrated Care,5550.8
25/05/2022,1243566,Yarrow Housing Ltd,,Bi-Borough Director of Integrated Care,7297.56
25/05/2022,1243566,Yarrow Housing Ltd,,Bi-Borough Director of Integrated Care,3632.88
25/05/2022,1243566,Yarrow Housing Ltd,,Bi-Borough Director of Integrated Care,7851.2
25/05/2022,1243566,Yarrow Housing Ltd,,Bi-Borough Director of Integrated Care,3373.44
25/05/2022,1243566,Yarrow Housing Ltd,,Bi-Borough Director of Integrated Care,4886.32
25/05/2022,1243566,Yarrow Housing Ltd,,Bi-Borough Director of Integrated Care,8301.92
25/05/2022,1243566,Yarrow Housing Ltd,,Bi-Borough Director of Integrated Care,3889.16
16/06/2022,1243566,Yarrow Housing Ltd,,Bi-Borough Director of Integrated Care,7927.2
22/06/2022,1243566,Yarrow Housing Ltd,,Bi-Borough Director of Integrated Care,8301.92
22/06/2022,1243566,Yarrow Housing Ltd,,Bi-Borough Director of Integrated Care,3889.16
22/06/2022,1243566,Yarrow Housing Ltd,,Bi-Borough Director of Integrated Care,3632.88
22/06/2022,1243566,Yarrow Housing Ltd,,Bi-Borough Director of Integrated Care,7297.56
22/06/2022,1243566,Yarrow Housing Ltd,,Bi-Borough Director of Integrated Care,5550.8
22/06/2022,1243566,Yarrow Housing Ltd,,Bi-Borough Director of Integrated Care,7851.2
22/06/2022,1243566,Yarrow Housing Ltd,,Bi-Borough Director of Integrated Care,4886.32
22/06/2022,1243566,Yarrow Housing Ltd,,Bi-Borough Director of Integrated Care,3373.44
05/05/2022,1249317,Zocalo Ltd T/as Bluebird Care,,Bi-Borough Director of Integrated Care,3213
05/05/2022,1249317,Zocalo Ltd T/as Bluebird Care,,Bi-Borough Director of Integrated Care,1558.5
18/05/2022,1249317,Zocalo Ltd T/as Bluebird Care,,Bi-Borough Director of Integrated Care,4117.5
18/05/2022,1249317,Zocalo Ltd T/as Bluebird Care,,Bi-Borough Director of Integrated Care,1953.65
07/06/2022,1249317,Zocalo Ltd T/as Bluebird Care,,Bi-Borough Director of Integrated Care,3666
07/06/2022,1249317,Zocalo Ltd T/as Bluebird Care,,Bi-Borough Director of Integrated Care,2023.14
27/06/2022,1249317,Zocalo Ltd T/as Bluebird Care,,Bi-Borough Director of Integrated Care,4056
27/06/2022,1249317,Zocalo Ltd T/as Bluebird Care,,Bi-Borough Director of Integrated Care,2068.17
07/04/2022,1249318,Zodiac Arts Ltd,B*Voluntary-Spot-V Dep-Enhanced - do not u,Bi-Borough Director of Integrated Care,715.5
11/05/2022,1249318,Zodiac Arts Ltd,B*Voluntary-Spot-V Dep-Enhanced - do not u,Bi-Borough Director of Integrated Care,715.5
09/06/2022,1249318,Zodiac Arts Ltd,B*Voluntary-Spot-V Dep-Enhanced - do not u,Bi-Borough Director of Integrated Care,715.5
13/05/2022,1283054,Ede's,Equipment,Bi-Borough Director of Integrated Care,1571.2
31/05/2022,1247594,Kingsfield Computer Products Ltd,Equipment,Bi-Borough Director of Integrated Care,1231.58
15/06/2022,1249119,The Loddon Training & Consultancy,Training related expenditure,Bi-Borough Director of Integrated Care,1876
04/04/2022,1249079,The Appropriate Adult Service Ltd,Training related expenditure,Bi-Borough Director of Integrated Care,1657.5
22/04/2022,1249079,The Appropriate Adult Service Ltd,Training related expenditure,Bi-Borough Director of Integrated Care,1391.88
17/05/2022,1249079,The Appropriate Adult Service Ltd,B*Voluntary-Spot-V Dep-Enhanced - do not u,Bi-Borough Director of Integrated Care,3431.88
17/05/2022,1249079,The Appropriate Adult Service Ltd,Training related expenditure,Bi-Borough Director of Integrated Care,1030.63
27/04/2022,1248618,Riverside Echg,,Bi-Borough Director of Integrated Care,1184.5
25/05/2022,1248618,Riverside Echg,,Bi-Borough Director of Integrated Care,1381.92
22/06/2022,1248618,Riverside Echg,,Bi-Borough Director of Integrated Care,1381.92
14/04/2022,1243797,Central & North West London Nhs,Other Expenses,Bi-Borough Director of Integrated Care,57987.68
27/05/2022,1243797,Central & North West London Nhs,Other Expenses,Bi-Borough Director of Integrated Care,21850
09/05/2022,D000000016,PERSONAL PAYMENTS,,Bi-Borough Director of Integrated Care,5000
27/04/2022,1247852,Look Ahead Care and Support Ltd,,Bi-Borough Director of Integrated Care,769.65
27/04/2022,1247852,Look Ahead Care and Support Ltd,,Bi-Borough Director of Integrated Care,721.95
27/04/2022,1247852,Look Ahead Care and Support Ltd,,Bi-Borough Director of Integrated Care,819.05
27/04/2022,1247852,Look Ahead Care and Support Ltd,,Bi-Borough Director of Integrated Care,769.65
27/04/2022,1247852,Look Ahead Care and Support Ltd,,Bi-Borough Director of Integrated Care,1077.12
27/04/2022,1247852,Look Ahead Care and Support Ltd,,Bi-Borough Director of Integrated Care,1211.14
27/04/2022,1247852,Look Ahead Care and Support Ltd,,Bi-Borough Director of Integrated Care,1077.12
27/04/2022,1247852,Look Ahead Care and Support Ltd,,Bi-Borough Director of Integrated Care,819.05
27/04/2022,1247852,Look Ahead Care and Support Ltd,,Bi-Borough Director of Integrated Care,721.95
25/05/2022,1247852,Look Ahead Care and Support Ltd,,Bi-Borough Director of Integrated Care,1256.64
25/05/2022,1247852,Look Ahead Care and Support Ltd,,Bi-Borough Director of Integrated Care,842.28
25/05/2022,1247852,Look Ahead Care and Support Ltd,,Bi-Borough Director of Integrated Care,955.56
25/05/2022,1247852,Look Ahead Care and Support Ltd,,Bi-Borough Director of Integrated Care,897.92
25/05/2022,1247852,Look Ahead Care and Support Ltd,,Bi-Borough Director of Integrated Care,955.56
25/05/2022,1247852,Look Ahead Care and Support Ltd,,Bi-Borough Director of Integrated Care,1256.64
25/05/2022,1247852,Look Ahead Care and Support Ltd,,Bi-Borough Director of Integrated Care,842.28
25/05/2022,1247852,Look Ahead Care and Support Ltd,,Bi-Borough Director of Integrated Care,1413
22/06/2022,1247852,Look Ahead Care and Support Ltd,,Bi-Borough Director of Integrated Care,1256.64
22/06/2022,1247852,Look Ahead Care and Support Ltd,,Bi-Borough Director of Integrated Care,842.28
22/06/2022,1247852,Look Ahead Care and Support Ltd,,Bi-Borough Director of Integrated Care,955.56
22/06/2022,1247852,Look Ahead Care and Support Ltd,,Bi-Borough Director of Integrated Care,1256.64
22/06/2022,1247852,Look Ahead Care and Support Ltd,,Bi-Borough Director of Integrated Care,842.28
22/06/2022,1247852,Look Ahead Care and Support Ltd,,Bi-Borough Director of Integrated Care,1413
22/06/2022,1247852,Look Ahead Care and Support Ltd,,Bi-Borough Director of Integrated Care,955.56
22/06/2022,1247852,Look Ahead Care and Support Ltd,,Bi-Borough Director of Integrated Care,897.92
27/04/2022,1248618,Riverside Echg,,Bi-Borough Director of Integrated Care,992.16
27/04/2022,1248618,Riverside Echg,,Bi-Borough Director of Integrated Care,1057.27
27/04/2022,1248618,Riverside Echg,,Bi-Borough Director of Integrated Care,864
27/04/2022,1248618,Riverside Echg,,Bi-Borough Director of Integrated Care,589.92
27/04/2022,1248618,Riverside Echg,,Bi-Borough Director of Integrated Care,1059.67
27/04/2022,1248618,Riverside Echg,,Bi-Borough Director of Integrated Care,605.76
25/05/2022,1248618,Riverside Echg,,Bi-Borough Director of Integrated Care,1236.28
25/05/2022,1248618,Riverside Echg,,Bi-Borough Director of Integrated Care,1008
25/05/2022,1248618,Riverside Echg,,Bi-Borough Director of Integrated Care,1157.52
25/05/2022,1248618,Riverside Echg,,Bi-Borough Director of Integrated Care,1233.48
25/05/2022,1248618,Riverside Echg,,Bi-Borough Director of Integrated Care,688.24
25/05/2022,1248618,Riverside Echg,,Bi-Borough Director of Integrated Care,706.72
22/06/2022,1248618,Riverside Echg,,Bi-Borough Director of Integrated Care,1236.28
22/06/2022,1248618,Riverside Echg,,Bi-Borough Director of Integrated Care,1058.96
22/06/2022,1248618,Riverside Echg,,Bi-Borough Director of Integrated Care,1008
22/06/2022,1248618,Riverside Echg,,Bi-Borough Director of Integrated Care,1157.52
22/06/2022,1248618,Riverside Echg,,Bi-Borough Director of Integrated Care,1233.48
22/06/2022,1248618,Riverside Echg,,Bi-Borough Director of Integrated Care,688.24
22/06/2022,1248618,Riverside Echg,,Bi-Borough Director of Integrated Care,706.72
27/04/2022,1245584,Single Homeless Project,,Bi-Borough Director of Integrated Care,1312.59
27/04/2022,1245584,Single Homeless Project,,Bi-Borough Director of Integrated Care,1312.63
27/04/2022,1245584,Single Homeless Project,,Bi-Borough Director of Integrated Care,923.07
25/05/2022,1245584,Single Homeless Project,,Bi-Borough Director of Integrated Care,1531.36
25/05/2022,1245584,Single Homeless Project,,Bi-Borough Director of Integrated Care,1531.4
25/05/2022,1245584,Single Homeless Project,,Bi-Borough Director of Integrated Care,1076.92
22/06/2022,1245584,Single Homeless Project,,Bi-Borough Director of Integrated Care,1076.92
22/06/2022,1245584,Single Homeless Project,,Bi-Borough Director of Integrated Care,1531.4
22/06/2022,1245584,Single Homeless Project,,Bi-Borough Director of Integrated Care,1531.36
27/04/2022,1245636,St Mungos Broadway (Grants &,,Bi-Borough Director of Integrated Care,889.44
27/04/2022,1245636,St Mungos Broadway (Grants &,,Bi-Borough Director of Integrated Care,1390.59
27/04/2022,1245636,St Mungos Broadway (Grants &,,Bi-Borough Director of Integrated Care,1390.59
27/04/2022,1245636,St Mungos Broadway (Grants &,,Bi-Borough Director of Integrated Care,910.8
27/04/2022,1245636,St Mungos Broadway (Grants &,,Bi-Borough Director of Integrated Care,1295.52
25/05/2022,1245636,St Mungos Broadway (Grants &,,Bi-Borough Director of Integrated Care,1037.68
25/05/2022,1245636,St Mungos Broadway (Grants &,,Bi-Borough Director of Integrated Care,1622.36
25/05/2022,1245636,St Mungos Broadway (Grants &,,Bi-Borough Director of Integrated Care,1622.36
25/05/2022,1245636,St Mungos Broadway (Grants &,,Bi-Borough Director of Integrated Care,1062.6
25/05/2022,1245636,St Mungos Broadway (Grants &,,Bi-Borough Director of Integrated Care,1511.44
22/06/2022,1245636,St Mungos Broadway (Grants &,,Bi-Borough Director of Integrated Care,1622.36
22/06/2022,1245636,St Mungos Broadway (Grants &,,Bi-Borough Director of Integrated Care,1622.36
22/06/2022,1245636,St Mungos Broadway (Grants &,,Bi-Borough Director of Integrated Care,1062.6
22/06/2022,1245636,St Mungos Broadway (Grants &,,Bi-Borough Director of Integrated Care,1511.44
22/06/2022,1245636,St Mungos Broadway (Grants &,,Bi-Borough Director of Integrated Care,1037.68
14/04/2022,1243797,Central & North West London Nhs,Other Expenses,Bi-Borough Director of Integrated Care,66652.06
27/05/2022,1243797,Central & North West London Nhs,Other Expenses,Bi-Borough Director of Integrated Care,5250
07/04/2022,1255843,A.I. Care Services Ltd,,Bi-Borough Director of Integrated Care,964.85
16/05/2022,1255843,A.I. Care Services Ltd,,Bi-Borough Director of Integrated Care,973.24
13/06/2022,1255843,A.I. Care Services Ltd,,Bi-Borough Director of Integrated Care,973.24
29/06/2022,1255843,A.I. Care Services Ltd,,Bi-Borough Director of Integrated Care,973.24
03/05/2022,1286967,ACS Homecare Ltd,,Bi-Borough Director of Integrated Care,1409.52
08/06/2022,1286967,ACS Homecare Ltd,,Bi-Borough Director of Integrated Care,1812.24
12/04/2022,1243931,Ashbourne Healthcare Services,,Bi-Borough Director of Integrated Care,1292.06
12/04/2022,1243931,Ashbourne Healthcare Services,,Bi-Borough Director of Integrated Care,917.31
12/04/2022,1243931,Ashbourne Healthcare Services,,Bi-Borough Director of Integrated Care,917.31
19/04/2022,1243931,Ashbourne Healthcare Services,,Bi-Borough Director of Integrated Care,1057.14
19/04/2022,1243931,Ashbourne Healthcare Services,,Bi-Borough Director of Integrated Care,994.12
19/04/2022,1243931,Ashbourne Healthcare Services,,Bi-Borough Director of Integrated Care,976.68
18/05/2022,1243931,Ashbourne Healthcare Services,,Bi-Borough Director of Integrated Care,1006.8
18/05/2022,1243931,Ashbourne Healthcare Services,,Bi-Borough Director of Integrated Care,855.78
18/05/2022,1243931,Ashbourne Healthcare Services,,Bi-Borough Director of Integrated Care,1174.6
19/05/2022,1243931,Ashbourne Healthcare Services,,Bi-Borough Director of Integrated Care,1174.6
19/05/2022,1243931,Ashbourne Healthcare Services,,Bi-Borough Director of Integrated Care,930.25
19/05/2022,1243931,Ashbourne Healthcare Services,,Bi-Borough Director of Integrated Care,983.92
06/06/2022,1243931,Ashbourne Healthcare Services,,Bi-Borough Director of Integrated Care,1292.06
06/06/2022,1243931,Ashbourne Healthcare Services,,Bi-Borough Director of Integrated Care,522.04
06/06/2022,1243931,Ashbourne Healthcare Services,,Bi-Borough Director of Integrated Care,522.04
14/06/2022,1243931,Ashbourne Healthcare Services,,Bi-Borough Director of Integrated Care,1292.06
14/06/2022,1243931,Ashbourne Healthcare Services,,Bi-Borough Director of Integrated Care,939.68
14/06/2022,1243931,Ashbourne Healthcare Services,,Bi-Borough Director of Integrated Care,939.68
17/06/2022,1243931,Ashbourne Healthcare Services,,Bi-Borough Director of Integrated Care,3825.84
27/04/2022,1271022,BONZA CARE LTD,,Bi-Borough Director of Integrated Care,1443.43
27/04/2022,1271022,BONZA CARE LTD,,Bi-Borough Director of Integrated Care,3257.14
25/05/2022,1271022,BONZA CARE LTD,,Bi-Borough Director of Integrated Care,3800
25/05/2022,1271022,BONZA CARE LTD,,Bi-Borough Director of Integrated Care,1684
22/06/2022,1271022,BONZA CARE LTD,,Bi-Borough Director of Integrated Care,3800
22/06/2022,1271022,BONZA CARE LTD,,Bi-Borough Director of Integrated Care,1684
26/05/2022,1246247,Blitz Home Environmental Cleaning,,Bi-Borough Director of Integrated Care,700
26/05/2022,1246247,Blitz Home Environmental Cleaning,,Bi-Borough Director of Integrated Care,1200
26/05/2022,1246247,Blitz Home Environmental Cleaning,,Bi-Borough Director of Integrated Care,800
08/04/2022,1246261,Brent Wandsworth & Westminster,,Bi-Borough Director of Integrated Care,700.05
08/04/2022,1246261,Brent Wandsworth & Westminster,,Bi-Borough Director of Integrated Care,780.27
25/04/2022,1246261,Brent Wandsworth & Westminster,B*Voluntary-Spot-V Dep-Enhanced - do not u,Bi-Borough Director of Integrated Care,807.75
08/06/2022,1246261,Brent Wandsworth & Westminster,B*Voluntary-Spot-V Dep-Enhanced - do not u,Bi-Borough Director of Integrated Care,700.05
10/06/2022,1246261,Brent Wandsworth & Westminster,B*Voluntary-Spot-V Dep-Enhanced - do not u,Bi-Borough Director of Integrated Care,1073.15
17/06/2022,1246262,Brent Wandsworth & Westminster,B*Voluntary-Spot-V Dep-Enhanced - do not u,Bi-Borough Director of Integrated Care,720
27/04/2022,1247482,PERSONAL PAYMENTS,,Bi-Borough Director of Integrated Care,714.24
25/05/2022,1247482,PERSONAL PAYMENTS,,Bi-Borough Director of Integrated Care,833.28
22/06/2022,1247482,PERSONAL PAYMENTS,,Bi-Borough Director of Integrated Care,833.28
27/04/2022,1246321,Camphill Village Trust,,Bi-Borough Director of Integrated Care,951.09
25/05/2022,1246321,Camphill Village Trust,,Bi-Borough Director of Integrated Care,2028.95
22/06/2022,1246321,Camphill Village Trust,,Bi-Borough Director of Integrated Care,1159.4
07/04/2022,1286484,City Winners Limited,,Bi-Borough Director of Integrated Care,1330
25/04/2022,1286484,City Winners Limited,,Bi-Borough Director of Integrated Care,1720
29/04/2022,1286484,City Winners Limited,,Bi-Borough Director of Integrated Care,1530
25/04/2022,1246581,Clearup Solutions Limited,,Bi-Borough Director of Integrated Care,2250
29/04/2022,1246581,Clearup Solutions Limited,,Bi-Borough Director of Integrated Care,950
26/05/2022,1246581,Clearup Solutions Limited,,Bi-Borough Director of Integrated Care,685
07/06/2022,1246581,Clearup Solutions Limited,,Bi-Borough Director of Integrated Care,1285
25/04/2022,1244190,Clouds End Services Ltd,,Bi-Borough Director of Integrated Care,1200
12/05/2022,1244190,Clouds End Services Ltd,,Bi-Borough Director of Integrated Care,540
27/04/2022,1246602,Community Housing Therapy,,Bi-Borough Director of Integrated Care,1662.86
25/05/2022,1246602,Community Housing Therapy,,Bi-Borough Director of Integrated Care,1940
22/06/2022,1246602,Community Housing Therapy,,Bi-Borough Director of Integrated Care,1940
12/04/2022,1244225,Core Arts,B*Voluntary-Spot-V Dep-Enhanced - do not u,Bi-Borough Director of Integrated Care,2000
25/05/2022,1290427,DPR Housing Limited,,Bi-Borough Director of Integrated Care,3190.86
25/05/2022,1290427,DPR Housing Limited,,Bi-Borough Director of Integrated Care,3190.86
11/05/2022,1284861,PERSONAL PAYMENTS,B*Voluntary-Spot-V Dep-Enhanced - do not u,Bi-Borough Director of Integrated Care,6500
14/06/2022,1284861,PERSONAL PAYMENTS,B*Voluntary-Spot-V Dep-Enhanced - do not u,Bi-Borough Director of Integrated Care,6240
14/06/2022,1284861,PERSONAL PAYMENTS,B*Voluntary-Spot-V Dep-Enhanced - do not u,Bi-Borough Director of Integrated Care,5980
05/05/2022,1259597,Ethica Services LTD,,Bi-Borough Director of Integrated Care,771.88
19/05/2022,1259597,Ethica Services LTD,,Bi-Borough Director of Integrated Care,1023.34
09/06/2022,1259597,Ethica Services LTD,,Bi-Borough Director of Integrated Care,1153.37
29/06/2022,1259597,Ethica Services LTD,,Bi-Borough Director of Integrated Care,1174.33
12/04/2022,1247257,Health Vision Uk,,Bi-Borough Director of Integrated Care,666.49
12/04/2022,1247257,Health Vision Uk,,Bi-Borough Director of Integrated Care,967.87
12/04/2022,1247257,Health Vision Uk,,Bi-Borough Director of Integrated Care,518.84
12/04/2022,1247257,Health Vision Uk,,Bi-Borough Director of Integrated Care,517.29
12/04/2022,1247257,Health Vision Uk,,Bi-Borough Director of Integrated Care,534.9
12/04/2022,1247257,Health Vision Uk,,Bi-Borough Director of Integrated Care,1037.68
12/04/2022,1247257,Health Vision Uk,,Bi-Borough Director of Integrated Care,1429.93
20/05/2022,1247257,Health Vision Uk,,Bi-Borough Director of Integrated Care,665.74
20/05/2022,1247257,Health Vision Uk,,Bi-Borough Director of Integrated Care,967.85
20/05/2022,1247257,Health Vision Uk,,Bi-Borough Director of Integrated Care,518.67
20/05/2022,1247257,Health Vision Uk,,Bi-Borough Director of Integrated Care,500.61
20/05/2022,1247257,Health Vision Uk,,Bi-Borough Director of Integrated Care,522.86
20/05/2022,1247257,Health Vision Uk,,Bi-Borough Director of Integrated Care,518.84
20/05/2022,1247257,Health Vision Uk,,Bi-Borough Director of Integrated Care,1491.83
20/05/2022,1247257,Health Vision Uk,,Bi-Borough Director of Integrated Care,621.02
10/06/2022,1247257,Health Vision Uk,,Bi-Borough Director of Integrated Care,665.98
10/06/2022,1247257,Health Vision Uk,,Bi-Borough Director of Integrated Care,961.11
10/06/2022,1247257,Health Vision Uk,,Bi-Borough Director of Integrated Care,528.38
10/06/2022,1247257,Health Vision Uk,,Bi-Borough Director of Integrated Care,517.6
10/06/2022,1247257,Health Vision Uk,,Bi-Borough Director of Integrated Care,520.12
10/06/2022,1247257,Health Vision Uk,,Bi-Borough Director of Integrated Care,1037.68
10/06/2022,1247257,Health Vision Uk,,Bi-Borough Director of Integrated Care,1477.27
10/06/2022,1247257,Health Vision Uk,,Bi-Borough Director of Integrated Care,668.9
27/06/2022,1247257,Health Vision Uk,,Bi-Borough Director of Integrated Care,515.44
27/06/2022,1247257,Health Vision Uk,,Bi-Borough Director of Integrated Care,543.35
27/06/2022,1247257,Health Vision Uk,,Bi-Borough Director of Integrated Care,1037.68
27/06/2022,1247257,Health Vision Uk,,Bi-Borough Director of Integrated Care,1488.45
27/06/2022,1247257,Health Vision Uk,,Bi-Borough Director of Integrated Care,643.28
27/06/2022,1247257,Health Vision Uk,,Bi-Borough Director of Integrated Care,622.92
27/06/2022,1247257,Health Vision Uk,,Bi-Borough Director of Integrated Care,673.82
27/06/2022,1247257,Health Vision Uk,,Bi-Borough Director of Integrated Care,666.29
27/06/2022,1247257,Health Vision Uk,,Bi-Borough Director of Integrated Care,959.94
27/06/2022,1247257,Health Vision Uk,,Bi-Borough Director of Integrated Care,513.75
26/05/2022,1282613,I Support Behaviour LTD,B*Voluntary-Spot-V Dep-Enhanced - do not u,Bi-Borough Director of Integrated Care,570
08/04/2022,1256893,Kapital Care WCC,,Bi-Borough Director of Integrated Care,939.68
05/05/2022,1256893,Kapital Care WCC,,Bi-Borough Director of Integrated Care,939.68
05/05/2022,1256893,Kapital Care WCC,,Bi-Borough Director of Integrated Care,839
06/06/2022,1256893,Kapital Care WCC,,Bi-Borough Director of Integrated Care,939.68
06/06/2022,1256893,Kapital Care WCC,,Bi-Borough Director of Integrated Care,1879.36
07/04/2022,1247650,London Care Ltd,,Bi-Borough Director of Integrated Care,903.09
07/04/2022,1247650,London Care Ltd,,Bi-Borough Director of Integrated Care,699.52
07/04/2022,1247650,London Care Ltd,,Bi-Borough Director of Integrated Care,834.17
07/04/2022,1247650,London Care Ltd,,Bi-Borough Director of Integrated Care,514.2
07/04/2022,1247650,London Care Ltd,,Bi-Borough Director of Integrated Care,917.4
07/04/2022,1247650,London Care Ltd,,Bi-Borough Director of Integrated Care,1248.71
20/05/2022,1247650,London Care Ltd,,Bi-Borough Director of Integrated Care,699.82
20/05/2022,1247650,London Care Ltd,,Bi-Borough Director of Integrated Care,911.69
20/05/2022,1247650,London Care Ltd,,Bi-Borough Director of Integrated Care,514.82
20/05/2022,1247650,London Care Ltd,,Bi-Borough Director of Integrated Care,1026.35
20/05/2022,1247650,London Care Ltd,,Bi-Borough Director of Integrated Care,1298.02
20/05/2022,1247650,London Care Ltd,,Bi-Borough Director of Integrated Care,882.02
14/06/2022,1247650,London Care Ltd,,Bi-Borough Director of Integrated Care,695.18
14/06/2022,1247650,London Care Ltd,,Bi-Borough Director of Integrated Care,972.5
14/06/2022,1247650,London Care Ltd,,Bi-Borough Director of Integrated Care,508.51
14/06/2022,1247650,London Care Ltd,,Bi-Borough Director of Integrated Care,963.35
14/06/2022,1247650,London Care Ltd,,Bi-Borough Director of Integrated Care,1004.87
14/06/2022,1247650,London Care Ltd,,Bi-Borough Director of Integrated Care,1265.32
14/06/2022,1247650,London Care Ltd,,Bi-Borough Director of Integrated Care,891.58
14/06/2022,1247650,London Care Ltd,,Bi-Borough Director of Integrated Care,517.89
27/04/2022,1247852,Look Ahead Care and Support Ltd,Rent,Bi-Borough Director of Integrated Care,1117.1
25/05/2022,1247852,Look Ahead Care and Support Ltd,Rent,Bi-Borough Director of Integrated Care,1303.28
22/06/2022,1247852,Look Ahead Care and Support Ltd,Rent,Bi-Borough Director of Integrated Care,1303.28
22/06/2022,1247852,Look Ahead Care and Support Ltd,Rent,Bi-Borough Director of Integrated Care,1605.1
27/04/2022,1262948,Lotus House,,Bi-Borough Director of Integrated Care,2509.71
25/05/2022,1262948,Lotus House,,Bi-Borough Director of Integrated Care,2928
22/06/2022,1262948,Lotus House,,Bi-Borough Director of Integrated Care,2928
27/04/2022,1244866,Micado Community Living Services,,Bi-Borough Director of Integrated Care,2468.57
25/05/2022,1244866,Micado Community Living Services,,Bi-Borough Director of Integrated Care,2880
22/06/2022,1244866,Micado Community Living Services,,Bi-Borough Director of Integrated Care,2880
15/06/2022,1244905,Nas Services Ltd (Residential),B*Voluntary-Spot-V Dep-Enhanced - do not u,Bi-Borough Director of Integrated Care,1065.12
27/04/2022,1270326,New Directions Flexible Social Care,,Bi-Borough Director of Integrated Care,1200
25/05/2022,1270326,New Directions Flexible Social Care,,Bi-Borough Director of Integrated Care,1400
22/06/2022,1270326,New Directions Flexible Social Care,,Bi-Borough Director of Integrated Care,1400
07/04/2022,1254334,PERSONAL PAYMENTS,Adult Social Care - Other Transfer Pay,Bi-Borough Director of Integrated Care,1500
07/04/2022,1247409,PERSONAL PAYMENTS,Social Care - Direct Payments,Bi-Borough Director of Integrated Care,508.84
07/04/2022,1284661,PERSONAL PAYMENTS,Social Care - Direct Payments,Bi-Borough Director of Integrated Care,1849.72
07/04/2022,1256902,PERSONAL PAYMENTS,Social Care - Direct Payments,Bi-Borough Director of Integrated Care,933.92
07/04/2022,1266895,PERSONAL PAYMENTS,Social Care - Direct Payments,Bi-Borough Director of Integrated Care,728
07/04/2022,1247479,PERSONAL PAYMENTS,Social Care - Direct Payments,Bi-Borough Director of Integrated Care,1639.08
07/04/2022,1259940,PERSONAL PAYMENTS,Adult Social Care - Other Transfer Pay,Bi-Borough Director of Integrated Care,1913.76
05/05/2022,1266895,PERSONAL PAYMENTS,Social Care - Direct Payments,Bi-Borough Director of Integrated Care,728
05/05/2022,1256902,PERSONAL PAYMENTS,Social Care - Direct Payments,Bi-Borough Director of Integrated Care,933.92
05/05/2022,1247479,PERSONAL PAYMENTS,Social Care - Direct Payments,Bi-Borough Director of Integrated Care,1639.08
05/05/2022,1247409,PERSONAL PAYMENTS,Social Care - Direct Payments,Bi-Borough Director of Integrated Care,508.84
05/05/2022,1259940,PERSONAL PAYMENTS,Adult Social Care - Other Transfer Pay,Bi-Borough Director of Integrated Care,1913.76
05/05/2022,1284661,PERSONAL PAYMENTS,Social Care - Direct Payments,Bi-Borough Director of Integrated Care,528
05/05/2022,1254334,PERSONAL PAYMENTS,Adult Social Care - Other Transfer Pay,Bi-Borough Director of Integrated Care,1500
16/05/2022,1291114,PERSONAL PAYMENTS,Social Care - Direct Payments,Bi-Borough Director of Integrated Care,2640
31/05/2022,1284661,PERSONAL PAYMENTS,Social Care - Direct Payments,Bi-Borough Director of Integrated Care,528
31/05/2022,1291114,PERSONAL PAYMENTS,Social Care - Direct Payments,Bi-Borough Director of Integrated Care,960
31/05/2022,1254334,PERSONAL PAYMENTS,Adult Social Care - Other Transfer Pay,Bi-Borough Director of Integrated Care,1500
31/05/2022,1266895,PERSONAL PAYMENTS,Social Care - Direct Payments,Bi-Borough Director of Integrated Care,728
31/05/2022,1259940,PERSONAL PAYMENTS,Adult Social Care - Other Transfer Pay,Bi-Borough Director of Integrated Care,1913.76
31/05/2022,1247479,PERSONAL PAYMENTS,Social Care - Direct Payments,Bi-Borough Director of Integrated Care,1639.08
31/05/2022,1247409,PERSONAL PAYMENTS,Social Care - Direct Payments,Bi-Borough Director of Integrated Care,508.84
30/06/2022,1284661,PERSONAL PAYMENTS,Social Care - Direct Payments,Bi-Borough Director of Integrated Care,528
30/06/2022,1291114,PERSONAL PAYMENTS,Social Care - Direct Payments,Bi-Borough Director of Integrated Care,960
30/06/2022,1254334,PERSONAL PAYMENTS,Adult Social Care - Other Transfer Pay,Bi-Borough Director of Integrated Care,1500
30/06/2022,1266895,PERSONAL PAYMENTS,Social Care - Direct Payments,Bi-Borough Director of Integrated Care,728
30/06/2022,1247409,PERSONAL PAYMENTS,Social Care - Direct Payments,Bi-Borough Director of Integrated Care,508.84
30/06/2022,1247479,PERSONAL PAYMENTS,Social Care - Direct Payments,Bi-Borough Director of Integrated Care,1639.08
30/06/2022,1259940,PERSONAL PAYMENTS,Adult Social Care - Other Transfer Pay,Bi-Borough Director of Integrated Care,1913.76
27/04/2022,1269718,Reliant Care Limited,,Bi-Borough Director of Integrated Care,1148.57
25/05/2022,1269718,Reliant Care Limited,,Bi-Borough Director of Integrated Care,1340
22/06/2022,1269718,Reliant Care Limited,,Bi-Borough Director of Integrated Care,1340
08/04/2022,1245316,Respect Care Services Ltd,,Bi-Borough Director of Integrated Care,604.08
05/05/2022,1245316,Respect Care Services Ltd,,Bi-Borough Director of Integrated Care,604.08
17/05/2022,1245316,Respect Care Services Ltd,,Bi-Borough Director of Integrated Care,604.08
23/05/2022,1245316,Respect Care Services Ltd,,Bi-Borough Director of Integrated Care,604.08
06/06/2022,1245316,Respect Care Services Ltd,,Bi-Borough Director of Integrated Care,604.08
27/04/2022,1248618,Riverside Echg,Rent,Bi-Borough Director of Integrated Care,717.12
27/04/2022,1248618,Riverside Echg,Rent,Bi-Borough Director of Integrated Care,730.56
27/04/2022,1248618,Riverside Echg,Rent,Bi-Borough Director of Integrated Care,905.04
25/05/2022,1248618,Riverside Echg,Rent,Bi-Borough Director of Integrated Care,836.64
25/05/2022,1248618,Riverside Echg,Rent,Bi-Borough Director of Integrated Care,852.32
25/05/2022,1248618,Riverside Echg,Rent,Bi-Borough Director of Integrated Care,1055.88
22/06/2022,1248618,Riverside Echg,Rent,Bi-Borough Director of Integrated Care,836.64
22/06/2022,1248618,Riverside Echg,Rent,Bi-Borough Director of Integrated Care,852.32
22/06/2022,1248618,Riverside Echg,Rent,Bi-Borough Director of Integrated Care,1055.88
27/04/2022,1272438,ST GEORGES SUPPORTED LIVING LTD,,Bi-Borough Director of Integrated Care,1457.14
25/05/2022,1272438,ST GEORGES SUPPORTED LIVING LTD,,Bi-Borough Director of Integrated Care,1700
22/06/2022,1272438,ST GEORGES SUPPORTED LIVING LTD,,Bi-Borough Director of Integrated Care,1700
21/06/2022,1248843,Sage Care Ltd,,Bi-Borough Director of Integrated Care,2264.03
21/06/2022,1248843,Sage Care Ltd,,Bi-Borough Director of Integrated Care,572.89
21/06/2022,1248843,Sage Care Ltd,,Bi-Borough Director of Integrated Care,1816.08
21/06/2022,1248843,Sage Care Ltd,,Bi-Borough Director of Integrated Care,2256.9
21/06/2022,1248843,Sage Care Ltd,,Bi-Borough Director of Integrated Care,2276.66
21/06/2022,1248843,Sage Care Ltd,,Bi-Borough Director of Integrated Care,1807.42
21/06/2022,1248843,Sage Care Ltd,,Bi-Borough Director of Integrated Care,943.49
21/06/2022,1248843,Sage Care Ltd,,Bi-Borough Director of Integrated Care,1799.08
21/06/2022,1248843,Sage Care Ltd,,Bi-Borough Director of Integrated Care,1000.29
27/04/2022,1245584,Single Homeless Project,Rent,Bi-Borough Director of Integrated Care,2827.76
25/05/2022,1245584,Single Homeless Project,Rent,Bi-Borough Director of Integrated Care,1413.88
22/06/2022,1245584,Single Homeless Project,Rent,Bi-Borough Director of Integrated Care,1413.88
27/04/2022,1248970,St Martin Of Tours Ha Ltd (Use,,Bi-Borough Director of Integrated Care,3257.14
25/05/2022,1248970,St Martin Of Tours Ha Ltd (Use,,Bi-Borough Director of Integrated Care,3800
22/06/2022,1248970,St Martin Of Tours Ha Ltd (Use,,Bi-Borough Director of Integrated Care,3800
27/04/2022,1245636,St Mungos Broadway (Grants &,Rent,Bi-Borough Director of Integrated Care,2607.36
25/05/2022,1245636,St Mungos Broadway (Grants &,Rent,Bi-Borough Director of Integrated Care,1622.36
22/06/2022,1245636,St Mungos Broadway (Grants &,Rent,Bi-Borough Director of Integrated Care,1622.36
12/04/2022,1245182,Supporting Care Ltd,,Bi-Borough Director of Integrated Care,2930.23
06/05/2022,1245182,Supporting Care Ltd,,Bi-Borough Director of Integrated Care,3044.82
21/06/2022,1245182,Supporting Care Ltd,,Bi-Borough Director of Integrated Care,3044.82
27/04/2022,1270462,TRIVENI CARE LTD,,Bi-Borough Director of Integrated Care,1954.29
25/05/2022,1270462,TRIVENI CARE LTD,,Bi-Borough Director of Integrated Care,2280
22/06/2022,1270462,TRIVENI CARE LTD,,Bi-Borough Director of Integrated Care,2280
27/04/2022,1246095,Theana Ltd T/a Enlighten Homes,,Bi-Borough Director of Integrated Care,3377.14
06/04/2022,1249232,Vincentian Care Plus,,Bi-Borough Director of Integrated Care,1556.48
06/04/2022,1249232,Vincentian Care Plus,,Bi-Borough Director of Integrated Care,1291.13
06/04/2022,1249232,Vincentian Care Plus,,Bi-Borough Director of Integrated Care,1111.8
06/04/2022,1249232,Vincentian Care Plus,,Bi-Borough Director of Integrated Care,667.08
06/04/2022,1249232,Vincentian Care Plus,,Bi-Borough Director of Integrated Care,592.96
06/04/2022,1249232,Vincentian Care Plus,,Bi-Borough Director of Integrated Care,1297.1
06/04/2022,1249232,Vincentian Care Plus,,Bi-Borough Director of Integrated Care,1046.43
06/04/2022,1249232,Vincentian Care Plus,,Bi-Borough Director of Integrated Care,2594.2
06/04/2022,1249232,Vincentian Care Plus,,Bi-Borough Director of Integrated Care,2056.83
06/04/2022,1249232,Vincentian Care Plus,,Bi-Borough Director of Integrated Care,815.3
06/04/2022,1249232,Vincentian Care Plus,,Bi-Borough Director of Integrated Care,1028.42
06/04/2022,1249232,Vincentian Care Plus,,Bi-Borough Director of Integrated Care,2334.78
06/04/2022,1249232,Vincentian Care Plus,,Bi-Borough Director of Integrated Care,509.57
06/04/2022,1249232,Vincentian Care Plus,,Bi-Borough Director of Integrated Care,518.84
06/04/2022,1249232,Vincentian Care Plus,,Bi-Borough Director of Integrated Care,518.84
06/04/2022,1249232,Vincentian Care Plus,,Bi-Borough Director of Integrated Care,518.84
06/04/2022,1249232,Vincentian Care Plus,,Bi-Borough Director of Integrated Care,778.26
06/04/2022,1249232,Vincentian Care Plus,,Bi-Borough Director of Integrated Care,518.84
06/04/2022,1249232,Vincentian Care Plus,,Bi-Borough Director of Integrated Care,778.26
06/05/2022,1249232,Vincentian Care Plus,,Bi-Borough Director of Integrated Care,1580.06
06/05/2022,1249232,Vincentian Care Plus,,Bi-Borough Director of Integrated Care,1128.66
06/05/2022,1249232,Vincentian Care Plus,,Bi-Borough Director of Integrated Care,677.17
06/05/2022,1249232,Vincentian Care Plus,,Bi-Borough Director of Integrated Care,601.92
06/05/2022,1249232,Vincentian Care Plus,,Bi-Borough Director of Integrated Care,1316.71
06/05/2022,1249232,Vincentian Care Plus,,Bi-Borough Director of Integrated Care,994.86
06/05/2022,1249232,Vincentian Care Plus,,Bi-Borough Director of Integrated Care,2633.4
06/05/2022,1249232,Vincentian Care Plus,,Bi-Borough Director of Integrated Care,2087.91
06/05/2022,1249232,Vincentian Care Plus,,Bi-Borough Director of Integrated Care,776.44
06/05/2022,1249232,Vincentian Care Plus,,Bi-Borough Director of Integrated Care,1053.36
06/05/2022,1249232,Vincentian Care Plus,,Bi-Borough Director of Integrated Care,2370.06
06/05/2022,1249232,Vincentian Care Plus,,Bi-Borough Director of Integrated Care,527.8
06/05/2022,1249232,Vincentian Care Plus,,Bi-Borough Director of Integrated Care,526.68
06/05/2022,1249232,Vincentian Care Plus,,Bi-Borough Director of Integrated Care,526.68
06/05/2022,1249232,Vincentian Care Plus,,Bi-Borough Director of Integrated Care,526.68
06/05/2022,1249232,Vincentian Care Plus,,Bi-Borough Director of Integrated Care,790.02
06/05/2022,1249232,Vincentian Care Plus,,Bi-Borough Director of Integrated Care,510.39
06/05/2022,1249232,Vincentian Care Plus,,Bi-Borough Director of Integrated Care,790.02
13/05/2022,1249232,Vincentian Care Plus,,Bi-Borough Director of Integrated Care,1317.86
26/05/2022,1249232,Vincentian Care Plus,,Bi-Borough Director of Integrated Care,1541.57
26/05/2022,1249232,Vincentian Care Plus,,Bi-Borough Director of Integrated Care,1111.8
26/05/2022,1249232,Vincentian Care Plus,,Bi-Borough Director of Integrated Care,667.08
26/05/2022,1249232,Vincentian Care Plus,,Bi-Borough Director of Integrated Care,592.96
26/05/2022,1249232,Vincentian Care Plus,,Bi-Borough Director of Integrated Care,1280.48
26/05/2022,1249232,Vincentian Care Plus,,Bi-Borough Director of Integrated Care,972.85
26/05/2022,1249232,Vincentian Care Plus,,Bi-Borough Director of Integrated Care,2594.2
26/05/2022,1249232,Vincentian Care Plus,,Bi-Borough Director of Integrated Care,2112.42
26/05/2022,1249232,Vincentian Care Plus,,Bi-Borough Director of Integrated Care,815.3
26/05/2022,1249232,Vincentian Care Plus,,Bi-Borough Director of Integrated Care,1037.68
26/05/2022,1249232,Vincentian Care Plus,,Bi-Borough Director of Integrated Care,2251.4
26/05/2022,1249232,Vincentian Care Plus,,Bi-Borough Director of Integrated Care,518.84
26/05/2022,1249232,Vincentian Care Plus,,Bi-Borough Director of Integrated Care,504.43
26/05/2022,1249232,Vincentian Care Plus,,Bi-Borough Director of Integrated Care,500.31
26/05/2022,1249232,Vincentian Care Plus,,Bi-Borough Director of Integrated Care,759.73
26/05/2022,1249232,Vincentian Care Plus,,Bi-Borough Director of Integrated Care,759.73
17/06/2022,1249232,Vincentian Care Plus,,Bi-Borough Director of Integrated Care,926.04
21/06/2022,1249232,Vincentian Care Plus,,Bi-Borough Director of Integrated Care,1603.58
21/06/2022,1249232,Vincentian Care Plus,,Bi-Borough Director of Integrated Care,1145.46
21/06/2022,1249232,Vincentian Care Plus,,Bi-Borough Director of Integrated Care,687.25
21/06/2022,1249232,Vincentian Care Plus,,Bi-Borough Director of Integrated Care,610.88
21/06/2022,1249232,Vincentian Care Plus,,Bi-Borough Director of Integrated Care,1336.31
21/06/2022,1249232,Vincentian Care Plus,,Bi-Borough Director of Integrated Care,1078.06
21/06/2022,1249232,Vincentian Care Plus,,Bi-Borough Director of Integrated Care,2672.6
21/06/2022,1249232,Vincentian Care Plus,,Bi-Borough Director of Integrated Care,2118.99
21/06/2022,1249232,Vincentian Care Plus,,Bi-Borough Director of Integrated Care,839.97
21/06/2022,1249232,Vincentian Care Plus,,Bi-Borough Director of Integrated Care,1069.04
21/06/2022,1249232,Vincentian Care Plus,,Bi-Borough Director of Integrated Care,2405.34
21/06/2022,1249232,Vincentian Care Plus,,Bi-Borough Director of Integrated Care,534.52
21/06/2022,1249232,Vincentian Care Plus,,Bi-Borough Director of Integrated Care,534.52
21/06/2022,1249232,Vincentian Care Plus,,Bi-Borough Director of Integrated Care,534.52
21/06/2022,1249232,Vincentian Care Plus,,Bi-Borough Director of Integrated Care,801.78
21/06/2022,1249232,Vincentian Care Plus,,Bi-Borough Director of Integrated Care,519.91
21/06/2022,1249232,Vincentian Care Plus,,Bi-Borough Director of Integrated Care,801.78
21/06/2022,1249232,Vincentian Care Plus,,Bi-Borough Director of Integrated Care,763.6
29/04/2022,1249291,Westminster Society,,Bi-Borough Director of Integrated Care,1360
22/06/2022,1249291,Westminster Society,,Bi-Borough Director of Integrated Care,1295.36
22/06/2022,1249291,Westminster Society,,Bi-Borough Director of Integrated Care,1295.36
27/04/2022,1243566,Yarrow Housing Ltd,,Bi-Borough Director of Integrated Care,1207.44
25/05/2022,1243566,Yarrow Housing Ltd,,Bi-Borough Director of Integrated Care,1408.68
22/06/2022,1243566,Yarrow Housing Ltd,,Bi-Borough Director of Integrated Care,1408.68
27/04/2022,1243431,Abba Residential Home,,Bi-Borough Director of Integrated Care,3038.19
27/04/2022,1243431,Abba Residential Home,,Bi-Borough Director of Integrated Care,1397.07
27/04/2022,1243431,Abba Residential Home,,Bi-Borough Director of Integrated Care,1397.07
27/04/2022,1243431,Abba Residential Home,,Bi-Borough Director of Integrated Care,2118.86
27/04/2022,1243431,Abba Residential Home,,Bi-Borough Director of Integrated Care,2118.86
27/04/2022,1243431,Abba Residential Home,,Bi-Borough Director of Integrated Care,2106.17
25/05/2022,1243431,Abba Residential Home,,Bi-Borough Director of Integrated Care,2472
25/05/2022,1243431,Abba Residential Home,,Bi-Borough Director of Integrated Care,2472
25/05/2022,1243431,Abba Residential Home,,Bi-Borough Director of Integrated Care,2457.2
25/05/2022,1243431,Abba Residential Home,,Bi-Borough Director of Integrated Care,3544.56
25/05/2022,1243431,Abba Residential Home,,Bi-Borough Director of Integrated Care,1629.92
25/05/2022,1243431,Abba Residential Home,,Bi-Borough Director of Integrated Care,1629.92
22/06/2022,1243431,Abba Residential Home,,Bi-Borough Director of Integrated Care,3544.56
22/06/2022,1243431,Abba Residential Home,,Bi-Borough Director of Integrated Care,1629.92
22/06/2022,1243431,Abba Residential Home,,Bi-Borough Director of Integrated Care,1629.92
22/06/2022,1243431,Abba Residential Home,,Bi-Borough Director of Integrated Care,2472
22/06/2022,1243431,Abba Residential Home,,Bi-Borough Director of Integrated Care,2472
22/06/2022,1243431,Abba Residential Home,,Bi-Borough Director of Integrated Care,2457.2
27/04/2022,1243851,Accomplish Group Ltd,,Bi-Borough Director of Integrated Care,3197.14
27/04/2022,1243851,Accomplish Group Ltd,,Bi-Borough Director of Integrated Care,3197.14
25/05/2022,1243851,Accomplish Group Ltd,,Bi-Borough Director of Integrated Care,3730
25/05/2022,1243851,Accomplish Group Ltd,,Bi-Borough Director of Integrated Care,3730
22/06/2022,1243851,Accomplish Group Ltd,,Bi-Borough Director of Integrated Care,3730
22/06/2022,1243851,Accomplish Group Ltd,,Bi-Borough Director of Integrated Care,3730
05/04/2022,1245982,Anchor Trust,,Bi-Borough Director of Integrated Care,2802.65
05/04/2022,1245982,Anchor Trust,,Bi-Borough Director of Integrated Care,1401.33
05/04/2022,1245982,Anchor Trust,,Bi-Borough Director of Integrated Care,1401.33
27/04/2022,1245982,Anchor Trust,,Bi-Borough Director of Integrated Care,1479.19
27/04/2022,1245982,Anchor Trust,,Bi-Borough Director of Integrated Care,1479.15
17/05/2022,1245982,Anchor Trust,,Bi-Borough Director of Integrated Care,1050.99
17/05/2022,1245982,Anchor Trust,,Bi-Borough Director of Integrated Care,1050.99
17/05/2022,1245982,Anchor Trust,,Bi-Borough Director of Integrated Care,2101.99
25/05/2022,1245982,Anchor Trust,,Bi-Borough Director of Integrated Care,1725.68
25/05/2022,1245982,Anchor Trust,,Bi-Borough Director of Integrated Care,1725.72
22/06/2022,1245982,Anchor Trust,,Bi-Borough Director of Integrated Care,1725.72
22/06/2022,1245982,Anchor Trust,,Bi-Borough Director of Integrated Care,1725.68
27/04/2022,1267747,Apex Care Homes Ltd,,Bi-Borough Director of Integrated Care,1465.71
27/04/2022,1267747,Apex Care Homes Ltd,,Bi-Borough Director of Integrated Care,1465.71
25/05/2022,1267747,Apex Care Homes Ltd,,Bi-Borough Director of Integrated Care,1710
25/05/2022,1267747,Apex Care Homes Ltd,,Bi-Borough Director of Integrated Care,1710
22/06/2022,1267747,Apex Care Homes Ltd,,Bi-Borough Director of Integrated Care,1710
22/06/2022,1267747,Apex Care Homes Ltd,,Bi-Borough Director of Integrated Care,1710
27/04/2022,1266508,Ashley Healthcare Ltd,,Bi-Borough Director of Integrated Care,1457.14
27/04/2022,1266508,Ashley Healthcare Ltd,,Bi-Borough Director of Integrated Care,1457.14
25/05/2022,1266508,Ashley Healthcare Ltd,,Bi-Borough Director of Integrated Care,1700
25/05/2022,1266508,Ashley Healthcare Ltd,,Bi-Borough Director of Integrated Care,1700
22/06/2022,1266508,Ashley Healthcare Ltd,,Bi-Borough Director of Integrated Care,1700
22/06/2022,1266508,Ashley Healthcare Ltd,,Bi-Borough Director of Integrated Care,1700
27/04/2022,1272521,Ashurst Lodge Healthcare Ltd,,Bi-Borough Director of Integrated Care,2136
27/04/2022,1272521,Ashurst Lodge Healthcare Ltd,,Bi-Borough Director of Integrated Care,2136
25/05/2022,1272521,Ashurst Lodge Healthcare Ltd,,Bi-Borough Director of Integrated Care,2492
25/05/2022,1272521,Ashurst Lodge Healthcare Ltd,,Bi-Borough Director of Integrated Care,2492
22/06/2022,1272521,Ashurst Lodge Healthcare Ltd,,Bi-Borough Director of Integrated Care,2492
22/06/2022,1272521,Ashurst Lodge Healthcare Ltd,,Bi-Borough Director of Integrated Care,2492
27/04/2022,1245072,Aster Healthcare Ltd,,Bi-Borough Director of Integrated Care,2914.29
27/04/2022,1245072,Aster Healthcare Ltd,,Bi-Borough Director of Integrated Care,2830.63
25/05/2022,1245072,Aster Healthcare Ltd,,Bi-Borough Director of Integrated Care,3400
25/05/2022,1245072,Aster Healthcare Ltd,,Bi-Borough Director of Integrated Care,3462.78
22/06/2022,1245072,Aster Healthcare Ltd,,Bi-Borough Director of Integrated Care,3400
22/06/2022,1245072,Aster Healthcare Ltd,,Bi-Borough Director of Integrated Care,3388.76
25/05/2022,1285462,Astoria Healthcare Ltd,,Bi-Borough Director of Integrated Care,2700
25/05/2022,1285462,Astoria Healthcare Ltd,,Bi-Borough Director of Integrated Care,2764.77
27/04/2022,1245074,Astra Homes Ltd,,Bi-Borough Director of Integrated Care,1371.43
27/04/2022,1245074,Astra Homes Ltd,,Bi-Borough Director of Integrated Care,1371.43
27/04/2022,1245074,Astra Homes Ltd,,Bi-Borough Director of Integrated Care,1500
27/04/2022,1245074,Astra Homes Ltd,,Bi-Borough Director of Integrated Care,1500
25/05/2022,1245074,Astra Homes Ltd,,Bi-Borough Director of Integrated Care,1600
25/05/2022,1245074,Astra Homes Ltd,,Bi-Borough Director of Integrated Care,1600
25/05/2022,1245074,Astra Homes Ltd,,Bi-Borough Director of Integrated Care,1750
25/05/2022,1245074,Astra Homes Ltd,,Bi-Borough Director of Integrated Care,1750
22/06/2022,1245074,Astra Homes Ltd,,Bi-Borough Director of Integrated Care,1750
22/06/2022,1245074,Astra Homes Ltd,,Bi-Borough Director of Integrated Care,1750
22/06/2022,1245074,Astra Homes Ltd,,Bi-Borough Director of Integrated Care,1600
22/06/2022,1245074,Astra Homes Ltd,,Bi-Borough Director of Integrated Care,1600
27/04/2022,1276561,Autumn Lodge Hove Limited,,Bi-Borough Director of Integrated Care,2048.57
27/04/2022,1276561,Autumn Lodge Hove Limited,,Bi-Borough Director of Integrated Care,2048.57
25/05/2022,1276561,Autumn Lodge Hove Limited,,Bi-Borough Director of Integrated Care,2390
25/05/2022,1276561,Autumn Lodge Hove Limited,,Bi-Borough Director of Integrated Care,2390
22/06/2022,1276561,Autumn Lodge Hove Limited,,Bi-Borough Director of Integrated Care,2390
22/06/2022,1276561,Autumn Lodge Hove Limited,,Bi-Borough Director of Integrated Care,2390
27/04/2022,1268910,BROWNLOW ENTERPRISES Ltd,,Bi-Borough Director of Integrated Care,2571.43
27/04/2022,1268910,BROWNLOW ENTERPRISES Ltd,,Bi-Borough Director of Integrated Care,1542.86
27/04/2022,1268910,BROWNLOW ENTERPRISES Ltd,,Bi-Borough Director of Integrated Care,1542.86
25/05/2022,1268910,BROWNLOW ENTERPRISES Ltd,,Bi-Borough Director of Integrated Care,3000
25/05/2022,1268910,BROWNLOW ENTERPRISES Ltd,,Bi-Borough Director of Integrated Care,1800
25/05/2022,1268910,BROWNLOW ENTERPRISES Ltd,,Bi-Borough Director of Integrated Care,1800
22/06/2022,1268910,BROWNLOW ENTERPRISES Ltd,,Bi-Borough Director of Integrated Care,1800
22/06/2022,1268910,BROWNLOW ENTERPRISES Ltd,,Bi-Borough Director of Integrated Care,1800
22/06/2022,1268910,BROWNLOW ENTERPRISES Ltd,,Bi-Borough Director of Integrated Care,3000
27/04/2022,1245081,Barchester Healthcare Homes Ltd,,Bi-Borough Director of Integrated Care,2331.43
27/04/2022,1245081,Barchester Healthcare Homes Ltd,,Bi-Borough Director of Integrated Care,2331.43
27/04/2022,1284750,Barchester Healthcare Homes Ltd,,Bi-Borough Director of Integrated Care,1714.29
27/04/2022,1284750,Barchester Healthcare Homes Ltd,,Bi-Borough Director of Integrated Care,1789.85
25/05/2022,1245081,Barchester Healthcare Homes Ltd,,Bi-Borough Director of Integrated Care,2720
25/05/2022,1245081,Barchester Healthcare Homes Ltd,,Bi-Borough Director of Integrated Care,2720
25/05/2022,1284750,Barchester Healthcare Homes Ltd,,Bi-Borough Director of Integrated Care,2248.54
25/05/2022,1284750,Barchester Healthcare Homes Ltd,,Bi-Borough Director of Integrated Care,2000
22/06/2022,1245081,Barchester Healthcare Homes Ltd,,Bi-Borough Director of Integrated Care,2720
22/06/2022,1245081,Barchester Healthcare Homes Ltd,,Bi-Borough Director of Integrated Care,2720
22/06/2022,1284750,Barchester Healthcare Homes Ltd,,Bi-Borough Director of Integrated Care,2000
22/06/2022,1284750,Barchester Healthcare Homes Ltd,,Bi-Borough Director of Integrated Care,2174.52
27/04/2022,1268306,Beresford House,,Bi-Borough Director of Integrated Care,1457.14
27/04/2022,1268306,Beresford House,,Bi-Borough Director of Integrated Care,1457.14
25/05/2022,1268306,Beresford House,,Bi-Borough Director of Integrated Care,1700
25/05/2022,1268306,Beresford House,,Bi-Borough Director of Integrated Care,1700
22/06/2022,1268306,Beresford House,,Bi-Borough Director of Integrated Care,1700
22/06/2022,1268306,Beresford House,,Bi-Borough Director of Integrated Care,1700
27/04/2022,1285177,Brownlow Enterprises Ltd,,Bi-Borough Director of Integrated Care,2914.29
25/05/2022,1285177,Brownlow Enterprises Ltd,,Bi-Borough Director of Integrated Care,3400
22/06/2022,1285177,Brownlow Enterprises Ltd,,Bi-Borough Director of Integrated Care,3400
27/04/2022,1243453,Bupa Care Homes(ANS ) Ltd - T/a,,Bi-Borough Director of Integrated Care,2263.47
25/05/2022,1243453,Bupa Care Homes(ANS ) Ltd - T/a,,Bi-Borough Director of Integrated Care,2640.72
22/06/2022,1243453,Bupa Care Homes(ANS ) Ltd - T/a,,Bi-Borough Director of Integrated Care,2640.72
27/04/2022,1243455,Bupa Care Homes(BNH) Ltd - T/a,,Bi-Borough Director of Integrated Care,3787.85
25/05/2022,1243455,Bupa Care Homes(BNH) Ltd - T/a,,Bi-Borough Director of Integrated Care,4419.16
22/06/2022,1243455,Bupa Care Homes(BNH) Ltd - T/a,,Bi-Borough Director of Integrated Care,4419.16
27/04/2022,1286184,CTK RESIDENTIAL CARE HOMES 2 LTD,,Bi-Borough Director of Integrated Care,2057.14
27/04/2022,1286184,CTK RESIDENTIAL CARE HOMES 2 LTD,,Bi-Borough Director of Integrated Care,2057.14
25/05/2022,1286184,CTK RESIDENTIAL CARE HOMES 2 LTD,,Bi-Borough Director of Integrated Care,2400
25/05/2022,1286184,CTK RESIDENTIAL CARE HOMES 2 LTD,,Bi-Borough Director of Integrated Care,2400
22/06/2022,1286184,CTK RESIDENTIAL CARE HOMES 2 LTD,,Bi-Borough Director of Integrated Care,2400
22/06/2022,1286184,CTK RESIDENTIAL CARE HOMES 2 LTD,,Bi-Borough Director of Integrated Care,2400
27/04/2022,1259100,Care Assist Limited,,Bi-Borough Director of Integrated Care,985.71
27/04/2022,1259100,Care Assist Limited,,Bi-Borough Director of Integrated Care,985.71
27/04/2022,1259100,Care Assist Limited,,Bi-Borough Director of Integrated Care,1801.71
27/04/2022,1259100,Care Assist Limited,,Bi-Borough Director of Integrated Care,1801.71
25/05/2022,1259100,Care Assist Limited,,Bi-Borough Director of Integrated Care,1150
25/05/2022,1259100,Care Assist Limited,,Bi-Borough Director of Integrated Care,1150
25/05/2022,1259100,Care Assist Limited,,Bi-Borough Director of Integrated Care,2102
25/05/2022,1259100,Care Assist Limited,,Bi-Borough Director of Integrated Care,2102
22/06/2022,1259100,Care Assist Limited,,Bi-Borough Director of Integrated Care,1150
22/06/2022,1259100,Care Assist Limited,,Bi-Borough Director of Integrated Care,1150
22/06/2022,1259100,Care Assist Limited,,Bi-Borough Director of Integrated Care,2102
22/06/2022,1259100,Care Assist Limited,,Bi-Borough Director of Integrated Care,2102
27/04/2022,1268990,Care UK Partnerships Ltd T/a,,Bi-Borough Director of Integrated Care,1200
27/04/2022,1268990,Care UK Partnerships Ltd T/a,,Bi-Borough Director of Integrated Care,1200
27/04/2022,1268990,Care UK Partnerships Ltd T/a,,Bi-Borough Director of Integrated Care,1148.57
27/04/2022,1268990,Care UK Partnerships Ltd T/a,,Bi-Borough Director of Integrated Care,1148.57
25/05/2022,1268990,Care UK Partnerships Ltd T/a,,Bi-Borough Director of Integrated Care,1400
25/05/2022,1268990,Care UK Partnerships Ltd T/a,,Bi-Borough Director of Integrated Care,1400
25/05/2022,1268990,Care UK Partnerships Ltd T/a,,Bi-Borough Director of Integrated Care,1340
25/05/2022,1268990,Care UK Partnerships Ltd T/a,,Bi-Borough Director of Integrated Care,1340
22/06/2022,1268990,Care UK Partnerships Ltd T/a,,Bi-Borough Director of Integrated Care,1400
22/06/2022,1268990,Care UK Partnerships Ltd T/a,,Bi-Borough Director of Integrated Care,1400
22/06/2022,1268990,Care UK Partnerships Ltd T/a,,Bi-Borough Director of Integrated Care,1340
22/06/2022,1268990,Care UK Partnerships Ltd T/a,,Bi-Borough Director of Integrated Care,1340
